Body Name,Body,Supplier,Transaction Number,Payment Date,Amount,Directorate,Organisational Unit,Cost Centre/Detail Code,Cost Centre Description,Detail Code Description
Ashfield District Council,37UB,HEB Surveyors,V0996867,09/06/2022,720,Housing & Assets 2,Supplies & Services,G00302/D201011,Capital Receipts HRA,General Fees and Charges
Ashfield District Council,37UB,B.P. Photography,V0996244,01/06/2022,235,Chief Executive 2,Supplies & Services,A01001/D400006,Democratic Core,Civic Regalia
Ashfield District Council,37UB,Touch of Charm Wedding and Event Decor,V0995897,09/06/2022,252,Chief Executive 2,Supplies & Services,A01001/D400009,Democratic Core,Civic Events
Ashfield District Council,37UB,REDACTED,V0996874,09/06/2022,171.9,R & B Transformation 2,Suspense & Overall Control,Z99026/Z999,Control Accounts,Credit control totals
Ashfield District Council,37UB,Watz Ltd,V0996843,09/06/2022,104.81,R & B Transformation 2,Suspense & Overall Control,Z99026/Z999,Control Accounts,Credit control totals
Ashfield District Council,37UB,Asbestos GRP Labs Ltd,V0996770,01/06/2022,110,Housing & Assets 2,Supplies & Services,G00002001/D200008,Capital Corporate,Payments to Contractors External
Ashfield District Council,37UB,Bronbury Services Ltd,V0996218,09/06/2022,22823.47,Housing & Assets 2,Supplies & Services,G00002001/D200008,Capital Corporate,Payments to Contractors External
Ashfield District Council,37UB,Bronbury Services Ltd,V0997756,23/06/2022,2600,Housing & Assets 2,Supplies & Services,G00002001/D200008,Capital Corporate,Payments to Contractors External
Ashfield District Council,37UB,Carlton Design & Fabrication,V0996803,30/06/2022,5836,Housing & Assets 2,Supplies & Services,G00002001/D200008,Capital Corporate,Payments to Contractors External
Ashfield District Council,37UB,Clark & Partners,V0999800,30/06/2022,4130.11,Housing & Assets 2,Supplies & Services,G00002001/D200008,Capital Corporate,Payments to Contractors External
Ashfield District Council,37UB,Crestra Ltd,V0999123,23/06/2022,17018.1,Housing & Assets 2,Supplies & Services,G00002001/D200008,Capital Corporate,Payments to Contractors External
Ashfield District Council,37UB,David P Formon B.D.C. Ltd,V0996249,01/06/2022,645,Housing & Assets 2,Supplies & Services,G00002001/D200008,Capital Corporate,Payments to Contractors External
Ashfield District Council,37UB,E.on,V0997871,23/06/2022,14890.25,Housing & Assets 2,Supplies & Services,C00270/D200008,Capital Corporate,Payments to Contractors External
Ashfield District Council,37UB,HEB Surveyors,V0997090,16/06/2022,250,Housing & Assets 2,Supplies & Services,C00256/D200008,Capital Corporate,Payments to Contractors External
Ashfield District Council,37UB,HEB Surveyors,V0997091,16/06/2022,300,Housing & Assets 2,Supplies & Services,C00280/D200008,Capital Corporate,Payments to Contractors External
Ashfield District Council,37UB,HEB Surveyors,V0997092,16/06/2022,450,Housing & Assets 2,Supplies & Services,C00282/D200008,Capital Corporate,Payments to Contractors External
Ashfield District Council,37UB,Ian Williams Ltd,V0997113,16/06/2022,65789.53,Housing & Assets 2,Supplies & Services,C00254/D200008,Capital Corporate,Payments to Contractors External
Ashfield District Council,37UB,Lindum Group Limited,V0997154,16/06/2022,6978.94,Housing & Assets 2,Supplies & Services,C00269/D200008,Capital Corporate,Payments to Contractors External
Ashfield District Council,37UB,Neil Shacklock Contractors Ltd,V0996846,09/06/2022,2250,Housing & Assets 2,Supplies & Services,G00002002/D200008,Capital Corporate,Payments to Contractors External
Ashfield District Council,37UB,Neil Shacklock Contractors Ltd,V0997719,23/06/2022,2190,Housing & Assets 2,Supplies & Services,G00002002/D200008,Capital Corporate,Payments to Contractors External
Ashfield District Council,37UB,Neil Shacklock Contractors Ltd,V0997722,23/06/2022,1470,Housing & Assets 2,Supplies & Services,G00002002/D200008,Capital Corporate,Payments to Contractors External
Ashfield District Council,37UB,Obam Lift Services Ltd,V0996214,01/06/2022,4685,Housing & Assets 2,Supplies & Services,G00002001/D200008,Capital Corporate,Payments to Contractors External
Ashfield District Council,37UB,Obam Lift Services Ltd,V0997177,16/06/2022,6230,Housing & Assets 2,Supplies & Services,G00002001/D200008,Capital Corporate,Payments to Contractors External
Ashfield District Council,37UB,Obam Lift Services Ltd,V0997711,23/06/2022,4185,Housing & Assets 2,Supplies & Services,G00002001/D200008,Capital Corporate,Payments to Contractors External
Ashfield District Council,37UB,Obam Lift Services Ltd,V0997808,23/06/2022,3730,Housing & Assets 2,Supplies & Services,G00002001/D200008,Capital Corporate,Payments to Contractors External
Ashfield District Council,37UB,PB Property Developments,V0997210,16/06/2022,4610,Housing & Assets 2,Supplies & Services,G00002001/D200008,Capital Corporate,Payments to Contractors External
Ashfield District Council,37UB,PB Property Developments,V0997793,23/06/2022,1556.98,Housing & Assets 2,Supplies & Services,G00002001/D200008,Capital Corporate,Payments to Contractors External
Ashfield District Council,37UB,PB Property Developments,V0999802,30/06/2022,10346,Housing & Assets 2,Supplies & Services,G00002001/D200008,Capital Corporate,Payments to Contractors External
Ashfield District Council,37UB,PB Property Developments,V0999804,30/06/2022,4860,Housing & Assets 2,Supplies & Services,G00002002/D200008,Capital Corporate,Payments to Contractors External
Ashfield District Council,37UB,The Keyholder,V0994646,09/06/2022,528,Housing & Assets 2,Supplies & Services,C00264/D200008,Capital Corporate,Payments to Contractors External
Ashfield District Council,37UB,The Keyholder,V0996852,09/06/2022,528,Housing & Assets 2,Supplies & Services,C00264/D200008,Capital Corporate,Payments to Contractors External
Ashfield District Council,37UB,Vaughandale Construction Ltd,V0996813,09/06/2022,8478,Housing & Assets 2,Supplies & Services,G00002001/D200008,Capital Corporate,Payments to Contractors External
Ashfield District Council,37UB,Vaughandale Construction Ltd,V0996832,09/06/2022,4789,Housing & Assets 2,Supplies & Services,G00002001/D200008,Capital Corporate,Payments to Contractors External
Ashfield District Council,37UB,Ven Construction,V0999118,23/06/2022,5334.19,Housing & Assets 2,Supplies & Services,G00002001/D200008,Capital Corporate,Payments to Contractors External
Ashfield District Council,37UB,Alliance Leisure Services Limited,V0997797,23/06/2022,13678.48,Place & Communities 2,Supplies & Services,C00255009/D200008,Capital Corporate,Payments to Contractors External
Ashfield District Council,37UB,Alliance Leisure Services Limited,V0997798,23/06/2022,15904.69,Place & Communities 2,Supplies & Services,C00255015/D200008,Capital Corporate,Payments to Contractors External
Ashfield District Council,37UB,Andy Dean Business Solutions Ltd,V0996912,09/06/2022,5742.5,Place & Communities 2,Supplies & Services,c00255003/D200008,Capital Corporate,Payments to Contractors External
Ashfield District Council,37UB,FMG Consulting Ltd,V0997795,23/06/2022,2500.01,Place & Communities 2,Supplies & Services,C00255015/D200008,Capital Corporate,Payments to Contractors External
Ashfield District Council,37UB,FMG Consulting Ltd,V0997795,23/06/2022,2499.99,Place & Communities 2,Supplies & Services,C00255009/D200008,Capital Corporate,Payments to Contractors External
Ashfield District Council,37UB,Focus Consultants 2010 LLP,V0996323,01/06/2022,3375,Place & Communities 2,Supplies & Services,C00255010/D200008,Capital Corporate,Payments to Contractors External
Ashfield District Council,37UB,Guy Taylor Associates,V0997176,23/06/2022,15125.05,Place & Communities 2,Supplies & Services,C00255012/D200008,Capital Corporate,Payments to Contractors External
Ashfield District Council,37UB,Guy Taylor Associates,V0997176,23/06/2022,10779.95,Place & Communities 2,Supplies & Services,C00266/D200008,Capital Corporate,Payments to Contractors External
Ashfield District Council,37UB,HEB Surveyors,V0996878,09/06/2022,650,Place & Communities 2,Supplies & Services,C00255001/D200008,Capital Corporate,Payments to Contractors External
Ashfield District Council,37UB,Kier Construction - North and Scotland,V0997234,16/06/2022,165114.38,Place & Communities 2,Supplies & Services,C00262/D200008,Capital Corporate,Payments to Contractors External
Ashfield District Council,37UB,Kinver Business Solutions Ltd,V0996320,01/06/2022,1280,Place & Communities 2,Supplies & Services,C00265/D201019,Capital Corporate,Project Management Fees
Ashfield District Council,37UB,Kinver Business Solutions Ltd,V0996320,01/06/2022,1280,Place & Communities 2,Supplies & Services,C00264/D201019,Capital Corporate,Project Management Fees
Ashfield District Council,37UB,Kinver Business Solutions Ltd,V0996320,01/06/2022,1280,Place & Communities 2,Supplies & Services,C00263/D201019,Capital Corporate,Project Management Fees
Ashfield District Council,37UB,Kinver Business Solutions Ltd,V0996327,01/06/2022,1280,Place & Communities 2,Supplies & Services,C00263/D201019,Capital Corporate,Project Management Fees
Ashfield District Council,37UB,Kinver Business Solutions Ltd,V0996327,01/06/2022,1280,Place & Communities 2,Supplies & Services,C00265/D201019,Capital Corporate,Project Management Fees
Ashfield District Council,37UB,Kinver Business Solutions Ltd,V0996327,01/06/2022,1280,Place & Communities 2,Supplies & Services,C00264/D201019,Capital Corporate,Project Management Fees
Ashfield District Council,37UB,Kinver Business Solutions Ltd,V0999229,30/06/2022,1280,Place & Communities 2,Supplies & Services,C00255013/D201019,Capital Corporate,Project Management Fees
Ashfield District Council,37UB,Kinver Business Solutions Ltd,V0999229,30/06/2022,1280,Place & Communities 2,Supplies & Services,C00255002/D201019,Capital Corporate,Project Management Fees
Ashfield District Council,37UB,Kinver Business Solutions Ltd,V0999229,30/06/2022,1280,Place & Communities 2,Supplies & Services,C00255006/D201019,Capital Corporate,Project Management Fees
Ashfield District Council,37UB,Kinver Business Solutions Ltd,V0999229,30/06/2022,1280,Place & Communities 2,Supplies & Services,C00255017/D201019,Capital Corporate,Project Management Fees
Ashfield District Council,37UB,Kinver Business Solutions Ltd,V0999229,30/06/2022,1280,Place & Communities 2,Supplies & Services,C00255008/D201019,Capital Corporate,Project Management Fees
Ashfield District Council,37UB,Kinver Business Solutions Ltd,V0999229,30/06/2022,1280,Place & Communities 2,Supplies & Services,C00255011/D201019,Capital Corporate,Project Management Fees
Ashfield District Council,37UB,Kinver Business Solutions Ltd,V0999229,30/06/2022,1280,Place & Communities 2,Supplies & Services,C00255001/D201019,Capital Corporate,Project Management Fees
Ashfield District Council,37UB,Kinver Business Solutions Ltd,V0999231,30/06/2022,1280,Place & Communities 2,Supplies & Services,C00255001/D201019,Capital Corporate,Project Management Fees
Ashfield District Council,37UB,Kinver Business Solutions Ltd,V0999231,30/06/2022,1280,Place & Communities 2,Supplies & Services,C00255013/D201019,Capital Corporate,Project Management Fees
Ashfield District Council,37UB,Kinver Business Solutions Ltd,V0999231,30/06/2022,1280,Place & Communities 2,Supplies & Services,C00255002/D201019,Capital Corporate,Project Management Fees
Ashfield District Council,37UB,Kinver Business Solutions Ltd,V0999231,30/06/2022,1280,Place & Communities 2,Supplies & Services,C00255006/D201019,Capital Corporate,Project Management Fees
Ashfield District Council,37UB,Kinver Business Solutions Ltd,V0999231,30/06/2022,1280,Place & Communities 2,Supplies & Services,C00255008/D201019,Capital Corporate,Project Management Fees
Ashfield District Council,37UB,Kinver Business Solutions Ltd,V0999231,30/06/2022,1280,Place & Communities 2,Supplies & Services,C00255011/D201019,Capital Corporate,Project Management Fees
Ashfield District Council,37UB,Kinver Business Solutions Ltd,V0999231,30/06/2022,1280,Place & Communities 2,Supplies & Services,C00255017/D201019,Capital Corporate,Project Management Fees
Ashfield District Council,37UB,P M harris Limited,V0997213,16/06/2022,65473.59,Place & Communities 2,Supplies & Services,C00255103/D200008,Capital Corporate,Payments to Contractors External
Ashfield District Council,37UB,Perfect Circle JV Ltd,V0996324,01/06/2022,21289.85,Place & Communities 2,Supplies & Services,C00255008/D200008,Capital Corporate,Payments to Contractors External
Ashfield District Council,37UB,Summit Creative Ltd,V0999226,30/06/2022,70,R & B Transformation 2,Supplies & Services,C00282/D200008,Capital Corporate,Payments to Contractors External
Ashfield District Council,37UB,Collins Earthworks Limited,V0995855,16/06/2022,10,Place & Communities 2,Supplies & Services,D00251/D200008,Area Consultative Group Scheme,Payments to Contractors External
Ashfield District Council,37UB,P M harris Limited,V0997213,16/06/2022,10317.13,Place & Communities 2,Supplies & Services,C00124/D200008,Area Consultative Group Scheme,Payments to Contractors External
Ashfield District Council,37UB,Greenacre Recruitment Limited,V0996237,01/06/2022,1800,Chief Executive 2,Supplies & Services,C00235/D200008,Capital Economy,Payments to Contractors External
Ashfield District Council,37UB,Greenacre Recruitment Limited,V0997649,16/06/2022,2250,Chief Executive 2,Supplies & Services,C00235/D200008,Capital Economy,Payments to Contractors External
Ashfield District Council,37UB,Greenacre Recruitment Limited,V0997650,16/06/2022,1950,Chief Executive 2,Supplies & Services,C00235/D200008,Capital Economy,Payments to Contractors External
Ashfield District Council,37UB,Greenacre Recruitment Limited,V0999178,30/06/2022,300,Chief Executive 2,Supplies & Services,C00235/D200008,Capital Economy,Payments to Contractors External
Ashfield District Council,37UB,Greenacre Recruitment Limited,V0999178,30/06/2022,600,Chief Executive 2,Supplies & Services,C00235/D200008,Capital Economy,Payments to Contractors External
Ashfield District Council,37UB,Blake Morgan LLP,V0996775,30/06/2022,3301,Legal & Governance 2,Supplies & Services,C00235/D200008,Capital Economy,Payments to Contractors External
Ashfield District Council,37UB,Faithful & Gould Ltd,V0996709,01/06/2022,8484.75,Place & Communities 2,Supplies & Services,C00235/d200008,Capital Economy,Payments to Contractors External
Ashfield District Council,37UB,Kier Construction - North and Scotland,V0996824,16/06/2022,998830.86,Place & Communities 2,Supplies & Services,C00235/D200008,Capital Economy,Payments to Contractors External
Ashfield District Council,37UB,Fluid Ideas Ltd,V0996857,09/06/2022,828,Place & Communities 2,Supplies & Services,C00125001/D200008,Capital Environment,Payments to Contractors External
Ashfield District Council,37UB,NBS Enterprises Ltd,V0999291,30/06/2022,1475,Place & Communities 2,Supplies & Services,C00125001/D200008,Capital Environment,Payments to Contractors External
Ashfield District Council,37UB,Bransons,V0997247,16/06/2022,518.34,Housing & Assets 2,Supplies & Services,G00450003/D200033,Capital Housing Revenue,Decoration Vouchers
Ashfield District Council,37UB,Dulux Decorator Centre,V0996737,01/06/2022,63.65,Housing & Assets 2,Supplies & Services,G00450003/D200033,Capital Housing Revenue,Decoration Vouchers
Ashfield District Council,37UB,Dulux Decorator Centre,V0996738,01/06/2022,31.2,Housing & Assets 2,Supplies & Services,G00450003/D200033,Capital Housing Revenue,Decoration Vouchers
Ashfield District Council,37UB,Dulux Decorator Centre,V0996739,01/06/2022,61.9,Housing & Assets 2,Supplies & Services,G00450003/D200033,Capital Housing Revenue,Decoration Vouchers
Ashfield District Council,37UB,Dulux Decorator Centre,V0997249,16/06/2022,23.97,Housing & Assets 2,Supplies & Services,G00450003/D200033,Capital Housing Revenue,Decoration Vouchers
Ashfield District Council,37UB,Dulux Decorator Centre,V0999290,30/06/2022,45.56,Housing & Assets 2,Supplies & Services,G00450003/D200033,Capital Housing Revenue,Decoration Vouchers
Ashfield District Council,37UB,E.on,V0997871,23/06/2022,103000,Housing & Assets 2,Supplies & Services,C00272/D200008,Capital Housing Revenue,Payments to Contractors External
Ashfield District Council,37UB,J Tomlinson Ltd,V0997229,16/06/2022,138430.84,Housing & Assets 2,Supplies & Services,G00450004/D200008,Capital Housing Revenue,Payments to Contractors External
Ashfield District Council,37UB,J Tomlinson Ltd,V0997229,16/06/2022,50984.79,Housing & Assets 2,Supplies & Services,G00450006/D200008,Capital Housing Revenue,Payments to Contractors External
Ashfield District Council,37UB,J Tomlinson Ltd,V0997229,16/06/2022,6980.39,Housing & Assets 2,Supplies & Services,G00450005/D200008,Capital Housing Revenue,Payments to Contractors External
Ashfield District Council,37UB,J Tomlinson Ltd,V0997229,16/06/2022,77067.66,Housing & Assets 2,Supplies & Services,G00450001/D200008,Capital Housing Revenue,Payments to Contractors External
Ashfield District Council,37UB,J Tomlinson Ltd,V0997229,16/06/2022,1843.97,Housing & Assets 2,Supplies & Services,G00470001/D200008,Capital Housing Revenue,Payments to Contractors External
Ashfield District Council,37UB,Lindum Group Limited,V0999164,23/06/2022,246061.85,Housing & Assets 2,Supplies & Services,G00931/D200008,Capital Housing Revenue,Payments to Contractors External
Ashfield District Council,37UB,Lindum Group Limited,V0999165,23/06/2022,168761.21,Housing & Assets 2,Supplies & Services,G00931/D200008,Capital Housing Revenue,Payments to Contractors External
Ashfield District Council,37UB,Wilko Retail Limited,V0996332,01/06/2022,62.5,Housing & Assets 2,Supplies & Services,G00450003/D200033,Capital Housing Revenue,Decoration Vouchers
Ashfield District Council,37UB,Wilko Retail Limited,V0996333,01/06/2022,60,Housing & Assets 2,Supplies & Services,G00450003/D200033,Capital Housing Revenue,Decoration Vouchers
Ashfield District Council,37UB,Wilko Retail Limited,V0996334,01/06/2022,70.83,Housing & Assets 2,Supplies & Services,G00450003/D200033,Capital Housing Revenue,Decoration Vouchers
Ashfield District Council,37UB,Wilko Retail Limited,V0996335,01/06/2022,62.5,Housing & Assets 2,Supplies & Services,G00450003/D200033,Capital Housing Revenue,Decoration Vouchers
Ashfield District Council,37UB,Wilko Retail Limited,V0996336,01/06/2022,187.5,Housing & Assets 2,Supplies & Services,G00450003/D200033,Capital Housing Revenue,Decoration Vouchers
Ashfield District Council,37UB,Wilko Retail Limited,V0996337,01/06/2022,62.5,Housing & Assets 2,Supplies & Services,G00450003/D200033,Capital Housing Revenue,Decoration Vouchers
Ashfield District Council,37UB,Wilko Retail Limited,V0996338,01/06/2022,66.67,Housing & Assets 2,Supplies & Services,G00450003/D200033,Capital Housing Revenue,Decoration Vouchers
Ashfield District Council,37UB,Wilko Retail Limited,V0996339,01/06/2022,96.67,Housing & Assets 2,Supplies & Services,G00450003/D200033,Capital Housing Revenue,Decoration Vouchers
Ashfield District Council,37UB,Wilko Retail Limited,V0996340,01/06/2022,50.83,Housing & Assets 2,Supplies & Services,G00450003/D200033,Capital Housing Revenue,Decoration Vouchers
Ashfield District Council,37UB,Wilko Retail Limited,V0996341,01/06/2022,61.67,Housing & Assets 2,Supplies & Services,G00450003/D200033,Capital Housing Revenue,Decoration Vouchers
Ashfield District Council,37UB,Wilko Retail Limited,V0996342,01/06/2022,62.5,Housing & Assets 2,Supplies & Services,G00450003/D200033,Capital Housing Revenue,Decoration Vouchers
Ashfield District Council,37UB,Wilko Retail Limited,V0996343,01/06/2022,50,Housing & Assets 2,Supplies & Services,G00450003/D200033,Capital Housing Revenue,Decoration Vouchers
Ashfield District Council,37UB,Wilko Retail Limited,V0996344,01/06/2022,250,Housing & Assets 2,Supplies & Services,G00450003/D200033,Capital Housing Revenue,Decoration Vouchers
Ashfield District Council,37UB,Wilko Retail Limited,V0996345,01/06/2022,62.5,Housing & Assets 2,Supplies & Services,G00450003/D200033,Capital Housing Revenue,Decoration Vouchers
Ashfield District Council,37UB,Wilko Retail Limited,V0996346,01/06/2022,204.17,Housing & Assets 2,Supplies & Services,G00450003/D200033,Capital Housing Revenue,Decoration Vouchers
Ashfield District Council,37UB,Wilko Retail Limited,V0996347,01/06/2022,121.71,Housing & Assets 2,Supplies & Services,G00450003/D200033,Capital Housing Revenue,Decoration Vouchers
Ashfield District Council,37UB,Wilko Retail Limited,V0996348,01/06/2022,50.83,Housing & Assets 2,Supplies & Services,G00450003/D200033,Capital Housing Revenue,Decoration Vouchers
Ashfield District Council,37UB,Wilko Retail Limited,V0996349,01/06/2022,58.96,Housing & Assets 2,Supplies & Services,G00450003/D200033,Capital Housing Revenue,Decoration Vouchers
Ashfield District Council,37UB,Wilko Retail Limited,V0996350,01/06/2022,66.67,Housing & Assets 2,Supplies & Services,G00450003/D200033,Capital Housing Revenue,Decoration Vouchers
Ashfield District Council,37UB,Wilko Retail Limited,V0996351,01/06/2022,73.25,Housing & Assets 2,Supplies & Services,G00450003/D200033,Capital Housing Revenue,Decoration Vouchers
Ashfield District Council,37UB,Wilko Retail Limited,V0996352,01/06/2022,62.5,Housing & Assets 2,Supplies & Services,G00450003/D200033,Capital Housing Revenue,Decoration Vouchers
Ashfield District Council,37UB,Wilko Retail Limited,V0996353,01/06/2022,62.5,Housing & Assets 2,Supplies & Services,G00450003/D200033,Capital Housing Revenue,Decoration Vouchers
Ashfield District Council,37UB,Wilko Retail Limited,V0996354,01/06/2022,75,Housing & Assets 2,Supplies & Services,G00450003/D200033,Capital Housing Revenue,Decoration Vouchers
Ashfield District Council,37UB,Wilko Retail Limited,V0996355,01/06/2022,187.5,Housing & Assets 2,Supplies & Services,G00450003/D200033,Capital Housing Revenue,Decoration Vouchers
Ashfield District Council,37UB,Wilko Retail Limited,V0996356,01/06/2022,198.12,Housing & Assets 2,Supplies & Services,G00450003/D200033,Capital Housing Revenue,Decoration Vouchers
Ashfield District Council,37UB,Wilko Retail Limited,V0997660,16/06/2022,61.42,Housing & Assets 2,Supplies & Services,G00450003/D200033,Capital Housing Revenue,Decoration Vouchers
Ashfield District Council,37UB,Wilko Retail Limited,V0997661,16/06/2022,56.25,Housing & Assets 2,Supplies & Services,G00450003/D200033,Capital Housing Revenue,Decoration Vouchers
Ashfield District Council,37UB,Wilko Retail Limited,V0997662,16/06/2022,113.33,Housing & Assets 2,Supplies & Services,G00450003/D200033,Capital Housing Revenue,Decoration Vouchers
Ashfield District Council,37UB,Wilko Retail Limited,V0997663,16/06/2022,113.33,Housing & Assets 2,Supplies & Services,G00450003/D200033,Capital Housing Revenue,Decoration Vouchers
Ashfield District Council,37UB,Wilko Retail Limited,V0997664,16/06/2022,62.46,Housing & Assets 2,Supplies & Services,G00450003/D200033,Capital Housing Revenue,Decoration Vouchers
Ashfield District Council,37UB,Wilko Retail Limited,V0997665,16/06/2022,197.5,Housing & Assets 2,Supplies & Services,G00450003/D200033,Capital Housing Revenue,Decoration Vouchers
Ashfield District Council,37UB,Wilko Retail Limited,V0997666,16/06/2022,62.5,Housing & Assets 2,Supplies & Services,G00450003/D200033,Capital Housing Revenue,Decoration Vouchers
Ashfield District Council,37UB,Wilko Retail Limited,V0997667,16/06/2022,66.67,Housing & Assets 2,Supplies & Services,G00450003/D200033,Capital Housing Revenue,Decoration Vouchers
Ashfield District Council,37UB,Wilko Retail Limited,V0997704,16/06/2022,62.5,Housing & Assets 2,Supplies & Services,G00450003/D200033,Capital Housing Revenue,Decoration Vouchers
Ashfield District Council,37UB,Wilko Retail Limited,V0997705,16/06/2022,62.5,Housing & Assets 2,Supplies & Services,G00450003/D200033,Capital Housing Revenue,Decoration Vouchers
Ashfield District Council,37UB,Wilko Retail Limited,V0997706,16/06/2022,62.5,Housing & Assets 2,Supplies & Services,G00450003/D200033,Capital Housing Revenue,Decoration Vouchers
Ashfield District Council,37UB,Wilko Retail Limited,V0997707,16/06/2022,113.33,Housing & Assets 2,Supplies & Services,G00450003/D200033,Capital Housing Revenue,Decoration Vouchers
Ashfield District Council,37UB,Wilko Retail Limited,V0997708,16/06/2022,62.5,Housing & Assets 2,Supplies & Services,G00450003/D200033,Capital Housing Revenue,Decoration Vouchers
Ashfield District Council,37UB,Wilko Retail Limited,V0999146,23/06/2022,66.67,Housing & Assets 2,Supplies & Services,G00450003/D200033,Capital Housing Revenue,Decoration Vouchers
Ashfield District Council,37UB,Wilko Retail Limited,V0999147,23/06/2022,56.67,Housing & Assets 2,Supplies & Services,G00450003/D200033,Capital Housing Revenue,Decoration Vouchers
Ashfield District Council,37UB,Wilko Retail Limited,V0999148,23/06/2022,62.5,Housing & Assets 2,Supplies & Services,G00450003/D200033,Capital Housing Revenue,Decoration Vouchers
Ashfield District Council,37UB,Wilko Retail Limited,V0999149,23/06/2022,128.33,Housing & Assets 2,Supplies & Services,G00450003/D200033,Capital Housing Revenue,Decoration Vouchers
Ashfield District Council,37UB,Wilko Retail Limited,V0999150,23/06/2022,291.67,Housing & Assets 2,Supplies & Services,G00450003/D200033,Capital Housing Revenue,Decoration Vouchers
Ashfield District Council,37UB,Wilko Retail Limited,V0999151,23/06/2022,61.37,Housing & Assets 2,Supplies & Services,G00450003/D200033,Capital Housing Revenue,Decoration Vouchers
Ashfield District Council,37UB,Wilko Retail Limited,V0999155,23/06/2022,62.5,Housing & Assets 2,Supplies & Services,G00450003/D200033,Capital Housing Revenue,Decoration Vouchers
Ashfield District Council,37UB,Wilko Retail Limited,V0999156,23/06/2022,245,Housing & Assets 2,Supplies & Services,G00450003/D200033,Capital Housing Revenue,Decoration Vouchers
Ashfield District Council,37UB,Wilko Retail Limited,V0999157,23/06/2022,1.9,Housing & Assets 2,Supplies & Services,G00450003/D200033,Capital Housing Revenue,Decoration Vouchers
Ashfield District Council,37UB,Wilko Retail Limited,V0999157,23/06/2022,123.12,Housing & Assets 2,Supplies & Services,G00450003/D200033,Capital Housing Revenue,Decoration Vouchers
Ashfield District Council,37UB,Wilko Retail Limited,V0999158,23/06/2022,62.5,Housing & Assets 2,Supplies & Services,G00450003/D200033,Capital Housing Revenue,Decoration Vouchers
Ashfield District Council,37UB,Wilko Retail Limited,V0999159,23/06/2022,66.67,Housing & Assets 2,Supplies & Services,G00450003/D200033,Capital Housing Revenue,Decoration Vouchers
Ashfield District Council,37UB,Wilko Retail Limited,V0999160,23/06/2022,78.25,Housing & Assets 2,Supplies & Services,G00450003/D200033,Capital Housing Revenue,Decoration Vouchers
Ashfield District Council,37UB,Wilko Retail Limited,V0999173,30/06/2022,60.21,Housing & Assets 2,Supplies & Services,G00450003/D200033,Capital Housing Revenue,Decoration Vouchers
Ashfield District Council,37UB,Wilko Retail Limited,V0999174,30/06/2022,62.5,Housing & Assets 2,Supplies & Services,G00450003/D200033,Capital Housing Revenue,Decoration Vouchers
Ashfield District Council,37UB,Wilko Retail Limited,V0999175,30/06/2022,1.9,Housing & Assets 2,Supplies & Services,G00450003/D200033,Capital Housing Revenue,Decoration Vouchers
Ashfield District Council,37UB,Wilko Retail Limited,V0999175,30/06/2022,69.17,Housing & Assets 2,Supplies & Services,G00450003/D200033,Capital Housing Revenue,Decoration Vouchers
Ashfield District Council,37UB,Wilko Retail Limited,V0999266,30/06/2022,125,Housing & Assets 2,Supplies & Services,G00450003/D200033,Capital Housing Revenue,Decoration Vouchers
Ashfield District Council,37UB,Wilko Retail Limited,V0999267,30/06/2022,177.21,Housing & Assets 2,Supplies & Services,G00450003/D200033,Capital Housing Revenue,Decoration Vouchers
Ashfield District Council,37UB,Wilko Retail Limited,V0999268,30/06/2022,62.5,Housing & Assets 2,Supplies & Services,G00450003/D200033,Capital Housing Revenue,Decoration Vouchers
Ashfield District Council,37UB,Wilko Retail Limited,V0999269,30/06/2022,50.83,Housing & Assets 2,Supplies & Services,G00450003/D200033,Capital Housing Revenue,Decoration Vouchers
Ashfield District Council,37UB,Wilko Retail Limited,V0999270,30/06/2022,50.83,Housing & Assets 2,Supplies & Services,G00450003/D200033,Capital Housing Revenue,Decoration Vouchers
Ashfield District Council,37UB,Wilko Retail Limited,V0999280,30/06/2022,61.5,Housing & Assets 2,Supplies & Services,G00450003/D200033,Capital Housing Revenue,Decoration Vouchers
Ashfield District Council,37UB,Wilko Retail Limited,V0999281,30/06/2022,125,Housing & Assets 2,Supplies & Services,G00450003/D200033,Capital Housing Revenue,Decoration Vouchers
Ashfield District Council,37UB,Wilko Retail Limited,V0999282,30/06/2022,42.58,Housing & Assets 2,Supplies & Services,G00450003/D200033,Capital Housing Revenue,Decoration Vouchers
Ashfield District Council,37UB,Wilko Retail Limited,V0999283,30/06/2022,125,Housing & Assets 2,Supplies & Services,G00450003/D200033,Capital Housing Revenue,Decoration Vouchers
Ashfield District Council,37UB,Wilko Retail Limited,V0999284,30/06/2022,62.5,Housing & Assets 2,Supplies & Services,G00450003/D200033,Capital Housing Revenue,Decoration Vouchers
Ashfield District Council,37UB,Wilko Retail Limited,V0999285,30/06/2022,53.33,Housing & Assets 2,Supplies & Services,G00450003/D200033,Capital Housing Revenue,Decoration Vouchers
Ashfield District Council,37UB,Wilko Retail Limited,V0999286,30/06/2022,200,Housing & Assets 2,Supplies & Services,G00450003/D200033,Capital Housing Revenue,Decoration Vouchers
Ashfield District Council,37UB,Wilko Retail Limited,V0999287,30/06/2022,62.5,Housing & Assets 2,Supplies & Services,G00450003/D200033,Capital Housing Revenue,Decoration Vouchers
Ashfield District Council,37UB,Wilko Retail Limited,V0999288,30/06/2022,133.33,Housing & Assets 2,Supplies & Services,G00450003/D200033,Capital Housing Revenue,Decoration Vouchers
Ashfield District Council,37UB,Wilko Retail Limited,V0999289,30/06/2022,133.33,Housing & Assets 2,Supplies & Services,G00450003/D200033,Capital Housing Revenue,Decoration Vouchers
Ashfield District Council,37UB,Wilko Retail Limited,V0999292,30/06/2022,62.5,Housing & Assets 2,Supplies & Services,G00450003/D200033,Capital Housing Revenue,Decoration Vouchers
Ashfield District Council,37UB,Wilko Retail Limited,V0999293,30/06/2022,125,Housing & Assets 2,Supplies & Services,G00450003/D200033,Capital Housing Revenue,Decoration Vouchers
Ashfield District Council,37UB,Wilko Retail Limited,V0999294,30/06/2022,62.08,Housing & Assets 2,Supplies & Services,G00450003/D200033,Capital Housing Revenue,Decoration Vouchers
Ashfield District Council,37UB,Wilko Retail Limited,V0999295,30/06/2022,58.33,Housing & Assets 2,Supplies & Services,G00450003/D200033,Capital Housing Revenue,Decoration Vouchers
Ashfield District Council,37UB,Wilko Retail Limited,V0999297,30/06/2022,62.5,Housing & Assets 2,Supplies & Services,G00450003/D200033,Capital Housing Revenue,Decoration Vouchers
Ashfield District Council,37UB,Wilko Retail Limited,V0999298,30/06/2022,62.5,Housing & Assets 2,Supplies & Services,G00450003/D200033,Capital Housing Revenue,Decoration Vouchers
Ashfield District Council,37UB,Wilko Retail Limited,V0999300,30/06/2022,63.33,Housing & Assets 2,Supplies & Services,G00450003/D200033,Capital Housing Revenue,Decoration Vouchers
Ashfield District Council,37UB,HM Revenue & Customs SDLT,V0997802,23/06/2022,14175,R & B Transformation 2,Supplies & Services,C00236/D200008,Capital Housing Revenue,Payments to Contractors External
Ashfield District Council,37UB,Total Hire & Sales Ltd,V0997491,20/06/2022,61.6,R & B Transformation 2,Supplies & Services,G00450008/D200008,Capital Housing Revenue,Payments to Contractors External
Ashfield District Council,37UB,Total Hire & Sales Ltd,V0997605,20/06/2022,58.8,R & B Transformation 2,Supplies & Services,G00450008/D200008,Capital Housing Revenue,Payments to Contractors External
Ashfield District Council,37UB,"Dept for Business, Energy & Industrial Strategy",V0997187,16/06/2022,617876,R & B Transformation 2,Income,T15034218/J102,Fund Accounts,Contributions
Ashfield District Council,37UB,AKW Medi-Care Limited,V0997402,20/06/2022,2245.76,R & B Transformation 2,Supplies & Services,T35026/D200008,Housing Stock Accounts,Payments to Contractors External
Ashfield District Council,37UB,Arden Winch & Co Ltd,V0996463,07/06/2022,770,R & B Transformation 2,Supplies & Services,T35026/D200008,Housing Stock Accounts,Payments to Contractors External
Ashfield District Council,37UB,Arden Winch & Co Ltd,V0997403,20/06/2022,770,R & B Transformation 2,Supplies & Services,T35026/D200008,Housing Stock Accounts,Payments to Contractors External
Ashfield District Council,37UB,City Plumbing Supplies Holdings Ltd,V0997536,20/06/2022,130.3,R & B Transformation 2,Supplies & Services,T35026/D200008,Housing Stock Accounts,Payments to Contractors External
Ashfield District Council,37UB,City Plumbing Supplies Holdings Ltd,V0997972,27/06/2022,121.68,R & B Transformation 2,Supplies & Services,T35026/D200008,Housing Stock Accounts,Payments to Contractors External
Ashfield District Council,37UB,Crown Paints Limited,V0996479,07/06/2022,107.28,R & B Transformation 2,Supplies & Services,T35026/D200008,Housing Stock Accounts,Payments to Contractors External
Ashfield District Council,37UB,Crown Paints Limited,V0996479,07/06/2022,55.12,R & B Transformation 2,Supplies & Services,T35026/D200008,Housing Stock Accounts,Payments to Contractors External
Ashfield District Council,37UB,Crown Paints Limited,V0996479,07/06/2022,67.75,R & B Transformation 2,Supplies & Services,T35026/D200008,Housing Stock Accounts,Payments to Contractors External
Ashfield District Council,37UB,Crown Paints Limited,V0996479,07/06/2022,222.92,R & B Transformation 2,Supplies & Services,T35026/D200008,Housing Stock Accounts,Payments to Contractors External
Ashfield District Council,37UB,Crown Paints Limited,V0996567,07/06/2022,22.6,R & B Transformation 2,Supplies & Services,T35026/D200008,Housing Stock Accounts,Payments to Contractors External
Ashfield District Council,37UB,Crown Paints Limited,V0997406,20/06/2022,11.3,R & B Transformation 2,Supplies & Services,T35026/D200008,Housing Stock Accounts,Payments to Contractors External
Ashfield District Council,37UB,Door-Stop International Ltd,V0996427,07/06/2022,436.43,R & B Transformation 2,Supplies & Services,T35026/D200008,Housing Stock Accounts,Payments to Contractors External
Ashfield District Council,37UB,Door-Stop International Ltd,V0996428,07/06/2022,379.13,R & B Transformation 2,Supplies & Services,T35026/D200008,Housing Stock Accounts,Payments to Contractors External
Ashfield District Council,37UB,Door-Stop International Ltd,V0997408,20/06/2022,410.13,R & B Transformation 2,Supplies & Services,T35026/D200008,Housing Stock Accounts,Payments to Contractors External
Ashfield District Council,37UB,Door-Stop International Ltd,V0997409,20/06/2022,399.63,R & B Transformation 2,Supplies & Services,T35026/D200008,Housing Stock Accounts,Payments to Contractors External
Ashfield District Council,37UB,Grafton Merchanting GB Ltd t/a Jackson Buildbase,V0996363,07/06/2022,-33.06,R & B Transformation 2,Supplies & Services,T35026/D200008,Housing Stock Accounts,Payments to Contractors External
Ashfield District Council,37UB,Grafton Merchanting GB Ltd t/a Jackson Buildbase,V0996434,07/06/2022,311.02,R & B Transformation 2,Supplies & Services,T35026/D200008,Housing Stock Accounts,Payments to Contractors External
Ashfield District Council,37UB,Grafton Merchanting GB Ltd t/a Jackson Buildbase,V0996464,07/06/2022,180,R & B Transformation 2,Supplies & Services,T35026/D200008,Housing Stock Accounts,Payments to Contractors External
Ashfield District Council,37UB,Grafton Merchanting GB Ltd t/a Jackson Buildbase,V0996464,07/06/2022,63.12,R & B Transformation 2,Supplies & Services,T35026/D200008,Housing Stock Accounts,Payments to Contractors External
Ashfield District Council,37UB,Grafton Merchanting GB Ltd t/a Jackson Buildbase,V0996465,07/06/2022,51.48,R & B Transformation 2,Supplies & Services,T35026/D200008,Housing Stock Accounts,Payments to Contractors External
Ashfield District Council,37UB,Grafton Merchanting GB Ltd t/a Jackson Buildbase,V0996534,07/06/2022,228.96,R & B Transformation 2,Supplies & Services,T35026/D200008,Housing Stock Accounts,Payments to Contractors External
Ashfield District Council,37UB,Grafton Merchanting GB Ltd t/a Jackson Buildbase,V0996536,07/06/2022,128.26,R & B Transformation 2,Supplies & Services,T35026/D200008,Housing Stock Accounts,Payments to Contractors External
Ashfield District Council,37UB,Grafton Merchanting GB Ltd t/a Jackson Buildbase,V0996536,07/06/2022,515,R & B Transformation 2,Supplies & Services,T35026/D200008,Housing Stock Accounts,Payments to Contractors External
Ashfield District Council,37UB,Grafton Merchanting GB Ltd t/a Jackson Buildbase,V0996537,07/06/2022,27.36,R & B Transformation 2,Supplies & Services,T35026/D200008,Housing Stock Accounts,Payments to Contractors External
Ashfield District Council,37UB,Grafton Merchanting GB Ltd t/a Jackson Buildbase,V0996540,07/06/2022,288.9,R & B Transformation 2,Supplies & Services,T35026/D200008,Housing Stock Accounts,Payments to Contractors External
Ashfield District Council,37UB,Grafton Merchanting GB Ltd t/a Jackson Buildbase,V0996540,07/06/2022,162.7,R & B Transformation 2,Supplies & Services,T35026/D200008,Housing Stock Accounts,Payments to Contractors External
Ashfield District Council,37UB,Grafton Merchanting GB Ltd t/a Jackson Buildbase,V0996540,07/06/2022,270,R & B Transformation 2,Supplies & Services,T35026/D200008,Housing Stock Accounts,Payments to Contractors External
Ashfield District Council,37UB,Grafton Merchanting GB Ltd t/a Jackson Buildbase,V0996541,07/06/2022,182.4,R & B Transformation 2,Supplies & Services,T35026/D200008,Housing Stock Accounts,Payments to Contractors External
Ashfield District Council,37UB,Grafton Merchanting GB Ltd t/a Jackson Buildbase,V0996554,07/06/2022,10.9,R & B Transformation 2,Supplies & Services,T35026/D200008,Housing Stock Accounts,Payments to Contractors External
Ashfield District Council,37UB,Grafton Merchanting GB Ltd t/a Jackson Buildbase,V0996555,07/06/2022,46.83,R & B Transformation 2,Supplies & Services,T35026/D200008,Housing Stock Accounts,Payments to Contractors External
Ashfield District Council,37UB,Grafton Merchanting GB Ltd t/a Jackson Buildbase,V0996556,07/06/2022,270.24,R & B Transformation 2,Supplies & Services,T35026/D200008,Housing Stock Accounts,Payments to Contractors External
Ashfield District Council,37UB,Grafton Merchanting GB Ltd t/a Jackson Buildbase,V0996556,07/06/2022,444,R & B Transformation 2,Supplies & Services,T35026/D200008,Housing Stock Accounts,Payments to Contractors External
Ashfield District Council,37UB,Grafton Merchanting GB Ltd t/a Jackson Buildbase,V0996556,07/06/2022,28.84,R & B Transformation 2,Supplies & Services,T35026/D200008,Housing Stock Accounts,Payments to Contractors External
Ashfield District Council,37UB,Grafton Merchanting GB Ltd t/a Jackson Buildbase,V0996556,07/06/2022,33.6,R & B Transformation 2,Supplies & Services,T35026/D200008,Housing Stock Accounts,Payments to Contractors External
Ashfield District Council,37UB,Grafton Merchanting GB Ltd t/a Jackson Buildbase,V0996556,07/06/2022,10.9,R & B Transformation 2,Supplies & Services,T35026/D200008,Housing Stock Accounts,Payments to Contractors External
Ashfield District Council,37UB,Grafton Merchanting GB Ltd t/a Jackson Buildbase,V0996556,07/06/2022,11.75,R & B Transformation 2,Supplies & Services,T35026/D200008,Housing Stock Accounts,Payments to Contractors External
Ashfield District Council,37UB,Grafton Merchanting GB Ltd t/a Jackson Buildbase,V0996557,07/06/2022,530.7,R & B Transformation 2,Supplies & Services,T35026/D200008,Housing Stock Accounts,Payments to Contractors External
Ashfield District Council,37UB,Grafton Merchanting GB Ltd t/a Jackson Buildbase,V0996558,07/06/2022,668.5,R & B Transformation 2,Supplies & Services,T35026/D200008,Housing Stock Accounts,Payments to Contractors External
Ashfield District Council,37UB,Grafton Merchanting GB Ltd t/a Jackson Buildbase,V0996558,07/06/2022,16.55,R & B Transformation 2,Supplies & Services,T35026/D200008,Housing Stock Accounts,Payments to Contractors External
Ashfield District Council,37UB,Grafton Merchanting GB Ltd t/a Jackson Buildbase,V0996558,07/06/2022,16.55,R & B Transformation 2,Supplies & Services,T35026/D200008,Housing Stock Accounts,Payments to Contractors External
Ashfield District Council,37UB,Grafton Merchanting GB Ltd t/a Jackson Buildbase,V0996559,07/06/2022,688,R & B Transformation 2,Supplies & Services,T35026/D200008,Housing Stock Accounts,Payments to Contractors External
Ashfield District Council,37UB,Grafton Merchanting GB Ltd t/a Jackson Buildbase,V0996920,13/06/2022,-18.45,R & B Transformation 2,Supplies & Services,T35026/D200008,Housing Stock Accounts,Payments to Contractors External
Ashfield District Council,37UB,Grafton Merchanting GB Ltd t/a Jackson Buildbase,V0996921,13/06/2022,-242.4,R & B Transformation 2,Supplies & Services,T35026/D200008,Housing Stock Accounts,Payments to Contractors External
Ashfield District Council,37UB,Grafton Merchanting GB Ltd t/a Jackson Buildbase,V0996922,13/06/2022,-17.4,R & B Transformation 2,Supplies & Services,T35026/D200008,Housing Stock Accounts,Payments to Contractors External
Ashfield District Council,37UB,Grafton Merchanting GB Ltd t/a Jackson Buildbase,V0997044,13/06/2022,484.8,R & B Transformation 2,Supplies & Services,T35026/D200008,Housing Stock Accounts,Payments to Contractors External
Ashfield District Council,37UB,Grafton Merchanting GB Ltd t/a Jackson Buildbase,V0997048,13/06/2022,35.6,R & B Transformation 2,Supplies & Services,T35026/D200008,Housing Stock Accounts,Payments to Contractors External
Ashfield District Council,37UB,Grafton Merchanting GB Ltd t/a Jackson Buildbase,V0997048,13/06/2022,17.8,R & B Transformation 2,Supplies & Services,T35026/D200008,Housing Stock Accounts,Payments to Contractors External
Ashfield District Council,37UB,Grafton Merchanting GB Ltd t/a Jackson Buildbase,V0997049,13/06/2022,520,R & B Transformation 2,Supplies & Services,T35026/D200008,Housing Stock Accounts,Payments to Contractors External
Ashfield District Council,37UB,Grafton Merchanting GB Ltd t/a Jackson Buildbase,V0997050,13/06/2022,342.72,R & B Transformation 2,Supplies & Services,T35026/D200008,Housing Stock Accounts,Payments to Contractors External
Ashfield District Council,37UB,Grafton Merchanting GB Ltd t/a Jackson Buildbase,V0997051,13/06/2022,152.4,R & B Transformation 2,Supplies & Services,T35026/D200008,Housing Stock Accounts,Payments to Contractors External
Ashfield District Council,37UB,Grafton Merchanting GB Ltd t/a Jackson Buildbase,V0997051,13/06/2022,162.6,R & B Transformation 2,Supplies & Services,T35026/D200008,Housing Stock Accounts,Payments to Contractors External
Ashfield District Council,37UB,Grafton Merchanting GB Ltd t/a Jackson Buildbase,V0997052,13/06/2022,30.63,R & B Transformation 2,Supplies & Services,T35026/D200008,Housing Stock Accounts,Payments to Contractors External
Ashfield District Council,37UB,Grafton Merchanting GB Ltd t/a Jackson Buildbase,V0997053,13/06/2022,156,R & B Transformation 2,Supplies & Services,T35026/D200008,Housing Stock Accounts,Payments to Contractors External
Ashfield District Council,37UB,Grafton Merchanting GB Ltd t/a Jackson Buildbase,V0997054,13/06/2022,530,R & B Transformation 2,Supplies & Services,T35026/D200008,Housing Stock Accounts,Payments to Contractors External
Ashfield District Council,37UB,Grafton Merchanting GB Ltd t/a Jackson Buildbase,V0997056,13/06/2022,18.45,R & B Transformation 2,Supplies & Services,T35026/D200008,Housing Stock Accounts,Payments to Contractors External
Ashfield District Council,37UB,Grafton Merchanting GB Ltd t/a Jackson Buildbase,V0997057,13/06/2022,169.6,R & B Transformation 2,Supplies & Services,T35026/D200008,Housing Stock Accounts,Payments to Contractors External
Ashfield District Council,37UB,Grafton Merchanting GB Ltd t/a Jackson Buildbase,V0997058,13/06/2022,11.45,R & B Transformation 2,Supplies & Services,T35026/D200008,Housing Stock Accounts,Payments to Contractors External
Ashfield District Council,37UB,Grafton Merchanting GB Ltd t/a Jackson Buildbase,V0997058,13/06/2022,62.64,R & B Transformation 2,Supplies & Services,T35026/D200008,Housing Stock Accounts,Payments to Contractors External
Ashfield District Council,37UB,Grafton Merchanting GB Ltd t/a Jackson Buildbase,V0997059,13/06/2022,9.6,R & B Transformation 2,Supplies & Services,T35026/D200008,Housing Stock Accounts,Payments to Contractors External
Ashfield District Council,37UB,Grafton Merchanting GB Ltd t/a Jackson Buildbase,V0997060,13/06/2022,30.94,R & B Transformation 2,Supplies & Services,T35026/D200008,Housing Stock Accounts,Payments to Contractors External
Ashfield District Council,37UB,Grafton Merchanting GB Ltd t/a Jackson Buildbase,V0997061,13/06/2022,41.04,R & B Transformation 2,Supplies & Services,T35026/D200008,Housing Stock Accounts,Payments to Contractors External
Ashfield District Council,37UB,Grafton Merchanting GB Ltd t/a Jackson Buildbase,V0997061,13/06/2022,265.8,R & B Transformation 2,Supplies & Services,T35026/D200008,Housing Stock Accounts,Payments to Contractors External
Ashfield District Council,37UB,Grafton Merchanting GB Ltd t/a Jackson Buildbase,V0997061,13/06/2022,228.48,R & B Transformation 2,Supplies & Services,T35026/D200008,Housing Stock Accounts,Payments to Contractors External
Ashfield District Council,37UB,Grafton Merchanting GB Ltd t/a Jackson Buildbase,V0997062,13/06/2022,744.6,R & B Transformation 2,Supplies & Services,T35026/D200008,Housing Stock Accounts,Payments to Contractors External
Ashfield District Council,37UB,Grafton Merchanting GB Ltd t/a Jackson Buildbase,V0997062,13/06/2022,39.36,R & B Transformation 2,Supplies & Services,T35026/D200008,Housing Stock Accounts,Payments to Contractors External
Ashfield District Council,37UB,Grafton Merchanting GB Ltd t/a Jackson Buildbase,V0997062,13/06/2022,72.09,R & B Transformation 2,Supplies & Services,T35026/D200008,Housing Stock Accounts,Payments to Contractors External
Ashfield District Council,37UB,Grafton Merchanting GB Ltd t/a Jackson Buildbase,V0997063,13/06/2022,162.1,R & B Transformation 2,Supplies & Services,T35026/D200008,Housing Stock Accounts,Payments to Contractors External
Ashfield District Council,37UB,Grafton Merchanting GB Ltd t/a Jackson Buildbase,V0997063,13/06/2022,154.5,R & B Transformation 2,Supplies & Services,T35026/D200008,Housing Stock Accounts,Payments to Contractors External
Ashfield District Council,37UB,Grafton Merchanting GB Ltd t/a Jackson Buildbase,V0997063,13/06/2022,919.8,R & B Transformation 2,Supplies & Services,T35026/D200008,Housing Stock Accounts,Payments to Contractors External
Ashfield District Council,37UB,Grafton Merchanting GB Ltd t/a Jackson Buildbase,V0997064,13/06/2022,79,R & B Transformation 2,Supplies & Services,T35026/D200008,Housing Stock Accounts,Payments to Contractors External
Ashfield District Council,37UB,Grafton Merchanting GB Ltd t/a Jackson Buildbase,V0997065,13/06/2022,270,R & B Transformation 2,Supplies & Services,T35026/D200008,Housing Stock Accounts,Payments to Contractors External
Ashfield District Council,37UB,Grafton Merchanting GB Ltd t/a Jackson Buildbase,V0997066,13/06/2022,24,R & B Transformation 2,Supplies & Services,T35026/D200008,Housing Stock Accounts,Payments to Contractors External
Ashfield District Council,37UB,Grafton Merchanting GB Ltd t/a Jackson Buildbase,V0997260,20/06/2022,-3.8,R & B Transformation 2,Supplies & Services,T35026/D200008,Housing Stock Accounts,Payments to Contractors External
Ashfield District Council,37UB,Grafton Merchanting GB Ltd t/a Jackson Buildbase,V0997413,20/06/2022,369,R & B Transformation 2,Supplies & Services,T35026/D200008,Housing Stock Accounts,Payments to Contractors External
Ashfield District Council,37UB,Grafton Merchanting GB Ltd t/a Jackson Buildbase,V0997414,20/06/2022,172.3,R & B Transformation 2,Supplies & Services,T35026/D200008,Housing Stock Accounts,Payments to Contractors External
Ashfield District Council,37UB,Grafton Merchanting GB Ltd t/a Jackson Buildbase,V0997417,20/06/2022,202.44,R & B Transformation 2,Supplies & Services,T35026/D200008,Housing Stock Accounts,Payments to Contractors External
Ashfield District Council,37UB,Grafton Merchanting GB Ltd t/a Jackson Buildbase,V0997538,20/06/2022,16.9,R & B Transformation 2,Supplies & Services,T35026/D200008,Housing Stock Accounts,Payments to Contractors External
Ashfield District Council,37UB,Grafton Merchanting GB Ltd t/a Jackson Buildbase,V0997538,20/06/2022,3.24,R & B Transformation 2,Supplies & Services,T35026/D200008,Housing Stock Accounts,Payments to Contractors External
Ashfield District Council,37UB,Grafton Merchanting GB Ltd t/a Jackson Buildbase,V0997538,20/06/2022,43.6,R & B Transformation 2,Supplies & Services,T35026/D200008,Housing Stock Accounts,Payments to Contractors External
Ashfield District Council,37UB,Grafton Merchanting GB Ltd t/a Jackson Buildbase,V0997538,20/06/2022,54.84,R & B Transformation 2,Supplies & Services,T35026/D200008,Housing Stock Accounts,Payments to Contractors External
Ashfield District Council,37UB,Grafton Merchanting GB Ltd t/a Jackson Buildbase,V0997538,20/06/2022,7.4,R & B Transformation 2,Supplies & Services,T35026/D200008,Housing Stock Accounts,Payments to Contractors External
Ashfield District Council,37UB,Grafton Merchanting GB Ltd t/a Jackson Buildbase,V0997538,20/06/2022,17.52,R & B Transformation 2,Supplies & Services,T35026/D200008,Housing Stock Accounts,Payments to Contractors External
Ashfield District Council,37UB,Grafton Merchanting GB Ltd t/a Jackson Buildbase,V0997539,20/06/2022,136.92,R & B Transformation 2,Supplies & Services,T35026/D200008,Housing Stock Accounts,Payments to Contractors External
Ashfield District Council,37UB,Grafton Merchanting GB Ltd t/a Jackson Buildbase,V0997543,20/06/2022,248.2,R & B Transformation 2,Supplies & Services,T35026/D200008,Housing Stock Accounts,Payments to Contractors External
Ashfield District Council,37UB,Grafton Merchanting GB Ltd t/a Jackson Buildbase,V0997545,20/06/2022,369,R & B Transformation 2,Supplies & Services,T35026/D200008,Housing Stock Accounts,Payments to Contractors External
Ashfield District Council,37UB,Grafton Merchanting GB Ltd t/a Jackson Buildbase,V0997546,20/06/2022,85.6,R & B Transformation 2,Supplies & Services,T35026/D200008,Housing Stock Accounts,Payments to Contractors External
Ashfield District Council,37UB,Grafton Merchanting GB Ltd t/a Jackson Buildbase,V0997547,20/06/2022,66.6,R & B Transformation 2,Supplies & Services,T35026/D200008,Housing Stock Accounts,Payments to Contractors External
Ashfield District Council,37UB,Grafton Merchanting GB Ltd t/a Jackson Buildbase,V0997589,20/06/2022,6.96,R & B Transformation 2,Supplies & Services,T35026/D200008,Housing Stock Accounts,Payments to Contractors External
Ashfield District Council,37UB,Grafton Merchanting GB Ltd t/a Jackson Buildbase,V0997590,20/06/2022,51.48,R & B Transformation 2,Supplies & Services,T35026/D200008,Housing Stock Accounts,Payments to Contractors External
Ashfield District Council,37UB,Grafton Merchanting GB Ltd t/a Jackson Buildbase,V0997591,20/06/2022,1337,R & B Transformation 2,Supplies & Services,T35026/D200008,Housing Stock Accounts,Payments to Contractors External
Ashfield District Council,37UB,Grafton Merchanting GB Ltd t/a Jackson Buildbase,V0997591,20/06/2022,272.4,R & B Transformation 2,Supplies & Services,T35026/D200008,Housing Stock Accounts,Payments to Contractors External
Ashfield District Council,37UB,Grafton Merchanting GB Ltd t/a Jackson Buildbase,V0997592,20/06/2022,19.8,R & B Transformation 2,Supplies & Services,T35026/D200008,Housing Stock Accounts,Payments to Contractors External
Ashfield District Council,37UB,Grafton Merchanting GB Ltd t/a Jackson Buildbase,V0997592,20/06/2022,73.4,R & B Transformation 2,Supplies & Services,T35026/D200008,Housing Stock Accounts,Payments to Contractors External
Ashfield District Council,37UB,Grafton Merchanting GB Ltd t/a Jackson Buildbase,V0997593,20/06/2022,336.8,R & B Transformation 2,Supplies & Services,T35026/D200008,Housing Stock Accounts,Payments to Contractors External
Ashfield District Council,37UB,Grafton Merchanting GB Ltd t/a Jackson Buildbase,V0997594,20/06/2022,66.7,R & B Transformation 2,Supplies & Services,T35026/D200008,Housing Stock Accounts,Payments to Contractors External
Ashfield District Council,37UB,Grafton Merchanting GB Ltd t/a Jackson Buildbase,V0997595,20/06/2022,157.1,R & B Transformation 2,Supplies & Services,T35026/D200008,Housing Stock Accounts,Payments to Contractors External
Ashfield District Council,37UB,Grafton Merchanting GB Ltd t/a Jackson Buildbase,V0997595,20/06/2022,101.1,R & B Transformation 2,Supplies & Services,T35026/D200008,Housing Stock Accounts,Payments to Contractors External
Ashfield District Council,37UB,Grafton Merchanting GB Ltd t/a Jackson Buildbase,V0997595,20/06/2022,238.4,R & B Transformation 2,Supplies & Services,T35026/D200008,Housing Stock Accounts,Payments to Contractors External
Ashfield District Council,37UB,Grafton Merchanting GB Ltd t/a Jackson Buildbase,V0997596,20/06/2022,22.9,R & B Transformation 2,Supplies & Services,T35026/D200008,Housing Stock Accounts,Payments to Contractors External
Ashfield District Council,37UB,Grafton Merchanting GB Ltd t/a Jackson Buildbase,V0997596,20/06/2022,11.6,R & B Transformation 2,Supplies & Services,T35026/D200008,Housing Stock Accounts,Payments to Contractors External
Ashfield District Council,37UB,Grafton Merchanting GB Ltd t/a Jackson Buildbase,V0997596,20/06/2022,51.84,R & B Transformation 2,Supplies & Services,T35026/D200008,Housing Stock Accounts,Payments to Contractors External
Ashfield District Council,37UB,Grafton Merchanting GB Ltd t/a Jackson Buildbase,V0997596,20/06/2022,7,R & B Transformation 2,Supplies & Services,T35026/D200008,Housing Stock Accounts,Payments to Contractors External
Ashfield District Council,37UB,Grafton Merchanting GB Ltd t/a Jackson Buildbase,V0997596,20/06/2022,104.5,R & B Transformation 2,Supplies & Services,T35026/D200008,Housing Stock Accounts,Payments to Contractors External
Ashfield District Council,37UB,Grafton Merchanting GB Ltd t/a Jackson Buildbase,V0997598,20/06/2022,18.5,R & B Transformation 2,Supplies & Services,T35026/D200008,Housing Stock Accounts,Payments to Contractors External
Ashfield District Council,37UB,Grafton Merchanting GB Ltd t/a Jackson Buildbase,V0997599,20/06/2022,39.6,R & B Transformation 2,Supplies & Services,T35026/D200008,Housing Stock Accounts,Payments to Contractors External
Ashfield District Council,37UB,Grafton Merchanting GB Ltd t/a Jackson Buildbase,V0997600,20/06/2022,21.9,R & B Transformation 2,Supplies & Services,T35026/D200008,Housing Stock Accounts,Payments to Contractors External
Ashfield District Council,37UB,Grafton Merchanting GB Ltd t/a Jackson Buildbase,V0997601,20/06/2022,15.32,R & B Transformation 2,Supplies & Services,T35026/D200008,Housing Stock Accounts,Payments to Contractors External
Ashfield District Council,37UB,Grafton Merchanting GB Ltd t/a Jackson Buildbase,V0997602,20/06/2022,67.56,R & B Transformation 2,Supplies & Services,T35026/D200008,Housing Stock Accounts,Payments to Contractors External
Ashfield District Council,37UB,Grafton Merchanting GB Ltd t/a Jackson Buildbase,V0997981,27/06/2022,5736,R & B Transformation 2,Supplies & Services,T35026/D200008,Housing Stock Accounts,Payments to Contractors External
Ashfield District Council,37UB,Grafton Merchanting GB Ltd t/a Jackson Buildbase,V0997983,27/06/2022,19.8,R & B Transformation 2,Supplies & Services,T35026/D200008,Housing Stock Accounts,Payments to Contractors External
Ashfield District Council,37UB,Grafton Merchanting GB Ltd t/a Jackson Buildbase,V0997984,27/06/2022,12.36,R & B Transformation 2,Supplies & Services,T35026/D200008,Housing Stock Accounts,Payments to Contractors External
Ashfield District Council,37UB,Grafton Merchanting GB Ltd t/a Jackson Buildbase,V0997984,27/06/2022,11.75,R & B Transformation 2,Supplies & Services,T35026/D200008,Housing Stock Accounts,Payments to Contractors External
Ashfield District Council,37UB,Grafton Merchanting GB Ltd t/a Jackson Buildbase,V0997985,27/06/2022,180,R & B Transformation 2,Supplies & Services,T35026/D200008,Housing Stock Accounts,Payments to Contractors External
Ashfield District Council,37UB,Grafton Merchanting GB Ltd t/a Jackson Buildbase,V0997986,27/06/2022,75,R & B Transformation 2,Supplies & Services,T35026/D200008,Housing Stock Accounts,Payments to Contractors External
Ashfield District Council,37UB,Grafton Merchanting GB Ltd t/a Jackson Buildbase,V0997987,27/06/2022,194.4,R & B Transformation 2,Supplies & Services,T35026/D200008,Housing Stock Accounts,Payments to Contractors External
Ashfield District Council,37UB,Grafton Merchanting GB Ltd t/a Jackson Buildbase,V0997987,27/06/2022,196.8,R & B Transformation 2,Supplies & Services,T35026/D200008,Housing Stock Accounts,Payments to Contractors External
Ashfield District Council,37UB,Grafton Merchanting GB Ltd t/a Jackson Buildbase,V0997988,27/06/2022,421,R & B Transformation 2,Supplies & Services,T35026/D200008,Housing Stock Accounts,Payments to Contractors External
Ashfield District Council,37UB,Grafton Merchanting GB Ltd t/a Jackson Buildbase,V0997989,27/06/2022,14.6,R & B Transformation 2,Supplies & Services,T35026/D200008,Housing Stock Accounts,Payments to Contractors External
Ashfield District Council,37UB,Grafton Merchanting GB Ltd t/a Jackson Buildbase,V0997990,27/06/2022,400.89,R & B Transformation 2,Supplies & Services,T35026/D200008,Housing Stock Accounts,Payments to Contractors External
Ashfield District Council,37UB,Grafton Merchanting GB Ltd t/a Jackson Buildbase,V0997991,27/06/2022,199.2,R & B Transformation 2,Supplies & Services,T35026/D200008,Housing Stock Accounts,Payments to Contractors External
Ashfield District Council,37UB,Grafton Merchanting GB Ltd t/a Jackson Buildbase,V0997992,27/06/2022,76.6,R & B Transformation 2,Supplies & Services,T35026/D200008,Housing Stock Accounts,Payments to Contractors External
Ashfield District Council,37UB,Grafton Merchanting GB Ltd t/a Jackson Buildbase,V0997993,27/06/2022,11.16,R & B Transformation 2,Supplies & Services,T35026/D200008,Housing Stock Accounts,Payments to Contractors External
Ashfield District Council,37UB,Grafton Merchanting GB Ltd t/a Jackson Buildbase,V0997994,27/06/2022,43.8,R & B Transformation 2,Supplies & Services,T35026/D200008,Housing Stock Accounts,Payments to Contractors External
Ashfield District Council,37UB,Grafton Merchanting GB Ltd t/a Jackson Buildbase,V0997995,27/06/2022,23,R & B Transformation 2,Supplies & Services,T35026/D200008,Housing Stock Accounts,Payments to Contractors External
Ashfield District Council,37UB,Grafton Merchanting GB Ltd t/a Jackson Buildbase,V0997996,27/06/2022,5.46,R & B Transformation 2,Supplies & Services,T35026/D200008,Housing Stock Accounts,Payments to Contractors External
Ashfield District Council,37UB,Grafton Merchanting GB Ltd t/a Jackson Buildbase,V0998133,27/06/2022,119.6,R & B Transformation 2,Supplies & Services,T35026/D200008,Housing Stock Accounts,Payments to Contractors External
Ashfield District Council,37UB,Grafton Merchanting GB Ltd t/a Jackson Buildbase,V0998133,27/06/2022,47.84,R & B Transformation 2,Supplies & Services,T35026/D200008,Housing Stock Accounts,Payments to Contractors External
Ashfield District Council,37UB,Greenham Trading Ltd,V0996565,07/06/2022,31.98,R & B Transformation 2,Supplies & Services,T35026/D200008,Housing Stock Accounts,Payments to Contractors External
Ashfield District Council,37UB,Greenham Trading Ltd,V0997535,20/06/2022,63.96,R & B Transformation 2,Supplies & Services,T35026/D200008,Housing Stock Accounts,Payments to Contractors External
Ashfield District Council,37UB,JWL (Architectural Ironmongers) Ltd,V0997419,20/06/2022,1.46,R & B Transformation 2,Supplies & Services,T35026/D200008,Housing Stock Accounts,Payments to Contractors External
Ashfield District Council,37UB,JWL (Architectural Ironmongers) Ltd,V0997420,20/06/2022,298.2,R & B Transformation 2,Supplies & Services,T35026/D200008,Housing Stock Accounts,Payments to Contractors External
Ashfield District Council,37UB,JWL (Architectural Ironmongers) Ltd,V0997968,27/06/2022,13.14,R & B Transformation 2,Supplies & Services,T35026/D200008,Housing Stock Accounts,Payments to Contractors External
Ashfield District Council,37UB,Magnet Ltd,V0997626,20/06/2022,756,R & B Transformation 2,Supplies & Services,T35026/D200008,Housing Stock Accounts,Payments to Contractors External
Ashfield District Council,37UB,Maxam Direct,V0997422,20/06/2022,389.28,R & B Transformation 2,Supplies & Services,T35026/D200008,Housing Stock Accounts,Payments to Contractors External
Ashfield District Council,37UB,Maxam Direct,V0997532,20/06/2022,226,R & B Transformation 2,Supplies & Services,T35026/D200008,Housing Stock Accounts,Payments to Contractors External
Ashfield District Council,37UB,Nationwide Hygiene Supplies Limited,V0997423,20/06/2022,159.36,R & B Transformation 2,Supplies & Services,T35026/D200008,Housing Stock Accounts,Payments to Contractors External
Ashfield District Council,37UB,Nationwide Windows Limited,V0996430,07/06/2022,310.2,R & B Transformation 2,Supplies & Services,T35026/D200008,Housing Stock Accounts,Payments to Contractors External
Ashfield District Council,37UB,Nuaire a division of Polypipe,V0997424,20/06/2022,330,R & B Transformation 2,Supplies & Services,T35026/D200008,Housing Stock Accounts,Payments to Contractors External
Ashfield District Council,37UB,Office Depot UK Limited,V0996568,07/06/2022,117.85,R & B Transformation 2,Supplies & Services,T35026/D200008,Housing Stock Accounts,Payments to Contractors External
Ashfield District Council,37UB,Permadoor,V0996437,07/06/2022,498,R & B Transformation 2,Supplies & Services,T35026/D200008,Housing Stock Accounts,Payments to Contractors External
Ashfield District Council,37UB,PWS (Protective Wear Supplies) Limited,V0996366,07/06/2022,-7.95,R & B Transformation 2,Supplies & Services,T35026/D200008,Housing Stock Accounts,Payments to Contractors External
Ashfield District Council,37UB,PWS (Protective Wear Supplies) Limited,V0996367,07/06/2022,-21.3,R & B Transformation 2,Supplies & Services,T35026/D200008,Housing Stock Accounts,Payments to Contractors External
Ashfield District Council,37UB,PWS (Protective Wear Supplies) Limited,V0996413,07/06/2022,132.48,R & B Transformation 2,Supplies & Services,T35026/D200008,Housing Stock Accounts,Payments to Contractors External
Ashfield District Council,37UB,PWS (Protective Wear Supplies) Limited,V0996413,07/06/2022,132.48,R & B Transformation 2,Supplies & Services,T35026/D200008,Housing Stock Accounts,Payments to Contractors External
Ashfield District Council,37UB,PWS (Protective Wear Supplies) Limited,V0996413,07/06/2022,132.48,R & B Transformation 2,Supplies & Services,T35026/D200008,Housing Stock Accounts,Payments to Contractors External
Ashfield District Council,37UB,PWS (Protective Wear Supplies) Limited,V0996418,07/06/2022,5.5,R & B Transformation 2,Supplies & Services,T35026/D200008,Housing Stock Accounts,Payments to Contractors External
Ashfield District Council,37UB,PWS (Protective Wear Supplies) Limited,V0996418,07/06/2022,7.2,R & B Transformation 2,Supplies & Services,T35026/D200008,Housing Stock Accounts,Payments to Contractors External
Ashfield District Council,37UB,PWS (Protective Wear Supplies) Limited,V0996418,07/06/2022,238,R & B Transformation 2,Supplies & Services,T35026/D200008,Housing Stock Accounts,Payments to Contractors External
Ashfield District Council,37UB,PWS (Protective Wear Supplies) Limited,V0996457,07/06/2022,71.82,R & B Transformation 2,Supplies & Services,T35026/D200008,Housing Stock Accounts,Payments to Contractors External
Ashfield District Council,37UB,PWS (Protective Wear Supplies) Limited,V0996457,07/06/2022,7.98,R & B Transformation 2,Supplies & Services,T35026/D200008,Housing Stock Accounts,Payments to Contractors External
Ashfield District Council,37UB,PWS (Protective Wear Supplies) Limited,V0996462,07/06/2022,97.35,R & B Transformation 2,Supplies & Services,T35026/D200008,Housing Stock Accounts,Payments to Contractors External
Ashfield District Council,37UB,PWS (Protective Wear Supplies) Limited,V0996462,07/06/2022,19.47,R & B Transformation 2,Supplies & Services,T35026/D200008,Housing Stock Accounts,Payments to Contractors External
Ashfield District Council,37UB,PWS (Protective Wear Supplies) Limited,V0996462,07/06/2022,136.29,R & B Transformation 2,Supplies & Services,T35026/D200008,Housing Stock Accounts,Payments to Contractors External
Ashfield District Council,37UB,PWS (Protective Wear Supplies) Limited,V0996462,07/06/2022,253.11,R & B Transformation 2,Supplies & Services,T35026/D200008,Housing Stock Accounts,Payments to Contractors External
Ashfield District Council,37UB,PWS (Protective Wear Supplies) Limited,V0996462,07/06/2022,116.82,R & B Transformation 2,Supplies & Services,T35026/D200008,Housing Stock Accounts,Payments to Contractors External
Ashfield District Council,37UB,PWS (Protective Wear Supplies) Limited,V0996469,07/06/2022,39.75,R & B Transformation 2,Supplies & Services,T35026/D200008,Housing Stock Accounts,Payments to Contractors External
Ashfield District Council,37UB,PWS (Protective Wear Supplies) Limited,V0996470,07/06/2022,64.76,R & B Transformation 2,Supplies & Services,T35026/D200008,Housing Stock Accounts,Payments to Contractors External
Ashfield District Council,37UB,PWS (Protective Wear Supplies) Limited,V0996470,07/06/2022,159.29,R & B Transformation 2,Supplies & Services,T35026/D200008,Housing Stock Accounts,Payments to Contractors External
Ashfield District Council,37UB,PWS (Protective Wear Supplies) Limited,V0996470,07/06/2022,87.91,R & B Transformation 2,Supplies & Services,T35026/D200008,Housing Stock Accounts,Payments to Contractors External
Ashfield District Council,37UB,PWS (Protective Wear Supplies) Limited,V0996470,07/06/2022,19.7,R & B Transformation 2,Supplies & Services,T35026/D200008,Housing Stock Accounts,Payments to Contractors External
Ashfield District Council,37UB,PWS (Protective Wear Supplies) Limited,V0996470,07/06/2022,52.2,R & B Transformation 2,Supplies & Services,T35026/D200008,Housing Stock Accounts,Payments to Contractors External
Ashfield District Council,37UB,PWS (Protective Wear Supplies) Limited,V0996470,07/06/2022,15.5,R & B Transformation 2,Supplies & Services,T35026/D200008,Housing Stock Accounts,Payments to Contractors External
Ashfield District Council,37UB,PWS (Protective Wear Supplies) Limited,V0996547,07/06/2022,96.3,R & B Transformation 2,Supplies & Services,T35026/D200008,Housing Stock Accounts,Payments to Contractors External
Ashfield District Council,37UB,PWS (Protective Wear Supplies) Limited,V0996547,07/06/2022,96.3,R & B Transformation 2,Supplies & Services,T35026/D200008,Housing Stock Accounts,Payments to Contractors External
Ashfield District Council,37UB,PWS (Protective Wear Supplies) Limited,V0996547,07/06/2022,128.4,R & B Transformation 2,Supplies & Services,T35026/D200008,Housing Stock Accounts,Payments to Contractors External
Ashfield District Council,37UB,PWS (Protective Wear Supplies) Limited,V0996547,07/06/2022,160.5,R & B Transformation 2,Supplies & Services,T35026/D200008,Housing Stock Accounts,Payments to Contractors External
Ashfield District Council,37UB,PWS (Protective Wear Supplies) Limited,V0996547,07/06/2022,96.3,R & B Transformation 2,Supplies & Services,T35026/D200008,Housing Stock Accounts,Payments to Contractors External
Ashfield District Council,37UB,PWS (Protective Wear Supplies) Limited,V0996547,07/06/2022,38.84,R & B Transformation 2,Supplies & Services,T35026/D200008,Housing Stock Accounts,Payments to Contractors External
Ashfield District Council,37UB,PWS (Protective Wear Supplies) Limited,V0996570,07/06/2022,44,R & B Transformation 2,Supplies & Services,T35026/D200008,Housing Stock Accounts,Payments to Contractors External
Ashfield District Council,37UB,PWS (Protective Wear Supplies) Limited,V0996570,07/06/2022,44,R & B Transformation 2,Supplies & Services,T35026/D200008,Housing Stock Accounts,Payments to Contractors External
Ashfield District Council,37UB,PWS (Protective Wear Supplies) Limited,V0996571,07/06/2022,132.48,R & B Transformation 2,Supplies & Services,T35026/D200008,Housing Stock Accounts,Payments to Contractors External
Ashfield District Council,37UB,PWS (Protective Wear Supplies) Limited,V0996923,13/06/2022,-10,R & B Transformation 2,Supplies & Services,T35026/D200008,Housing Stock Accounts,Payments to Contractors External
Ashfield District Council,37UB,PWS (Protective Wear Supplies) Limited,V0997071,13/06/2022,96,R & B Transformation 2,Supplies & Services,T35026/D200008,Housing Stock Accounts,Payments to Contractors External
Ashfield District Council,37UB,PWS (Protective Wear Supplies) Limited,V0997071,13/06/2022,240.5,R & B Transformation 2,Supplies & Services,T35026/D200008,Housing Stock Accounts,Payments to Contractors External
Ashfield District Council,37UB,PWS (Protective Wear Supplies) Limited,V0997071,13/06/2022,149.2,R & B Transformation 2,Supplies & Services,T35026/D200008,Housing Stock Accounts,Payments to Contractors External
Ashfield District Council,37UB,PWS (Protective Wear Supplies) Limited,V0997071,13/06/2022,71.1,R & B Transformation 2,Supplies & Services,T35026/D200008,Housing Stock Accounts,Payments to Contractors External
Ashfield District Council,37UB,PWS (Protective Wear Supplies) Limited,V0997071,13/06/2022,46.68,R & B Transformation 2,Supplies & Services,T35026/D200008,Housing Stock Accounts,Payments to Contractors External
Ashfield District Council,37UB,PWS (Protective Wear Supplies) Limited,V0997071,13/06/2022,32.4,R & B Transformation 2,Supplies & Services,T35026/D200008,Housing Stock Accounts,Payments to Contractors External
Ashfield District Council,37UB,PWS (Protective Wear Supplies) Limited,V0997071,13/06/2022,227.64,R & B Transformation 2,Supplies & Services,T35026/D200008,Housing Stock Accounts,Payments to Contractors External
Ashfield District Council,37UB,PWS (Protective Wear Supplies) Limited,V0997432,20/06/2022,7.75,R & B Transformation 2,Supplies & Services,T35026/D200008,Housing Stock Accounts,Payments to Contractors External
Ashfield District Council,37UB,PWS (Protective Wear Supplies) Limited,V0997432,20/06/2022,29.52,R & B Transformation 2,Supplies & Services,T35026/D200008,Housing Stock Accounts,Payments to Contractors External
Ashfield District Council,37UB,PWS (Protective Wear Supplies) Limited,V0997432,20/06/2022,16.7,R & B Transformation 2,Supplies & Services,T35026/D200008,Housing Stock Accounts,Payments to Contractors External
Ashfield District Council,37UB,PWS (Protective Wear Supplies) Limited,V0997433,20/06/2022,160.5,R & B Transformation 2,Supplies & Services,T35026/D200008,Housing Stock Accounts,Payments to Contractors External
Ashfield District Council,37UB,PWS (Protective Wear Supplies) Limited,V0997433,20/06/2022,160.5,R & B Transformation 2,Supplies & Services,T35026/D200008,Housing Stock Accounts,Payments to Contractors External
Ashfield District Council,37UB,PWS (Protective Wear Supplies) Limited,V0997433,20/06/2022,160.5,R & B Transformation 2,Supplies & Services,T35026/D200008,Housing Stock Accounts,Payments to Contractors External
Ashfield District Council,37UB,PWS (Protective Wear Supplies) Limited,V0997433,20/06/2022,160.5,R & B Transformation 2,Supplies & Services,T35026/D200008,Housing Stock Accounts,Payments to Contractors External
Ashfield District Council,37UB,PWS (Protective Wear Supplies) Limited,V0997434,20/06/2022,74.4,R & B Transformation 2,Supplies & Services,T35026/D200008,Housing Stock Accounts,Payments to Contractors External
Ashfield District Council,37UB,PWS (Protective Wear Supplies) Limited,V0997435,20/06/2022,3.5,R & B Transformation 2,Supplies & Services,T35026/D200008,Housing Stock Accounts,Payments to Contractors External
Ashfield District Council,37UB,PWS (Protective Wear Supplies) Limited,V0997435,20/06/2022,26.1,R & B Transformation 2,Supplies & Services,T35026/D200008,Housing Stock Accounts,Payments to Contractors External
Ashfield District Council,37UB,PWS (Protective Wear Supplies) Limited,V0997435,20/06/2022,20.88,R & B Transformation 2,Supplies & Services,T35026/D200008,Housing Stock Accounts,Payments to Contractors External
Ashfield District Council,37UB,PWS (Protective Wear Supplies) Limited,V0997435,20/06/2022,31.92,R & B Transformation 2,Supplies & Services,T35026/D200008,Housing Stock Accounts,Payments to Contractors External
Ashfield District Council,37UB,PWS (Protective Wear Supplies) Limited,V0997435,20/06/2022,52.74,R & B Transformation 2,Supplies & Services,T35026/D200008,Housing Stock Accounts,Payments to Contractors External
Ashfield District Council,37UB,PWS (Protective Wear Supplies) Limited,V0997437,20/06/2022,38.94,R & B Transformation 2,Supplies & Services,T35026/D200008,Housing Stock Accounts,Payments to Contractors External
Ashfield District Council,37UB,PWS (Protective Wear Supplies) Limited,V0997437,20/06/2022,194.7,R & B Transformation 2,Supplies & Services,T35026/D200008,Housing Stock Accounts,Payments to Contractors External
Ashfield District Council,37UB,PWS (Protective Wear Supplies) Limited,V0997437,20/06/2022,58.41,R & B Transformation 2,Supplies & Services,T35026/D200008,Housing Stock Accounts,Payments to Contractors External
Ashfield District Council,37UB,PWS (Protective Wear Supplies) Limited,V0997437,20/06/2022,80,R & B Transformation 2,Supplies & Services,T35026/D200008,Housing Stock Accounts,Payments to Contractors External
Ashfield District Council,37UB,PWS (Protective Wear Supplies) Limited,V0997437,20/06/2022,187.2,R & B Transformation 2,Supplies & Services,T35026/D200008,Housing Stock Accounts,Payments to Contractors External
Ashfield District Council,37UB,PWS (Protective Wear Supplies) Limited,V0997437,20/06/2022,37.9,R & B Transformation 2,Supplies & Services,T35026/D200008,Housing Stock Accounts,Payments to Contractors External
Ashfield District Council,37UB,PWS (Protective Wear Supplies) Limited,V0997437,20/06/2022,118.5,R & B Transformation 2,Supplies & Services,T35026/D200008,Housing Stock Accounts,Payments to Contractors External
Ashfield District Council,37UB,PWS (Protective Wear Supplies) Limited,V0997438,20/06/2022,118.5,R & B Transformation 2,Supplies & Services,T35026/D200008,Housing Stock Accounts,Payments to Contractors External
Ashfield District Council,37UB,PWS (Protective Wear Supplies) Limited,V0997438,20/06/2022,96.3,R & B Transformation 2,Supplies & Services,T35026/D200008,Housing Stock Accounts,Payments to Contractors External
Ashfield District Council,37UB,PWS (Protective Wear Supplies) Limited,V0997438,20/06/2022,119,R & B Transformation 2,Supplies & Services,T35026/D200008,Housing Stock Accounts,Payments to Contractors External
Ashfield District Council,37UB,PWS (Protective Wear Supplies) Limited,V0997438,20/06/2022,82.95,R & B Transformation 2,Supplies & Services,T35026/D200008,Housing Stock Accounts,Payments to Contractors External
Ashfield District Council,37UB,PWS (Protective Wear Supplies) Limited,V0997438,20/06/2022,55.1,R & B Transformation 2,Supplies & Services,T35026/D200008,Housing Stock Accounts,Payments to Contractors External
Ashfield District Council,37UB,PWS (Protective Wear Supplies) Limited,V0997438,20/06/2022,118.5,R & B Transformation 2,Supplies & Services,T35026/D200008,Housing Stock Accounts,Payments to Contractors External
Ashfield District Council,37UB,PWS (Protective Wear Supplies) Limited,V0997438,20/06/2022,99.36,R & B Transformation 2,Supplies & Services,T35026/D200008,Housing Stock Accounts,Payments to Contractors External
Ashfield District Council,37UB,PWS (Protective Wear Supplies) Limited,V0997438,20/06/2022,99.36,R & B Transformation 2,Supplies & Services,T35026/D200008,Housing Stock Accounts,Payments to Contractors External
Ashfield District Council,37UB,PWS (Protective Wear Supplies) Limited,V0997438,20/06/2022,120,R & B Transformation 2,Supplies & Services,T35026/D200008,Housing Stock Accounts,Payments to Contractors External
Ashfield District Council,37UB,PWS (Protective Wear Supplies) Limited,V0997438,20/06/2022,64.2,R & B Transformation 2,Supplies & Services,T35026/D200008,Housing Stock Accounts,Payments to Contractors External
Ashfield District Council,37UB,PWS (Protective Wear Supplies) Limited,V0997438,20/06/2022,38.84,R & B Transformation 2,Supplies & Services,T35026/D200008,Housing Stock Accounts,Payments to Contractors External
Ashfield District Council,37UB,PWS (Protective Wear Supplies) Limited,V0997438,20/06/2022,46.8,R & B Transformation 2,Supplies & Services,T35026/D200008,Housing Stock Accounts,Payments to Contractors External
Ashfield District Council,37UB,PWS (Protective Wear Supplies) Limited,V0997438,20/06/2022,120,R & B Transformation 2,Supplies & Services,T35026/D200008,Housing Stock Accounts,Payments to Contractors External
Ashfield District Council,37UB,PWS (Protective Wear Supplies) Limited,V0997438,20/06/2022,2.9,R & B Transformation 2,Supplies & Services,T35026/D200008,Housing Stock Accounts,Payments to Contractors External
Ashfield District Council,37UB,PWS (Protective Wear Supplies) Limited,V0997438,20/06/2022,94.8,R & B Transformation 2,Supplies & Services,T35026/D200008,Housing Stock Accounts,Payments to Contractors External
Ashfield District Council,37UB,PWS (Protective Wear Supplies) Limited,V0997530,20/06/2022,72.48,R & B Transformation 2,Supplies & Services,T35026/D200008,Housing Stock Accounts,Payments to Contractors External
Ashfield District Council,37UB,PWS (Protective Wear Supplies) Limited,V0997531,20/06/2022,18.12,R & B Transformation 2,Supplies & Services,T35026/D200008,Housing Stock Accounts,Payments to Contractors External
Ashfield District Council,37UB,PWS (Protective Wear Supplies) Limited,V0997533,20/06/2022,292.8,R & B Transformation 2,Supplies & Services,T35026/D200008,Housing Stock Accounts,Payments to Contractors External
Ashfield District Council,37UB,PWS (Protective Wear Supplies) Limited,V0997549,20/06/2022,19.47,R & B Transformation 2,Supplies & Services,T35026/D200008,Housing Stock Accounts,Payments to Contractors External
Ashfield District Council,37UB,PWS (Protective Wear Supplies) Limited,V0997974,27/06/2022,379.4,R & B Transformation 2,Supplies & Services,T35026/D200008,Housing Stock Accounts,Payments to Contractors External
Ashfield District Council,37UB,PWS (Protective Wear Supplies) Limited,V0997974,27/06/2022,151.76,R & B Transformation 2,Supplies & Services,T35026/D200008,Housing Stock Accounts,Payments to Contractors External
Ashfield District Council,37UB,PWS (Protective Wear Supplies) Limited,V0997974,27/06/2022,192.6,R & B Transformation 2,Supplies & Services,T35026/D200008,Housing Stock Accounts,Payments to Contractors External
Ashfield District Council,37UB,PWS (Protective Wear Supplies) Limited,V0997974,27/06/2022,113.82,R & B Transformation 2,Supplies & Services,T35026/D200008,Housing Stock Accounts,Payments to Contractors External
Ashfield District Council,37UB,PWS (Protective Wear Supplies) Limited,V0997974,27/06/2022,128.4,R & B Transformation 2,Supplies & Services,T35026/D200008,Housing Stock Accounts,Payments to Contractors External
Ashfield District Council,37UB,PWS (Protective Wear Supplies) Limited,V0997974,27/06/2022,64.2,R & B Transformation 2,Supplies & Services,T35026/D200008,Housing Stock Accounts,Payments to Contractors External
Ashfield District Council,37UB,Rexel UK Limited,V0996364,07/06/2022,-47,R & B Transformation 2,Supplies & Services,T35026/D200008,Housing Stock Accounts,Payments to Contractors External
Ashfield District Council,37UB,Rexel UK Limited,V0996416,07/06/2022,9.9,R & B Transformation 2,Supplies & Services,T35026/D200008,Housing Stock Accounts,Payments to Contractors External
Ashfield District Council,37UB,Rexel UK Limited,V0996417,07/06/2022,140,R & B Transformation 2,Supplies & Services,T35026/D200008,Housing Stock Accounts,Payments to Contractors External
Ashfield District Council,37UB,Rexel UK Limited,V0996419,07/06/2022,28.54,R & B Transformation 2,Supplies & Services,T35026/D200008,Housing Stock Accounts,Payments to Contractors External
Ashfield District Council,37UB,Rexel UK Limited,V0996419,07/06/2022,83.76,R & B Transformation 2,Supplies & Services,T35026/D200008,Housing Stock Accounts,Payments to Contractors External
Ashfield District Council,37UB,Rexel UK Limited,V0996420,07/06/2022,83.76,R & B Transformation 2,Supplies & Services,T35026/D200008,Housing Stock Accounts,Payments to Contractors External
Ashfield District Council,37UB,Rexel UK Limited,V0996421,07/06/2022,52.5,R & B Transformation 2,Supplies & Services,T35026/D200008,Housing Stock Accounts,Payments to Contractors External
Ashfield District Council,37UB,Rexel UK Limited,V0996422,07/06/2022,23.1,R & B Transformation 2,Supplies & Services,T35026/D200008,Housing Stock Accounts,Payments to Contractors External
Ashfield District Council,37UB,Rexel UK Limited,V0996423,07/06/2022,307.36,R & B Transformation 2,Supplies & Services,T35026/D200008,Housing Stock Accounts,Payments to Contractors External
Ashfield District Council,37UB,Rexel UK Limited,V0996424,07/06/2022,144.16,R & B Transformation 2,Supplies & Services,T35026/D200008,Housing Stock Accounts,Payments to Contractors External
Ashfield District Council,37UB,Rexel UK Limited,V0996425,07/06/2022,14.27,R & B Transformation 2,Supplies & Services,T35026/D200008,Housing Stock Accounts,Payments to Contractors External
Ashfield District Council,37UB,Rexel UK Limited,V0996435,07/06/2022,89.84,R & B Transformation 2,Supplies & Services,T35026/D200008,Housing Stock Accounts,Payments to Contractors External
Ashfield District Council,37UB,Rexel UK Limited,V0996466,07/06/2022,180.2,R & B Transformation 2,Supplies & Services,T35026/D200008,Housing Stock Accounts,Payments to Contractors External
Ashfield District Council,37UB,Rexel UK Limited,V0996574,07/06/2022,142.71,R & B Transformation 2,Supplies & Services,T35026/D200008,Housing Stock Accounts,Payments to Contractors External
Ashfield District Council,37UB,Rexel UK Limited,V0996574,07/06/2022,913.99,R & B Transformation 2,Supplies & Services,T35026/D200008,Housing Stock Accounts,Payments to Contractors External
Ashfield District Council,37UB,Rexel UK Limited,V0996574,07/06/2022,57.09,R & B Transformation 2,Supplies & Services,T35026/D200008,Housing Stock Accounts,Payments to Contractors External
Ashfield District Council,37UB,Rexel UK Limited,V0996574,07/06/2022,44.61,R & B Transformation 2,Supplies & Services,T35026/D200008,Housing Stock Accounts,Payments to Contractors External
Ashfield District Council,37UB,Rexel UK Limited,V0996575,07/06/2022,2113.2,R & B Transformation 2,Supplies & Services,T35026/D200008,Housing Stock Accounts,Payments to Contractors External
Ashfield District Council,37UB,Rexel UK Limited,V0997441,20/06/2022,29.44,R & B Transformation 2,Supplies & Services,T35026/D200008,Housing Stock Accounts,Payments to Contractors External
Ashfield District Council,37UB,Rexel UK Limited,V0997448,20/06/2022,192.5,R & B Transformation 2,Supplies & Services,T35026/D200008,Housing Stock Accounts,Payments to Contractors External
Ashfield District Council,37UB,Rexel UK Limited,V0997449,20/06/2022,16.6,R & B Transformation 2,Supplies & Services,T35026/D200008,Housing Stock Accounts,Payments to Contractors External
Ashfield District Council,37UB,Rexel UK Limited,V0997449,20/06/2022,7.36,R & B Transformation 2,Supplies & Services,T35026/D200008,Housing Stock Accounts,Payments to Contractors External
Ashfield District Council,37UB,Rexel UK Limited,V0997453,20/06/2022,231,R & B Transformation 2,Supplies & Services,T35026/D200008,Housing Stock Accounts,Payments to Contractors External
Ashfield District Council,37UB,Rexel UK Limited,V0997456,20/06/2022,167.52,R & B Transformation 2,Supplies & Services,T35026/D200008,Housing Stock Accounts,Payments to Contractors External
Ashfield District Council,37UB,Rexel UK Limited,V0997459,20/06/2022,58,R & B Transformation 2,Supplies & Services,T35026/D200008,Housing Stock Accounts,Payments to Contractors External
Ashfield District Council,37UB,Rexel UK Limited,V0997464,20/06/2022,12,R & B Transformation 2,Supplies & Services,T35026/D200008,Housing Stock Accounts,Payments to Contractors External
Ashfield District Council,37UB,Rexel UK Limited,V0997464,20/06/2022,11.4,R & B Transformation 2,Supplies & Services,T35026/D200008,Housing Stock Accounts,Payments to Contractors External
Ashfield District Council,37UB,Rexel UK Limited,V0997465,20/06/2022,123.2,R & B Transformation 2,Supplies & Services,T35026/D200008,Housing Stock Accounts,Payments to Contractors External
Ashfield District Council,37UB,Rexel UK Limited,V0997466,20/06/2022,38,R & B Transformation 2,Supplies & Services,T35026/D200008,Housing Stock Accounts,Payments to Contractors External
Ashfield District Council,37UB,Rexel UK Limited,V0997467,20/06/2022,5.7,R & B Transformation 2,Supplies & Services,T35026/D200008,Housing Stock Accounts,Payments to Contractors External
Ashfield District Council,37UB,Rexel UK Limited,V0997467,20/06/2022,38,R & B Transformation 2,Supplies & Services,T35026/D200008,Housing Stock Accounts,Payments to Contractors External
Ashfield District Council,37UB,Rexel UK Limited,V0997467,20/06/2022,67.5,R & B Transformation 2,Supplies & Services,T35026/D200008,Housing Stock Accounts,Payments to Contractors External
Ashfield District Council,37UB,Rexel UK Limited,V0997472,20/06/2022,17.8,R & B Transformation 2,Supplies & Services,T35026/D200008,Housing Stock Accounts,Payments to Contractors External
Ashfield District Council,37UB,Rexel UK Limited,V0997473,20/06/2022,20.1,R & B Transformation 2,Supplies & Services,T35026/D200008,Housing Stock Accounts,Payments to Contractors External
Ashfield District Council,37UB,Rexel UK Limited,V0997473,20/06/2022,50.4,R & B Transformation 2,Supplies & Services,T35026/D200008,Housing Stock Accounts,Payments to Contractors External
Ashfield District Council,37UB,Rexel UK Limited,V0997473,20/06/2022,17.8,R & B Transformation 2,Supplies & Services,T35026/D200008,Housing Stock Accounts,Payments to Contractors External
Ashfield District Council,37UB,Rexel UK Limited,V0997473,20/06/2022,45,R & B Transformation 2,Supplies & Services,T35026/D200008,Housing Stock Accounts,Payments to Contractors External
Ashfield District Council,37UB,Rexel UK Limited,V0997473,20/06/2022,59.6,R & B Transformation 2,Supplies & Services,T35026/D200008,Housing Stock Accounts,Payments to Contractors External
Ashfield District Council,37UB,Rexel UK Limited,V0997473,20/06/2022,91,R & B Transformation 2,Supplies & Services,T35026/D200008,Housing Stock Accounts,Payments to Contractors External
Ashfield District Council,37UB,Rexel UK Limited,V0997473,20/06/2022,38,R & B Transformation 2,Supplies & Services,T35026/D200008,Housing Stock Accounts,Payments to Contractors External
Ashfield District Council,37UB,Rexel UK Limited,V0997473,20/06/2022,96,R & B Transformation 2,Supplies & Services,T35026/D200008,Housing Stock Accounts,Payments to Contractors External
Ashfield District Council,37UB,Rexel UK Limited,V0997479,20/06/2022,123.2,R & B Transformation 2,Supplies & Services,T35026/D200008,Housing Stock Accounts,Payments to Contractors External
Ashfield District Council,37UB,Rexel UK Limited,V0997479,20/06/2022,15.6,R & B Transformation 2,Supplies & Services,T35026/D200008,Housing Stock Accounts,Payments to Contractors External
Ashfield District Council,37UB,Rexel UK Limited,V0997481,20/06/2022,14.27,R & B Transformation 2,Supplies & Services,T35026/D200008,Housing Stock Accounts,Payments to Contractors External
Ashfield District Council,37UB,Rexel UK Limited,V0997482,20/06/2022,216.24,R & B Transformation 2,Supplies & Services,T35026/D200008,Housing Stock Accounts,Payments to Contractors External
Ashfield District Council,37UB,Rexel UK Limited,V0997484,20/06/2022,178.44,R & B Transformation 2,Supplies & Services,T35026/D200008,Housing Stock Accounts,Payments to Contractors External
Ashfield District Council,37UB,Rexel UK Limited,V0997484,20/06/2022,71.36,R & B Transformation 2,Supplies & Services,T35026/D200008,Housing Stock Accounts,Payments to Contractors External
Ashfield District Council,37UB,Rexel UK Limited,V0997550,20/06/2022,23.11,R & B Transformation 2,Supplies & Services,T35026/D200008,Housing Stock Accounts,Payments to Contractors External
Ashfield District Council,37UB,Rexel UK Limited,V0997550,20/06/2022,9.9,R & B Transformation 2,Supplies & Services,T35026/D200008,Housing Stock Accounts,Payments to Contractors External
Ashfield District Council,37UB,Rexel UK Limited,V0997550,20/06/2022,23.11,R & B Transformation 2,Supplies & Services,T35026/D200008,Housing Stock Accounts,Payments to Contractors External
Ashfield District Council,37UB,Rexel UK Limited,V0997550,20/06/2022,23.11,R & B Transformation 2,Supplies & Services,T35026/D200008,Housing Stock Accounts,Payments to Contractors External
Ashfield District Council,37UB,Rexel UK Limited,V0997550,20/06/2022,0.49,R & B Transformation 2,Supplies & Services,T35026/D200008,Housing Stock Accounts,Payments to Contractors External
Ashfield District Council,37UB,Rexel UK Limited,V0997550,20/06/2022,23.11,R & B Transformation 2,Supplies & Services,T35026/D200008,Housing Stock Accounts,Payments to Contractors External
Ashfield District Council,37UB,Rexel UK Limited,V0997550,20/06/2022,23.11,R & B Transformation 2,Supplies & Services,T35026/D200008,Housing Stock Accounts,Payments to Contractors External
Ashfield District Council,37UB,Rexel UK Limited,V0997997,27/06/2022,0.9,R & B Transformation 2,Supplies & Services,T35026/D200008,Housing Stock Accounts,Payments to Contractors External
Ashfield District Council,37UB,Rexel UK Limited,V0997998,27/06/2022,33.2,R & B Transformation 2,Supplies & Services,T35026/D200008,Housing Stock Accounts,Payments to Contractors External
Ashfield District Council,37UB,Rexel UK Limited,V0997999,27/06/2022,31.4,R & B Transformation 2,Supplies & Services,T35026/D200008,Housing Stock Accounts,Payments to Contractors External
Ashfield District Council,37UB,Rexel UK Limited,V0998000,27/06/2022,214.71,R & B Transformation 2,Supplies & Services,T35026/D200008,Housing Stock Accounts,Payments to Contractors External
Ashfield District Council,37UB,Rexel UK Limited,V0998001,27/06/2022,6,R & B Transformation 2,Supplies & Services,T35026/D200008,Housing Stock Accounts,Payments to Contractors External
Ashfield District Council,37UB,Rexel UK Limited,V0998001,27/06/2022,7.8,R & B Transformation 2,Supplies & Services,T35026/D200008,Housing Stock Accounts,Payments to Contractors External
Ashfield District Council,37UB,Rexel UK Limited,V0998001,27/06/2022,6.6,R & B Transformation 2,Supplies & Services,T35026/D200008,Housing Stock Accounts,Payments to Contractors External
Ashfield District Council,37UB,Rexel UK Limited,V0998001,27/06/2022,22,R & B Transformation 2,Supplies & Services,T35026/D200008,Housing Stock Accounts,Payments to Contractors External
Ashfield District Council,37UB,Rexel UK Limited,V0998001,27/06/2022,219,R & B Transformation 2,Supplies & Services,T35026/D200008,Housing Stock Accounts,Payments to Contractors External
Ashfield District Council,37UB,Rexel UK Limited,V0998001,27/06/2022,18.78,R & B Transformation 2,Supplies & Services,T35026/D200008,Housing Stock Accounts,Payments to Contractors External
Ashfield District Council,37UB,Rexel UK Limited,V0998002,27/06/2022,69,R & B Transformation 2,Supplies & Services,T35026/D200008,Housing Stock Accounts,Payments to Contractors External
Ashfield District Council,37UB,Rexel UK Limited,V0998003,27/06/2022,621.67,R & B Transformation 2,Supplies & Services,T35026/D200008,Housing Stock Accounts,Payments to Contractors External
Ashfield District Council,37UB,Rexel UK Limited,V0998004,27/06/2022,13.5,R & B Transformation 2,Supplies & Services,T35026/D200008,Housing Stock Accounts,Payments to Contractors External
Ashfield District Council,37UB,Rexel UK Limited,V0998005,27/06/2022,11,R & B Transformation 2,Supplies & Services,T35026/D200008,Housing Stock Accounts,Payments to Contractors External
Ashfield District Council,37UB,Rexel UK Limited,V0998006,27/06/2022,4.7,R & B Transformation 2,Supplies & Services,T35026/D200008,Housing Stock Accounts,Payments to Contractors External
Ashfield District Council,37UB,Rexel UK Limited,V0998009,27/06/2022,31.4,R & B Transformation 2,Supplies & Services,T35026/D200008,Housing Stock Accounts,Payments to Contractors External
Ashfield District Council,37UB,Rexel UK Limited,V0998018,27/06/2022,1600,R & B Transformation 2,Supplies & Services,T35026/D200008,Housing Stock Accounts,Payments to Contractors External
Ashfield District Council,37UB,Rexel UK Limited,V0998020,27/06/2022,5.2,R & B Transformation 2,Supplies & Services,T35026/D200008,Housing Stock Accounts,Payments to Contractors External
Ashfield District Council,37UB,Rexel UK Limited,V0998022,27/06/2022,2113.2,R & B Transformation 2,Supplies & Services,T35026/D200008,Housing Stock Accounts,Payments to Contractors External
Ashfield District Council,37UB,Rexel UK Limited,V0998024,27/06/2022,107.36,R & B Transformation 2,Supplies & Services,T35026/D200008,Housing Stock Accounts,Payments to Contractors External
Ashfield District Council,37UB,Rexel UK Limited,V0998025,27/06/2022,125.6,R & B Transformation 2,Supplies & Services,T35026/D200008,Housing Stock Accounts,Payments to Contractors External
Ashfield District Council,37UB,Rexel UK Limited,V0998026,27/06/2022,36.4,R & B Transformation 2,Supplies & Services,T35026/D200008,Housing Stock Accounts,Payments to Contractors External
Ashfield District Council,37UB,Rexel UK Limited,V0998026,27/06/2022,0,R & B Transformation 2,Supplies & Services,T35026/D200008,Housing Stock Accounts,Payments to Contractors External
Ashfield District Council,37UB,Rexel UK Limited,V0998026,27/06/2022,17.5,R & B Transformation 2,Supplies & Services,T35026/D200008,Housing Stock Accounts,Payments to Contractors External
Ashfield District Council,37UB,Rexel UK Limited,V0998027,27/06/2022,21.8,R & B Transformation 2,Supplies & Services,T35026/D200008,Housing Stock Accounts,Payments to Contractors External
Ashfield District Council,37UB,Rexel UK Limited,V0998027,27/06/2022,20.1,R & B Transformation 2,Supplies & Services,T35026/D200008,Housing Stock Accounts,Payments to Contractors External
Ashfield District Council,37UB,Rexel UK Limited,V0998027,27/06/2022,23.6,R & B Transformation 2,Supplies & Services,T35026/D200008,Housing Stock Accounts,Payments to Contractors External
Ashfield District Council,37UB,Rexel UK Limited,V0998027,27/06/2022,76.8,R & B Transformation 2,Supplies & Services,T35026/D200008,Housing Stock Accounts,Payments to Contractors External
Ashfield District Council,37UB,Rexel UK Limited,V0998027,27/06/2022,77.6,R & B Transformation 2,Supplies & Services,T35026/D200008,Housing Stock Accounts,Payments to Contractors External
Ashfield District Council,37UB,Rexel UK Limited,V0998027,27/06/2022,8.1,R & B Transformation 2,Supplies & Services,T35026/D200008,Housing Stock Accounts,Payments to Contractors External
Ashfield District Council,37UB,Rexel UK Limited,V0998027,27/06/2022,56,R & B Transformation 2,Supplies & Services,T35026/D200008,Housing Stock Accounts,Payments to Contractors External
Ashfield District Council,37UB,Rexel UK Limited,V0998027,27/06/2022,18,R & B Transformation 2,Supplies & Services,T35026/D200008,Housing Stock Accounts,Payments to Contractors External
Ashfield District Council,37UB,Rexel UK Limited,V0998028,27/06/2022,46.21,R & B Transformation 2,Supplies & Services,T35026/D200008,Housing Stock Accounts,Payments to Contractors External
Ashfield District Council,37UB,Rexel UK Limited,V0998030,27/06/2022,92.42,R & B Transformation 2,Supplies & Services,T35026/D200008,Housing Stock Accounts,Payments to Contractors External
Ashfield District Council,37UB,Rexel UK Limited,V0998030,27/06/2022,92.42,R & B Transformation 2,Supplies & Services,T35026/D200008,Housing Stock Accounts,Payments to Contractors External
Ashfield District Council,37UB,Rexel UK Limited,V0998031,27/06/2022,156.46,R & B Transformation 2,Supplies & Services,T35026/D200008,Housing Stock Accounts,Payments to Contractors External
Ashfield District Council,37UB,Ritherdon & Co Ltd,V0997486,20/06/2022,491.48,R & B Transformation 2,Supplies & Services,T35026/D200008,Housing Stock Accounts,Payments to Contractors External
Ashfield District Council,37UB,Ritherdon & Co Ltd,V0997486,20/06/2022,122.87,R & B Transformation 2,Supplies & Services,T35026/D200008,Housing Stock Accounts,Payments to Contractors External
Ashfield District Council,37UB,Smith Bros (Caer Conan) Wholesale Ltd,V0997487,20/06/2022,28700,R & B Transformation 2,Supplies & Services,T35026/D200008,Housing Stock Accounts,Payments to Contractors External
Ashfield District Council,37UB,Smith Bros (Caer Conan) Wholesale Ltd,V0997521,20/06/2022,53.16,R & B Transformation 2,Supplies & Services,T35026/D200008,Housing Stock Accounts,Payments to Contractors External
Ashfield District Council,37UB,Supra UK Ltd t/a The Key Safe Company,V0997978,27/06/2022,899.1,R & B Transformation 2,Supplies & Services,T35026/D200008,Housing Stock Accounts,Payments to Contractors External
Ashfield District Council,37UB,Symphony Group,V0996460,07/06/2022,119.2,R & B Transformation 2,Supplies & Services,T35026/D200008,Housing Stock Accounts,Payments to Contractors External
Ashfield District Council,37UB,Symphony Group,V0996460,07/06/2022,171,R & B Transformation 2,Supplies & Services,T35026/D200008,Housing Stock Accounts,Payments to Contractors External
Ashfield District Council,37UB,Symphony Group,V0996460,07/06/2022,161,R & B Transformation 2,Supplies & Services,T35026/D200008,Housing Stock Accounts,Payments to Contractors External
Ashfield District Council,37UB,Symphony Group,V0996460,07/06/2022,275.2,R & B Transformation 2,Supplies & Services,T35026/D200008,Housing Stock Accounts,Payments to Contractors External
Ashfield District Council,37UB,Symphony Group,V0996461,07/06/2022,157.85,R & B Transformation 2,Supplies & Services,T35026/D200008,Housing Stock Accounts,Payments to Contractors External
Ashfield District Council,37UB,Symphony Group,V0996461,07/06/2022,552,R & B Transformation 2,Supplies & Services,T35026/D200008,Housing Stock Accounts,Payments to Contractors External
Ashfield District Council,37UB,Symphony Group,V0996461,07/06/2022,274.6,R & B Transformation 2,Supplies & Services,T35026/D200008,Housing Stock Accounts,Payments to Contractors External
Ashfield District Council,37UB,Symphony Group,V0996461,07/06/2022,412.8,R & B Transformation 2,Supplies & Services,T35026/D200008,Housing Stock Accounts,Payments to Contractors External
Ashfield District Council,37UB,Symphony Group,V0997524,20/06/2022,1525.6,R & B Transformation 2,Supplies & Services,T35026/D200008,Housing Stock Accounts,Payments to Contractors External
Ashfield District Council,37UB,Wolseley UK Limited,V0996389,07/06/2022,36.47,R & B Transformation 2,Supplies & Services,T35026/D200008,Housing Stock Accounts,Payments to Contractors External
Ashfield District Council,37UB,Wolseley UK Limited,V0996390,07/06/2022,191.88,R & B Transformation 2,Supplies & Services,T35026/D200008,Housing Stock Accounts,Payments to Contractors External
Ashfield District Council,37UB,Wolseley UK Limited,V0996391,07/06/2022,8.55,R & B Transformation 2,Supplies & Services,T35026/D200008,Housing Stock Accounts,Payments to Contractors External
Ashfield District Council,37UB,Wolseley UK Limited,V0996396,07/06/2022,590.34,R & B Transformation 2,Supplies & Services,T35026/D200008,Housing Stock Accounts,Payments to Contractors External
Ashfield District Council,37UB,Wolseley UK Limited,V0996396,07/06/2022,928.76,R & B Transformation 2,Supplies & Services,T35026/D200008,Housing Stock Accounts,Payments to Contractors External
Ashfield District Council,37UB,Wolseley UK Limited,V0996397,07/06/2022,188.6,R & B Transformation 2,Supplies & Services,T35026/D200008,Housing Stock Accounts,Payments to Contractors External
Ashfield District Council,37UB,Wolseley UK Limited,V0996403,07/06/2022,90.98,R & B Transformation 2,Supplies & Services,T35026/D200008,Housing Stock Accounts,Payments to Contractors External
Ashfield District Council,37UB,Wolseley UK Limited,V0996407,07/06/2022,193.8,R & B Transformation 2,Supplies & Services,T35026/D200008,Housing Stock Accounts,Payments to Contractors External
Ashfield District Council,37UB,Wolseley UK Limited,V0996544,07/06/2022,109.5,R & B Transformation 2,Supplies & Services,T35026/D200008,Housing Stock Accounts,Payments to Contractors External
Ashfield District Council,37UB,Wolseley UK Limited,V0996546,07/06/2022,20.16,R & B Transformation 2,Supplies & Services,T35026/D200008,Housing Stock Accounts,Payments to Contractors External
Ashfield District Council,37UB,Wolseley UK Limited,V0996546,07/06/2022,36.5,R & B Transformation 2,Supplies & Services,T35026/D200008,Housing Stock Accounts,Payments to Contractors External
Ashfield District Council,37UB,Wolseley UK Limited,V0997257,20/06/2022,-168.6,R & B Transformation 2,Supplies & Services,T35026/D200008,Housing Stock Accounts,Payments to Contractors External
Ashfield District Council,37UB,Wolseley UK Limited,V0997258,20/06/2022,-26.94,R & B Transformation 2,Supplies & Services,T35026/D200008,Housing Stock Accounts,Payments to Contractors External
Ashfield District Council,37UB,Wolseley UK Limited,V0997494,20/06/2022,26.05,R & B Transformation 2,Supplies & Services,T35026/D200008,Housing Stock Accounts,Payments to Contractors External
Ashfield District Council,37UB,Wolseley UK Limited,V0997495,20/06/2022,781.74,R & B Transformation 2,Supplies & Services,T35026/D200008,Housing Stock Accounts,Payments to Contractors External
Ashfield District Council,37UB,Wolseley UK Limited,V0997495,20/06/2022,37.74,R & B Transformation 2,Supplies & Services,T35026/D200008,Housing Stock Accounts,Payments to Contractors External
Ashfield District Council,37UB,Wolseley UK Limited,V0997495,20/06/2022,216,R & B Transformation 2,Supplies & Services,T35026/D200008,Housing Stock Accounts,Payments to Contractors External
Ashfield District Council,37UB,Wolseley UK Limited,V0997495,20/06/2022,327.6,R & B Transformation 2,Supplies & Services,T35026/D200008,Housing Stock Accounts,Payments to Contractors External
Ashfield District Council,37UB,Wolseley UK Limited,V0997496,20/06/2022,1225.6,R & B Transformation 2,Supplies & Services,T35026/D200008,Housing Stock Accounts,Payments to Contractors External
Ashfield District Council,37UB,Wolseley UK Limited,V0997496,20/06/2022,140.85,R & B Transformation 2,Supplies & Services,T35026/D200008,Housing Stock Accounts,Payments to Contractors External
Ashfield District Council,37UB,Wolseley UK Limited,V0997496,20/06/2022,57.4,R & B Transformation 2,Supplies & Services,T35026/D200008,Housing Stock Accounts,Payments to Contractors External
Ashfield District Council,37UB,Wolseley UK Limited,V0997496,20/06/2022,242.07,R & B Transformation 2,Supplies & Services,T35026/D200008,Housing Stock Accounts,Payments to Contractors External
Ashfield District Council,37UB,Wolseley UK Limited,V0997496,20/06/2022,220.3,R & B Transformation 2,Supplies & Services,T35026/D200008,Housing Stock Accounts,Payments to Contractors External
Ashfield District Council,37UB,Wolseley UK Limited,V0997496,20/06/2022,360.64,R & B Transformation 2,Supplies & Services,T35026/D200008,Housing Stock Accounts,Payments to Contractors External
Ashfield District Council,37UB,Wolseley UK Limited,V0997496,20/06/2022,111.6,R & B Transformation 2,Supplies & Services,T35026/D200008,Housing Stock Accounts,Payments to Contractors External
Ashfield District Council,37UB,Wolseley UK Limited,V0997496,20/06/2022,127.94,R & B Transformation 2,Supplies & Services,T35026/D200008,Housing Stock Accounts,Payments to Contractors External
Ashfield District Council,37UB,Wolseley UK Limited,V0997497,20/06/2022,53.56,R & B Transformation 2,Supplies & Services,T35026/D200008,Housing Stock Accounts,Payments to Contractors External
Ashfield District Council,37UB,Wolseley UK Limited,V0997498,20/06/2022,7.4,R & B Transformation 2,Supplies & Services,T35026/D200008,Housing Stock Accounts,Payments to Contractors External
Ashfield District Council,37UB,Wolseley UK Limited,V0997498,20/06/2022,442.12,R & B Transformation 2,Supplies & Services,T35026/D200008,Housing Stock Accounts,Payments to Contractors External
Ashfield District Council,37UB,Wolseley UK Limited,V0997498,20/06/2022,19.8,R & B Transformation 2,Supplies & Services,T35026/D200008,Housing Stock Accounts,Payments to Contractors External
Ashfield District Council,37UB,Wolseley UK Limited,V0997498,20/06/2022,30.46,R & B Transformation 2,Supplies & Services,T35026/D200008,Housing Stock Accounts,Payments to Contractors External
Ashfield District Council,37UB,Wolseley UK Limited,V0997498,20/06/2022,224.95,R & B Transformation 2,Supplies & Services,T35026/D200008,Housing Stock Accounts,Payments to Contractors External
Ashfield District Council,37UB,Wolseley UK Limited,V0997498,20/06/2022,38.4,R & B Transformation 2,Supplies & Services,T35026/D200008,Housing Stock Accounts,Payments to Contractors External
Ashfield District Council,37UB,Wolseley UK Limited,V0997498,20/06/2022,292.48,R & B Transformation 2,Supplies & Services,T35026/D200008,Housing Stock Accounts,Payments to Contractors External
Ashfield District Council,37UB,Wolseley UK Limited,V0997498,20/06/2022,63,R & B Transformation 2,Supplies & Services,T35026/D200008,Housing Stock Accounts,Payments to Contractors External
Ashfield District Council,37UB,Wolseley UK Limited,V0997498,20/06/2022,80.34,R & B Transformation 2,Supplies & Services,T35026/D200008,Housing Stock Accounts,Payments to Contractors External
Ashfield District Council,37UB,Wolseley UK Limited,V0997498,20/06/2022,24.3,R & B Transformation 2,Supplies & Services,T35026/D200008,Housing Stock Accounts,Payments to Contractors External
Ashfield District Council,37UB,Wolseley UK Limited,V0997499,20/06/2022,24.72,R & B Transformation 2,Supplies & Services,T35026/D200008,Housing Stock Accounts,Payments to Contractors External
Ashfield District Council,37UB,Wolseley UK Limited,V0997499,20/06/2022,6.55,R & B Transformation 2,Supplies & Services,T35026/D200008,Housing Stock Accounts,Payments to Contractors External
Ashfield District Council,37UB,Wolseley UK Limited,V0997502,20/06/2022,221.6,R & B Transformation 2,Supplies & Services,T35026/D200008,Housing Stock Accounts,Payments to Contractors External
Ashfield District Council,37UB,Wolseley UK Limited,V0997504,20/06/2022,110.8,R & B Transformation 2,Supplies & Services,T35026/D200008,Housing Stock Accounts,Payments to Contractors External
Ashfield District Council,37UB,Wolseley UK Limited,V0997505,20/06/2022,66.5,R & B Transformation 2,Supplies & Services,T35026/D200008,Housing Stock Accounts,Payments to Contractors External
Ashfield District Council,37UB,Wolseley UK Limited,V0997505,20/06/2022,487.11,R & B Transformation 2,Supplies & Services,T35026/D200008,Housing Stock Accounts,Payments to Contractors External
Ashfield District Council,37UB,Wolseley UK Limited,V0997505,20/06/2022,135.58,R & B Transformation 2,Supplies & Services,T35026/D200008,Housing Stock Accounts,Payments to Contractors External
Ashfield District Council,37UB,Wolseley UK Limited,V0997505,20/06/2022,309,R & B Transformation 2,Supplies & Services,T35026/D200008,Housing Stock Accounts,Payments to Contractors External
Ashfield District Council,37UB,Wolseley UK Limited,V0997505,20/06/2022,24,R & B Transformation 2,Supplies & Services,T35026/D200008,Housing Stock Accounts,Payments to Contractors External
Ashfield District Council,37UB,Wolseley UK Limited,V0997505,20/06/2022,175.9,R & B Transformation 2,Supplies & Services,T35026/D200008,Housing Stock Accounts,Payments to Contractors External
Ashfield District Council,37UB,Wolseley UK Limited,V0997505,20/06/2022,54.74,R & B Transformation 2,Supplies & Services,T35026/D200008,Housing Stock Accounts,Payments to Contractors External
Ashfield District Council,37UB,Wolseley UK Limited,V0997505,20/06/2022,342.08,R & B Transformation 2,Supplies & Services,T35026/D200008,Housing Stock Accounts,Payments to Contractors External
Ashfield District Council,37UB,Wolseley UK Limited,V0997506,20/06/2022,54.7,R & B Transformation 2,Supplies & Services,T35026/D200008,Housing Stock Accounts,Payments to Contractors External
Ashfield District Council,37UB,Wolseley UK Limited,V0997507,20/06/2022,983.9,R & B Transformation 2,Supplies & Services,T35026/D200008,Housing Stock Accounts,Payments to Contractors External
Ashfield District Council,37UB,Wolseley UK Limited,V0997509,20/06/2022,327.6,R & B Transformation 2,Supplies & Services,T35026/D200008,Housing Stock Accounts,Payments to Contractors External
Ashfield District Council,37UB,Wolseley UK Limited,V0997509,20/06/2022,983.9,R & B Transformation 2,Supplies & Services,T35026/D200008,Housing Stock Accounts,Payments to Contractors External
Ashfield District Council,37UB,Wolseley UK Limited,V0997510,20/06/2022,269.52,R & B Transformation 2,Supplies & Services,T35026/D200008,Housing Stock Accounts,Payments to Contractors External
Ashfield District Council,37UB,Wolseley UK Limited,V0997510,20/06/2022,119.34,R & B Transformation 2,Supplies & Services,T35026/D200008,Housing Stock Accounts,Payments to Contractors External
Ashfield District Council,37UB,Wolseley UK Limited,V0997510,20/06/2022,449.49,R & B Transformation 2,Supplies & Services,T35026/D200008,Housing Stock Accounts,Payments to Contractors External
Ashfield District Council,37UB,Wolseley UK Limited,V0997510,20/06/2022,77.25,R & B Transformation 2,Supplies & Services,T35026/D200008,Housing Stock Accounts,Payments to Contractors External
Ashfield District Council,37UB,Wolseley UK Limited,V0997510,20/06/2022,67.5,R & B Transformation 2,Supplies & Services,T35026/D200008,Housing Stock Accounts,Payments to Contractors External
Ashfield District Council,37UB,Wolseley UK Limited,V0997510,20/06/2022,120.8,R & B Transformation 2,Supplies & Services,T35026/D200008,Housing Stock Accounts,Payments to Contractors External
Ashfield District Council,37UB,Wolseley UK Limited,V0997514,20/06/2022,301.76,R & B Transformation 2,Supplies & Services,T35026/D200008,Housing Stock Accounts,Payments to Contractors External
Ashfield District Council,37UB,Wolseley UK Limited,V0997514,20/06/2022,119.21,R & B Transformation 2,Supplies & Services,T35026/D200008,Housing Stock Accounts,Payments to Contractors External
Ashfield District Council,37UB,Wolseley UK Limited,V0997515,20/06/2022,24.6,R & B Transformation 2,Supplies & Services,T35026/D200008,Housing Stock Accounts,Payments to Contractors External
Ashfield District Council,37UB,Wolseley UK Limited,V0997515,20/06/2022,89.2,R & B Transformation 2,Supplies & Services,T35026/D200008,Housing Stock Accounts,Payments to Contractors External
Ashfield District Council,37UB,Wolseley UK Limited,V0997515,20/06/2022,23.3,R & B Transformation 2,Supplies & Services,T35026/D200008,Housing Stock Accounts,Payments to Contractors External
Ashfield District Council,37UB,Wolseley UK Limited,V0997515,20/06/2022,254.34,R & B Transformation 2,Supplies & Services,T35026/D200008,Housing Stock Accounts,Payments to Contractors External
Ashfield District Council,37UB,Wolseley UK Limited,V0997515,20/06/2022,872.68,R & B Transformation 2,Supplies & Services,T35026/D200008,Housing Stock Accounts,Payments to Contractors External
Ashfield District Council,37UB,Wolseley UK Limited,V0997515,20/06/2022,74.4,R & B Transformation 2,Supplies & Services,T35026/D200008,Housing Stock Accounts,Payments to Contractors External
Ashfield District Council,37UB,Wolseley UK Limited,V0997515,20/06/2022,13.5,R & B Transformation 2,Supplies & Services,T35026/D200008,Housing Stock Accounts,Payments to Contractors External
Ashfield District Council,37UB,Wolseley UK Limited,V0997515,20/06/2022,218.67,R & B Transformation 2,Supplies & Services,T35026/D200008,Housing Stock Accounts,Payments to Contractors External
Ashfield District Council,37UB,Wolseley UK Limited,V0997515,20/06/2022,212.8,R & B Transformation 2,Supplies & Services,T35026/D200008,Housing Stock Accounts,Payments to Contractors External
Ashfield District Council,37UB,Wolseley UK Limited,V0997516,20/06/2022,7.65,R & B Transformation 2,Supplies & Services,T35026/D200008,Housing Stock Accounts,Payments to Contractors External
Ashfield District Council,37UB,Wood Lane Timber Merchants Ltd,V0996467,07/06/2022,1265,R & B Transformation 2,Supplies & Services,T35026/D200008,Housing Stock Accounts,Payments to Contractors External
Ashfield District Council,37UB,Wood Lane Timber Merchants Ltd,V0996471,07/06/2022,17.49,R & B Transformation 2,Supplies & Services,T35026/D200008,Housing Stock Accounts,Payments to Contractors External
Ashfield District Council,37UB,Wood Lane Timber Merchants Ltd,V0996472,07/06/2022,239.85,R & B Transformation 2,Supplies & Services,T35026/D200008,Housing Stock Accounts,Payments to Contractors External
Ashfield District Council,37UB,Wood Lane Timber Merchants Ltd,V0996473,07/06/2022,380.8,R & B Transformation 2,Supplies & Services,T35026/D200008,Housing Stock Accounts,Payments to Contractors External
Ashfield District Council,37UB,Wood Lane Timber Merchants Ltd,V0996473,07/06/2022,266.4,R & B Transformation 2,Supplies & Services,T35026/D200008,Housing Stock Accounts,Payments to Contractors External
Ashfield District Council,37UB,Wood Lane Timber Merchants Ltd,V0996473,07/06/2022,79.95,R & B Transformation 2,Supplies & Services,T35026/D200008,Housing Stock Accounts,Payments to Contractors External
Ashfield District Council,37UB,Wood Lane Timber Merchants Ltd,V0996473,07/06/2022,822.5,R & B Transformation 2,Supplies & Services,T35026/D200008,Housing Stock Accounts,Payments to Contractors External
Ashfield District Council,37UB,Wood Lane Timber Merchants Ltd,V0996473,07/06/2022,722.4,R & B Transformation 2,Supplies & Services,T35026/D200008,Housing Stock Accounts,Payments to Contractors External
Ashfield District Council,37UB,Wood Lane Timber Merchants Ltd,V0996474,07/06/2022,399.6,R & B Transformation 2,Supplies & Services,T35026/D200008,Housing Stock Accounts,Payments to Contractors External
Ashfield District Council,37UB,Wood Lane Timber Merchants Ltd,V0996474,07/06/2022,157.41,R & B Transformation 2,Supplies & Services,T35026/D200008,Housing Stock Accounts,Payments to Contractors External
Ashfield District Council,37UB,Wood Lane Timber Merchants Ltd,V0996475,07/06/2022,685,R & B Transformation 2,Supplies & Services,T35026/D200008,Housing Stock Accounts,Payments to Contractors External
Ashfield District Council,37UB,Wood Lane Timber Merchants Ltd,V0996569,07/06/2022,474,R & B Transformation 2,Supplies & Services,T35026/D200008,Housing Stock Accounts,Payments to Contractors External
Ashfield District Council,37UB,Alma Engineering Co,V0997244,16/06/2022,142,Place & Communities 2,Transport Related Expenses,T35002/C011,Stock Account,Parts
Ashfield District Council,37UB,ATE (UK) Ltd,V0997735,23/06/2022,9.95,Place & Communities 2,Transport Related Expenses,T35002/C011,Stock Account,Parts
Ashfield District Council,37UB,ATE (UK) Ltd,V0997735,23/06/2022,162,Place & Communities 2,Transport Related Expenses,T35002/C011,Stock Account,Parts
Ashfield District Council,37UB,B & B Tractors,V0996359,01/06/2022,31.73,Place & Communities 2,Transport Related Expenses,T35002/C011,Stock Account,Parts
Ashfield District Council,37UB,B & B Tractors,V0997218,16/06/2022,290.36,Place & Communities 2,Transport Related Expenses,T35002/C011,Stock Account,Parts
Ashfield District Council,37UB,B & B Tractors,V0997219,16/06/2022,188,Place & Communities 2,Transport Related Expenses,T35002/C011,Stock Account,Parts
Ashfield District Council,37UB,Bapp Industrial Supplies (Mansfield) Ltd,V0997733,23/06/2022,17,Place & Communities 2,Transport Related Expenses,T35002/C011,Stock Account,Parts
Ashfield District Council,37UB,Bucher Municipal Limited,V0996812,09/06/2022,382.46,Place & Communities 2,Transport Related Expenses,T35002/C011,Stock Account,Parts
Ashfield District Council,37UB,Bucher Municipal Limited,V0996812,09/06/2022,79.72,Place & Communities 2,Transport Related Expenses,T35002/C011,Stock Account,Parts
Ashfield District Council,37UB,Certas Energy UK Ltd t/a Pace Fuelcare,V0996245,01/06/2022,2808.4,Place & Communities 2,Supplies & Services,T35001/D001004,Stock Account,Chemicals and Materials Purchase
Ashfield District Council,37UB,Certas Energy UK Ltd t/a Pace Fuelcare,V0996826,09/06/2022,2853.4,Place & Communities 2,Supplies & Services,T35001/D001004,Stock Account,Chemicals and Materials Purchase
Ashfield District Council,37UB,Certas Energy UK Ltd t/a Pace Fuelcare,V0997096,16/06/2022,23023.1,Place & Communities 2,Supplies & Services,T35001/D001004,Stock Account,Chemicals and Materials Purchase
Ashfield District Council,37UB,Certas Energy UK Ltd t/a Pace Fuelcare,V0997784,23/06/2022,23666.79,Place & Communities 2,Supplies & Services,T35001/D001004,Stock Account,Chemicals and Materials Purchase
Ashfield District Council,37UB,Chemodex Ltd,V0997646,16/06/2022,850,Place & Communities 2,Supplies & Services,T35001/D001004,Stock Account,Chemicals and Materials Purchase
Ashfield District Council,37UB,Chemodex Ltd,V0997713,23/06/2022,327.65,Place & Communities 2,Transport Related Expenses,T35004/C005,Stock Account,Lubricants
Ashfield District Council,37UB,Chemodex Ltd,V0997728,23/06/2022,327.65,Place & Communities 2,Transport Related Expenses,T35004/C005,Stock Account,Lubricants
Ashfield District Council,37UB,Crowfoots Carriers (Derby) Ltd,V0996888,09/06/2022,20,Place & Communities 2,Transport Related Expenses,T35002/C011,Stock Account,Parts
Ashfield District Council,37UB,Davenport Accident Repair Centre,V0996325,01/06/2022,1624.44,Place & Communities 2,Transport Related Expenses,T35002/C011,Stock Account,Parts
Ashfield District Council,37UB,Davmac Spares Ltd,V0996265,01/06/2022,26.86,Place & Communities 2,Transport Related Expenses,T35002/C011,Stock Account,Parts
Ashfield District Council,37UB,Davmac Spares Ltd,V0996269,16/06/2022,26.08,Place & Communities 2,Transport Related Expenses,T35002/C011,Stock Account,Parts
Ashfield District Council,37UB,Davmac Spares Ltd,V0997156,16/06/2022,9.09,Place & Communities 2,Transport Related Expenses,T35002/C011,Stock Account,Parts
Ashfield District Council,37UB,Davmac Spares Ltd,V0997640,16/06/2022,7.82,Place & Communities 2,Transport Related Expenses,T35002/C011,Stock Account,Parts
Ashfield District Council,37UB,Davmac Spares Ltd,V0997640,16/06/2022,18,Place & Communities 2,Transport Related Expenses,T35002/C011,Stock Account,Parts
Ashfield District Council,37UB,Davmac Spares Ltd,V0997641,16/06/2022,9.09,Place & Communities 2,Transport Related Expenses,T35002/C011,Stock Account,Parts
Ashfield District Council,37UB,Davmac Spares Ltd,V0997751,23/06/2022,8.98,Place & Communities 2,Transport Related Expenses,T35002/C011,Stock Account,Parts
Ashfield District Council,37UB,Dennis Eagle Limited,V0994731,01/06/2022,211.9,Place & Communities 2,Transport Related Expenses,T35002/C011,Stock Account,Parts
Ashfield District Council,37UB,Dennis Eagle Limited,V0995182,01/06/2022,359.91,Place & Communities 2,Transport Related Expenses,T35002/C011,Stock Account,Parts
Ashfield District Council,37UB,Dennis Eagle Limited,V0995858,01/06/2022,-571.81,Place & Communities 2,Transport Related Expenses,T35002/C011,Stock Account,Parts
Ashfield District Council,37UB,Dennis Eagle Limited,V0996298,01/06/2022,42.22,Place & Communities 2,Transport Related Expenses,T35002/C011,Stock Account,Parts
Ashfield District Council,37UB,Dennis Eagle Limited,V0996298,01/06/2022,6.17,Place & Communities 2,Transport Related Expenses,T35002/C011,Stock Account,Parts
Ashfield District Council,37UB,Dennis Eagle Limited,V0996298,01/06/2022,50.72,Place & Communities 2,Transport Related Expenses,T35002/C011,Stock Account,Parts
Ashfield District Council,37UB,Dennis Eagle Limited,V0996298,01/06/2022,27.1,Place & Communities 2,Transport Related Expenses,T35002/C011,Stock Account,Parts
Ashfield District Council,37UB,Dennis Eagle Limited,V0996298,01/06/2022,89.38,Place & Communities 2,Transport Related Expenses,T35002/C011,Stock Account,Parts
Ashfield District Council,37UB,Dennis Eagle Limited,V0996298,01/06/2022,13.46,Place & Communities 2,Transport Related Expenses,T35002/C011,Stock Account,Parts
Ashfield District Council,37UB,Dennis Eagle Limited,V0996702,01/06/2022,211.59,Place & Communities 2,Transport Related Expenses,T35002/C011,Stock Account,Parts
Ashfield District Council,37UB,Dennis Eagle Limited,V0996705,01/06/2022,542.8,Place & Communities 2,Transport Related Expenses,T35002/C011,Stock Account,Parts
Ashfield District Council,37UB,Dennis Eagle Limited,V0996705,01/06/2022,21.11,Place & Communities 2,Transport Related Expenses,T35002/C011,Stock Account,Parts
Ashfield District Council,37UB,Dennis Eagle Limited,V0996706,01/06/2022,242,Place & Communities 2,Transport Related Expenses,T35002/C011,Stock Account,Parts
Ashfield District Council,37UB,Dennis Eagle Limited,V0996706,01/06/2022,54.2,Place & Communities 2,Transport Related Expenses,T35002/C011,Stock Account,Parts
Ashfield District Council,37UB,Dennis Eagle Limited,V0996706,01/06/2022,59.89,Place & Communities 2,Transport Related Expenses,T35002/C011,Stock Account,Parts
Ashfield District Council,37UB,Dennis Eagle Limited,V0996717,01/06/2022,790.25,Place & Communities 2,Transport Related Expenses,T35002/C011,Stock Account,Parts
Ashfield District Council,37UB,Dennis Eagle Limited,V0996717,01/06/2022,790.25,Place & Communities 2,Transport Related Expenses,T35002/C011,Stock Account,Parts
Ashfield District Council,37UB,Dennis Eagle Limited,V0996820,09/06/2022,267.36,Place & Communities 2,Transport Related Expenses,T35002/C011,Stock Account,Parts
Ashfield District Council,37UB,Dennis Eagle Limited,V0996820,09/06/2022,298.61,Place & Communities 2,Transport Related Expenses,T35002/C011,Stock Account,Parts
Ashfield District Council,37UB,Dennis Eagle Limited,V0996820,09/06/2022,12.99,Place & Communities 2,Transport Related Expenses,T35002/C011,Stock Account,Parts
Ashfield District Council,37UB,Dennis Eagle Limited,V0996821,09/06/2022,44.15,Place & Communities 2,Transport Related Expenses,T35002/C011,Stock Account,Parts
Ashfield District Council,37UB,Dennis Eagle Limited,V0996821,09/06/2022,27.1,Place & Communities 2,Transport Related Expenses,T35002/C011,Stock Account,Parts
Ashfield District Council,37UB,Dennis Eagle Limited,V0996850,09/06/2022,61.38,Place & Communities 2,Transport Related Expenses,T35002/C011,Stock Account,Parts
Ashfield District Council,37UB,Dennis Eagle Limited,V0996850,09/06/2022,47.23,Place & Communities 2,Transport Related Expenses,T35002/C011,Stock Account,Parts
Ashfield District Council,37UB,Dennis Eagle Limited,V0996850,09/06/2022,20,Place & Communities 2,Transport Related Expenses,T35002/C011,Stock Account,Parts
Ashfield District Council,37UB,Dennis Eagle Limited,V0996850,09/06/2022,4.17,Place & Communities 2,Transport Related Expenses,T35002/C011,Stock Account,Parts
Ashfield District Council,37UB,Dennis Eagle Limited,V0995857,16/06/2022,73.31,Place & Communities 2,Transport Related Expenses,T35002/C011,Stock Account,Parts
Ashfield District Council,37UB,Dennis Eagle Limited,V0996710,16/06/2022,400.57,Place & Communities 2,Transport Related Expenses,T35002/C011,Stock Account,Parts
Ashfield District Council,37UB,Dennis Eagle Limited,V0996711,16/06/2022,125,Place & Communities 2,Transport Related Expenses,T35002/C011,Stock Account,Parts
Ashfield District Council,37UB,Dennis Eagle Limited,V0996799,16/06/2022,400.57,Place & Communities 2,Transport Related Expenses,T35002/C011,Stock Account,Parts
Ashfield District Council,37UB,Dennis Eagle Limited,V0996799,16/06/2022,854.63,Place & Communities 2,Transport Related Expenses,T35002/C011,Stock Account,Parts
Ashfield District Council,37UB,Dennis Eagle Limited,V0996800,16/06/2022,275,Place & Communities 2,Transport Related Expenses,T35002/C011,Stock Account,Parts
Ashfield District Council,37UB,Dennis Eagle Limited,V0996918,16/06/2022,915.57,Place & Communities 2,Transport Related Expenses,T35002/C011,Stock Account,Parts
Ashfield District Council,37UB,Dennis Eagle Limited,V0996918,16/06/2022,915.57,Place & Communities 2,Transport Related Expenses,T35002/C011,Stock Account,Parts
Ashfield District Council,37UB,Dennis Eagle Limited,V0997094,16/06/2022,27.1,Place & Communities 2,Transport Related Expenses,T35002/C011,Stock Account,Parts
Ashfield District Council,37UB,Dennis Eagle Limited,V0997094,16/06/2022,121.3,Place & Communities 2,Transport Related Expenses,T35002/C011,Stock Account,Parts
Ashfield District Council,37UB,Dennis Eagle Limited,V0997094,16/06/2022,23.16,Place & Communities 2,Transport Related Expenses,T35002/C011,Stock Account,Parts
Ashfield District Council,37UB,Dennis Eagle Limited,V0997118,16/06/2022,267.36,Place & Communities 2,Transport Related Expenses,T35002/C011,Stock Account,Parts
Ashfield District Council,37UB,Dennis Eagle Limited,V0997118,16/06/2022,29.69,Place & Communities 2,Transport Related Expenses,T35002/C011,Stock Account,Parts
Ashfield District Council,37UB,Dennis Eagle Limited,V0997155,16/06/2022,54.2,Place & Communities 2,Transport Related Expenses,T35002/C011,Stock Account,Parts
Ashfield District Council,37UB,Dennis Eagle Limited,V0997155,16/06/2022,243.29,Place & Communities 2,Transport Related Expenses,T35002/C011,Stock Account,Parts
Ashfield District Council,37UB,Dennis Eagle Limited,V0997638,16/06/2022,-2170.77,Place & Communities 2,Transport Related Expenses,T35002/C011,Stock Account,Parts
Ashfield District Council,37UB,Dennis Eagle Limited,V0997639,16/06/2022,-150,Place & Communities 2,Transport Related Expenses,T35002/C011,Stock Account,Parts
Ashfield District Council,37UB,Dennis Eagle Limited,V0997724,23/06/2022,203.27,Place & Communities 2,Transport Related Expenses,T35002/C011,Stock Account,Parts
Ashfield District Council,37UB,Dennis Eagle Limited,V0997724,23/06/2022,55.46,Place & Communities 2,Transport Related Expenses,T35002/C011,Stock Account,Parts
Ashfield District Council,37UB,Dennis Eagle Limited,V0997724,23/06/2022,245.32,Place & Communities 2,Transport Related Expenses,T35002/C011,Stock Account,Parts
Ashfield District Council,37UB,Dennis Eagle Limited,V0997724,23/06/2022,6.17,Place & Communities 2,Transport Related Expenses,T35002/C011,Stock Account,Parts
Ashfield District Council,37UB,Dennis Eagle Limited,V0997724,23/06/2022,243.29,Place & Communities 2,Transport Related Expenses,T35002/C011,Stock Account,Parts
Ashfield District Council,37UB,Dennis Eagle Limited,V0997724,23/06/2022,93.98,Place & Communities 2,Transport Related Expenses,T35002/C011,Stock Account,Parts
Ashfield District Council,37UB,Dennis Eagle Limited,V0997724,23/06/2022,121.3,Place & Communities 2,Transport Related Expenses,T35002/C011,Stock Account,Parts
Ashfield District Council,37UB,Dennis Eagle Limited,V0997734,23/06/2022,383.01,Place & Communities 2,Transport Related Expenses,T35002/C011,Stock Account,Parts
Ashfield District Council,37UB,Dennis Eagle Limited,V0997761,23/06/2022,359.92,Place & Communities 2,Transport Related Expenses,T35002/C011,Stock Account,Parts
Ashfield District Council,37UB,Dennis Eagle Limited,V0997847,23/06/2022,122.76,Place & Communities 2,Transport Related Expenses,T35002/C011,Stock Account,Parts
Ashfield District Council,37UB,Dennis Eagle Limited,V0997847,23/06/2022,121.3,Place & Communities 2,Transport Related Expenses,T35002/C011,Stock Account,Parts
Ashfield District Council,37UB,Dennis Eagle Limited,V0997847,23/06/2022,110.92,Place & Communities 2,Transport Related Expenses,T35002/C011,Stock Account,Parts
Ashfield District Council,37UB,Dennis Eagle Limited,V0997847,23/06/2022,60.22,Place & Communities 2,Transport Related Expenses,T35002/C011,Stock Account,Parts
Ashfield District Council,37UB,Dennis Eagle Limited,V0995288,30/06/2022,137.48,Place & Communities 2,Transport Related Expenses,T35002/C011,Stock Account,Parts
Ashfield District Council,37UB,Dennis Eagle Limited,V0999183,30/06/2022,29.16,Place & Communities 2,Transport Related Expenses,T35002/C011,Stock Account,Parts
Ashfield District Council,37UB,Dennis Eagle Limited,V0999183,30/06/2022,17.51,Place & Communities 2,Transport Related Expenses,T35002/C011,Stock Account,Parts
Ashfield District Council,37UB,Dennis Eagle Limited,V0999183,30/06/2022,92.89,Place & Communities 2,Transport Related Expenses,T35002/C011,Stock Account,Parts
Ashfield District Council,37UB,Dennis Eagle Limited,V0999190,30/06/2022,328.95,Place & Communities 2,Transport Related Expenses,T35002/C011,Stock Account,Parts
Ashfield District Council,37UB,Dennis Eagle Limited,V0999212,30/06/2022,-137.48,Place & Communities 2,Transport Related Expenses,T35002/C011,Stock Account,Parts
Ashfield District Council,37UB,Eurotrucks (Mansfield) Ltd,V0996264,01/06/2022,230,Place & Communities 2,Transport Related Expenses,T35002/C011,Stock Account,Parts
Ashfield District Council,37UB,Express Hose & Fittings Ltd,V0996286,01/06/2022,263.75,Place & Communities 2,Transport Related Expenses,T35002/C011,Stock Account,Parts
Ashfield District Council,37UB,Express Hose & Fittings Ltd,V0996330,01/06/2022,87.31,Place & Communities 2,Transport Related Expenses,T35002/C011,Stock Account,Parts
Ashfield District Council,37UB,Express Hose & Fittings Ltd,V0996917,09/06/2022,109.68,Place & Communities 2,Transport Related Expenses,T35002/C011,Stock Account,Parts
Ashfield District Council,37UB,Ford Motor Company T/A Parts Plus,V0996262,01/06/2022,19.9,Place & Communities 2,Transport Related Expenses,T35002/C011,Stock Account,Parts
Ashfield District Council,37UB,Ford Motor Company T/A Parts Plus,V0996266,01/06/2022,87.45,Place & Communities 2,Transport Related Expenses,T35002/C011,Stock Account,Parts
Ashfield District Council,37UB,Ford Motor Company T/A Parts Plus,V0996267,01/06/2022,9.98,Place & Communities 2,Transport Related Expenses,T35002/C011,Stock Account,Parts
Ashfield District Council,37UB,Ford Motor Company T/A Parts Plus,V0996267,01/06/2022,59.71,Place & Communities 2,Transport Related Expenses,T35002/C011,Stock Account,Parts
Ashfield District Council,37UB,Ford Motor Company T/A Parts Plus,V0996267,01/06/2022,57.96,Place & Communities 2,Transport Related Expenses,T35002/C011,Stock Account,Parts
Ashfield District Council,37UB,Ford Motor Company T/A Parts Plus,V0996268,01/06/2022,6.18,Place & Communities 2,Transport Related Expenses,T35002/C011,Stock Account,Parts
Ashfield District Council,37UB,Ford Motor Company T/A Parts Plus,V0996271,01/06/2022,653.03,Place & Communities 2,Transport Related Expenses,T35004/C005,Stock Account,Lubricants
Ashfield District Council,37UB,Ford Motor Company T/A Parts Plus,V0996713,01/06/2022,25.48,Place & Communities 2,Transport Related Expenses,T35002/C011,Stock Account,Parts
Ashfield District Council,37UB,Ford Motor Company T/A Parts Plus,V0996713,01/06/2022,19.88,Place & Communities 2,Transport Related Expenses,T35002/C011,Stock Account,Parts
Ashfield District Council,37UB,Ford Motor Company T/A Parts Plus,V0996795,09/06/2022,99.73,Place & Communities 2,Transport Related Expenses,T35002/C011,Stock Account,Parts
Ashfield District Council,37UB,Ford Motor Company T/A Parts Plus,V0997072,09/06/2022,5.59,Place & Communities 2,Transport Related Expenses,T35002/C011,Stock Account,Parts
Ashfield District Council,37UB,Ford Motor Company T/A Parts Plus,V0997072,09/06/2022,23.46,Place & Communities 2,Transport Related Expenses,T35002/C011,Stock Account,Parts
Ashfield District Council,37UB,Ford Motor Company T/A Parts Plus,V0997073,09/06/2022,47.51,Place & Communities 2,Transport Related Expenses,T35002/C011,Stock Account,Parts
Ashfield District Council,37UB,Ford Motor Company T/A Parts Plus,V0997078,09/06/2022,23.46,Place & Communities 2,Transport Related Expenses,T35002/C011,Stock Account,Parts
Ashfield District Council,37UB,Ford Motor Company T/A Parts Plus,V0997079,09/06/2022,7.08,Place & Communities 2,Transport Related Expenses,T35002/C011,Stock Account,Parts
Ashfield District Council,37UB,Ford Motor Company T/A Parts Plus,V0997079,09/06/2022,19.99,Place & Communities 2,Transport Related Expenses,T35002/C011,Stock Account,Parts
Ashfield District Council,37UB,Ford Motor Company T/A Parts Plus,V0997132,16/06/2022,37.73,Place & Communities 2,Transport Related Expenses,T35002/C011,Stock Account,Parts
Ashfield District Council,37UB,Ford Motor Company T/A Parts Plus,V0997133,16/06/2022,-50,Place & Communities 2,Transport Related Expenses,T35002/C011,Stock Account,Parts
Ashfield District Council,37UB,Ford Motor Company T/A Parts Plus,V0997203,16/06/2022,34.04,Place & Communities 2,Transport Related Expenses,T35002/C011,Stock Account,Parts
Ashfield District Council,37UB,Ford Motor Company T/A Parts Plus,V0997203,16/06/2022,14.07,Place & Communities 2,Transport Related Expenses,T35002/C011,Stock Account,Parts
Ashfield District Council,37UB,Ford Motor Company T/A Parts Plus,V0997203,16/06/2022,19.2,Place & Communities 2,Transport Related Expenses,T35002/C011,Stock Account,Parts
Ashfield District Council,37UB,Ford Motor Company T/A Parts Plus,V0997203,16/06/2022,27.84,Place & Communities 2,Transport Related Expenses,T35002/C011,Stock Account,Parts
Ashfield District Council,37UB,Ford Motor Company T/A Parts Plus,V0997203,16/06/2022,27.84,Place & Communities 2,Transport Related Expenses,T35002/C011,Stock Account,Parts
Ashfield District Council,37UB,Ford Motor Company T/A Parts Plus,V0997203,16/06/2022,9.6,Place & Communities 2,Transport Related Expenses,T35002/C011,Stock Account,Parts
Ashfield District Council,37UB,Ford Motor Company T/A Parts Plus,V0997203,16/06/2022,19.88,Place & Communities 2,Transport Related Expenses,T35002/C011,Stock Account,Parts
Ashfield District Council,37UB,Ford Motor Company T/A Parts Plus,V0997748,23/06/2022,73.19,Place & Communities 2,Transport Related Expenses,T35002/C011,Stock Account,Parts
Ashfield District Council,37UB,Ford Motor Company T/A Parts Plus,V0997748,23/06/2022,14.42,Place & Communities 2,Transport Related Expenses,T35002/C011,Stock Account,Parts
Ashfield District Council,37UB,Ford Motor Company T/A Parts Plus,V0997749,23/06/2022,21.77,Place & Communities 2,Transport Related Expenses,T35002/C011,Stock Account,Parts
Ashfield District Council,37UB,Ford Motor Company T/A Parts Plus,V0999122,23/06/2022,19.4,Place & Communities 2,Transport Related Expenses,T35002/C011,Stock Account,Parts
Ashfield District Council,37UB,Ford Motor Company T/A Parts Plus,V0999188,30/06/2022,9.32,Place & Communities 2,Transport Related Expenses,T35002/C011,Stock Account,Parts
Ashfield District Council,37UB,Ford Motor Company T/A Parts Plus,V0999188,30/06/2022,71.82,Place & Communities 2,Transport Related Expenses,T35002/C011,Stock Account,Parts
Ashfield District Council,37UB,Ford Motor Company T/A Parts Plus,V0999188,30/06/2022,111.05,Place & Communities 2,Transport Related Expenses,T35002/C011,Stock Account,Parts
Ashfield District Council,37UB,Ford Motor Company T/A Parts Plus,V0999188,30/06/2022,9.32,Place & Communities 2,Transport Related Expenses,T35002/C011,Stock Account,Parts
Ashfield District Council,37UB,Ford Motor Company T/A Parts Plus,V0999188,30/06/2022,10.57,Place & Communities 2,Transport Related Expenses,T35002/C011,Stock Account,Parts
Ashfield District Council,37UB,Ford Motor Company T/A Parts Plus,V0999188,30/06/2022,14.4,Place & Communities 2,Transport Related Expenses,T35002/C011,Stock Account,Parts
Ashfield District Council,37UB,Ford Motor Company T/A Parts Plus,V0999192,30/06/2022,26.9,Place & Communities 2,Transport Related Expenses,T35002/C011,Stock Account,Parts
Ashfield District Council,37UB,Ford Motor Company T/A Parts Plus,V0999192,30/06/2022,18.24,Place & Communities 2,Transport Related Expenses,T35002/C011,Stock Account,Parts
Ashfield District Council,37UB,Ford Motor Company T/A Parts Plus,V0999198,30/06/2022,2.98,Place & Communities 2,Transport Related Expenses,T35002/C011,Stock Account,Parts
Ashfield District Council,37UB,Ford Motor Company T/A Parts Plus,V0999204,30/06/2022,19.96,Place & Communities 2,Transport Related Expenses,T35002/C011,Stock Account,Parts
Ashfield District Council,37UB,Hartshorne Motor Services Limited,V0996827,09/06/2022,62.95,Place & Communities 2,Transport Related Expenses,T35002/C011,Stock Account,Parts
Ashfield District Council,37UB,Hartshorne Motor Services Limited,V0997098,16/06/2022,3.31,Place & Communities 2,Transport Related Expenses,T35002/C011,Stock Account,Parts
Ashfield District Council,37UB,Henton & Chattell Ltd,V0996282,01/06/2022,6.34,Place & Communities 2,Transport Related Expenses,T35002/C011,Stock Account,Parts
Ashfield District Council,37UB,Henton & Chattell Ltd,V0999130,30/06/2022,13.6,Place & Communities 2,Transport Related Expenses,T35002/C011,Stock Account,Parts
Ashfield District Council,37UB,Henton & Chattell Ltd,V0999130,30/06/2022,22.2,Place & Communities 2,Transport Related Expenses,T35002/C011,Stock Account,Parts
Ashfield District Council,37UB,HGV Direct Ltd,V0996329,01/06/2022,259.6,Place & Communities 2,Transport Related Expenses,T35002/C011,Stock Account,Parts
Ashfield District Council,37UB,HGV Direct Ltd,V0997131,16/06/2022,259.6,Place & Communities 2,Transport Related Expenses,T35002/C011,Stock Account,Parts
Ashfield District Council,37UB,Hiab Limited (DEL UK),V0996326,01/06/2022,15,Place & Communities 2,Transport Related Expenses,T35002/C011,Stock Account,Parts
Ashfield District Council,37UB,Hiab Limited (DEL UK),V0996326,01/06/2022,27.19,Place & Communities 2,Transport Related Expenses,T35002/C011,Stock Account,Parts
Ashfield District Council,37UB,Hucknall Bypass Filling Station Ltd,V0997243,23/06/2022,1266.41,Place & Communities 2,Supplies & Services,T35001/D001004,Stock Account,Chemicals and Materials Purchase
Ashfield District Council,37UB,Lodge Tyre Co Ltd,V0995847,01/06/2022,80,Place & Communities 2,Transport Related Expenses,T35003/C070,Stock Account,Tyres
Ashfield District Council,37UB,Lodge Tyre Co Ltd,V0995847,01/06/2022,245,Place & Communities 2,Transport Related Expenses,T35003/C070,Stock Account,Tyres
Ashfield District Council,37UB,Lodge Tyre Co Ltd,V0995847,01/06/2022,60,Place & Communities 2,Transport Related Expenses,T35003/C070,Stock Account,Tyres
Ashfield District Council,37UB,Lodge Tyre Co Ltd,V0995847,01/06/2022,30,Place & Communities 2,Transport Related Expenses,T35003/C070,Stock Account,Tyres
Ashfield District Council,37UB,Lodge Tyre Co Ltd,V0995847,01/06/2022,90,Place & Communities 2,Transport Related Expenses,T35003/C070,Stock Account,Tyres
Ashfield District Council,37UB,Lodge Tyre Co Ltd,V0996259,01/06/2022,70,Place & Communities 2,Transport Related Expenses,T35003/C070,Stock Account,Tyres
Ashfield District Council,37UB,Lodge Tyre Co Ltd,V0996259,01/06/2022,490,Place & Communities 2,Transport Related Expenses,T35003/C070,Stock Account,Tyres
Ashfield District Council,37UB,Lodge Tyre Co Ltd,V0996259,01/06/2022,81.75,Place & Communities 2,Transport Related Expenses,T35003/C070,Stock Account,Tyres
Ashfield District Council,37UB,Lodge Tyre Co Ltd,V0996259,01/06/2022,114,Place & Communities 2,Transport Related Expenses,T35002/C011,Stock Account,Parts
Ashfield District Council,37UB,Lodge Tyre Co Ltd,V0996259,01/06/2022,245,Place & Communities 2,Transport Related Expenses,T35003/C070,Stock Account,Tyres
Ashfield District Council,37UB,Lodge Tyre Co Ltd,V0996259,01/06/2022,17.5,Place & Communities 2,Transport Related Expenses,T35003/C070,Stock Account,Tyres
Ashfield District Council,37UB,Lodge Tyre Co Ltd,V0996259,01/06/2022,490,Place & Communities 2,Transport Related Expenses,T35003/C070,Stock Account,Tyres
Ashfield District Council,37UB,Lodge Tyre Co Ltd,V0996259,01/06/2022,82,Place & Communities 2,Transport Related Expenses,T35003/C070,Stock Account,Tyres
Ashfield District Council,37UB,Lodge Tyre Co Ltd,V0996259,01/06/2022,490,Place & Communities 2,Transport Related Expenses,T35002/C011,Stock Account,Parts
Ashfield District Council,37UB,Lodge Tyre Co Ltd,V0996259,01/06/2022,220,Place & Communities 2,Transport Related Expenses,T35003/C070,Stock Account,Tyres
Ashfield District Council,37UB,Lodge Tyre Co Ltd,V0996259,01/06/2022,17.5,Place & Communities 2,Transport Related Expenses,T35002/C011,Stock Account,Parts
Ashfield District Council,37UB,Lodge Tyre Co Ltd,V0996728,16/06/2022,235,Place & Communities 2,Transport Related Expenses,T35003/C070,Stock Account,Tyres
Ashfield District Council,37UB,Lodge Tyre Co Ltd,V0996728,16/06/2022,980,Place & Communities 2,Transport Related Expenses,T35003/C070,Stock Account,Tyres
Ashfield District Council,37UB,Lodge Tyre Co Ltd,V0996728,16/06/2022,30,Place & Communities 2,Transport Related Expenses,T35003/C070,Stock Account,Tyres
Ashfield District Council,37UB,Lodge Tyre Co Ltd,V0996728,16/06/2022,60,Place & Communities 2,Transport Related Expenses,T35003/C070,Stock Account,Tyres
Ashfield District Council,37UB,Lodge Tyre Co Ltd,V0996728,16/06/2022,17.5,Place & Communities 2,Transport Related Expenses,T35003/C070,Stock Account,Tyres
Ashfield District Council,37UB,Lodge Tyre Co Ltd,V0996728,16/06/2022,60,Place & Communities 2,Transport Related Expenses,T35003/C070,Stock Account,Tyres
Ashfield District Council,37UB,Lodge Tyre Co Ltd,V0996728,16/06/2022,96.75,Place & Communities 2,Transport Related Expenses,T35003/C070,Stock Account,Tyres
Ashfield District Council,37UB,Lodge Tyre Co Ltd,V0997107,16/06/2022,-96.75,Place & Communities 2,Transport Related Expenses,T35003/C070,Stock Account,Tyres
Ashfield District Council,37UB,Lodge Tyre Co Ltd,V0997143,16/06/2022,30,Place & Communities 2,Transport Related Expenses,T35003/C070,Stock Account,Tyres
Ashfield District Council,37UB,Lodge Tyre Co Ltd,V0997143,16/06/2022,30,Place & Communities 2,Transport Related Expenses,T35003/C070,Stock Account,Tyres
Ashfield District Council,37UB,Lodge Tyre Co Ltd,V0997143,16/06/2022,75,Place & Communities 2,Transport Related Expenses,T35003/C070,Stock Account,Tyres
Ashfield District Council,37UB,Lodge Tyre Co Ltd,V0997143,16/06/2022,235,Place & Communities 2,Transport Related Expenses,T35003/C070,Stock Account,Tyres
Ashfield District Council,37UB,Lodge Tyre Co Ltd,V0997143,16/06/2022,114,Place & Communities 2,Transport Related Expenses,T35003/C070,Stock Account,Tyres
Ashfield District Council,37UB,Lodge Tyre Co Ltd,V0997143,16/06/2022,30,Place & Communities 2,Transport Related Expenses,T35003/C070,Stock Account,Tyres
Ashfield District Council,37UB,Lodge Tyre Co Ltd,V0997143,16/06/2022,106,Place & Communities 2,Transport Related Expenses,T35003/C070,Stock Account,Tyres
Ashfield District Council,37UB,Lodge Tyre Co Ltd,V0997143,16/06/2022,245,Place & Communities 2,Transport Related Expenses,T35003/C070,Stock Account,Tyres
Ashfield District Council,37UB,Lodge Tyre Co Ltd,V0997143,16/06/2022,35,Place & Communities 2,Transport Related Expenses,T35003/C070,Stock Account,Tyres
Ashfield District Council,37UB,Lodge Tyre Co Ltd,V0997143,16/06/2022,235,Place & Communities 2,Transport Related Expenses,T35003/C070,Stock Account,Tyres
Ashfield District Council,37UB,Lodge Tyre Co Ltd,V0997143,16/06/2022,17.5,Place & Communities 2,Transport Related Expenses,T35003/C070,Stock Account,Tyres
Ashfield District Council,37UB,Lodge Tyre Co Ltd,V0997143,16/06/2022,30,Place & Communities 2,Transport Related Expenses,T35003/C070,Stock Account,Tyres
Ashfield District Council,37UB,Lodge Tyre Co Ltd,V0997143,16/06/2022,220,Place & Communities 2,Transport Related Expenses,T35003/C070,Stock Account,Tyres
Ashfield District Council,37UB,Lodge Tyre Co Ltd,V0997143,16/06/2022,30,Place & Communities 2,Transport Related Expenses,T35003/C070,Stock Account,Tyres
Ashfield District Council,37UB,Lodge Tyre Co Ltd,V0997143,16/06/2022,49.25,Place & Communities 2,Transport Related Expenses,T35003/C070,Stock Account,Tyres
Ashfield District Council,37UB,Lodge Tyre Co Ltd,V0997143,16/06/2022,60,Place & Communities 2,Transport Related Expenses,T35003/C070,Stock Account,Tyres
Ashfield District Council,37UB,Lodge Tyre Co Ltd,V0997143,16/06/2022,35,Place & Communities 2,Transport Related Expenses,T35003/C070,Stock Account,Tyres
Ashfield District Council,37UB,Lodge Tyre Co Ltd,V0997770,23/06/2022,245,Place & Communities 2,Transport Related Expenses,T35003/C070,Stock Account,Tyres
Ashfield District Council,37UB,Lodge Tyre Co Ltd,V0997770,23/06/2022,58,Place & Communities 2,Transport Related Expenses,T35003/C070,Stock Account,Tyres
Ashfield District Council,37UB,Lodge Tyre Co Ltd,V0997770,23/06/2022,30,Place & Communities 2,Transport Related Expenses,T35003/C070,Stock Account,Tyres
Ashfield District Council,37UB,Lodge Tyre Co Ltd,V0997770,23/06/2022,440,Place & Communities 2,Transport Related Expenses,T35003/C070,Stock Account,Tyres
Ashfield District Council,37UB,Lodge Tyre Co Ltd,V0997770,23/06/2022,60,Place & Communities 2,Transport Related Expenses,T35003/C070,Stock Account,Tyres
Ashfield District Council,37UB,Lodge Tyre Co Ltd,V0997770,23/06/2022,62,Place & Communities 2,Transport Related Expenses,T35003/C070,Stock Account,Tyres
Ashfield District Council,37UB,Lodge Tyre Co Ltd,V0997770,23/06/2022,30,Place & Communities 2,Transport Related Expenses,T35003/C070,Stock Account,Tyres
Ashfield District Council,37UB,Lodge Tyre Co Ltd,V0997770,23/06/2022,58,Place & Communities 2,Transport Related Expenses,T35003/C070,Stock Account,Tyres
Ashfield District Council,37UB,Lodge Tyre Co Ltd,V0997770,23/06/2022,12.5,Place & Communities 2,Transport Related Expenses,T35003/C070,Stock Account,Tyres
Ashfield District Council,37UB,Lodge Tyre Co Ltd,V0997770,23/06/2022,30,Place & Communities 2,Transport Related Expenses,T35003/C070,Stock Account,Tyres
Ashfield District Council,37UB,Lodge Tyre Co Ltd,V0997770,23/06/2022,220,Place & Communities 2,Transport Related Expenses,T35003/C070,Stock Account,Tyres
Ashfield District Council,37UB,Lodge Tyre Co Ltd,V0997770,23/06/2022,52,Place & Communities 2,Transport Related Expenses,T35003/C070,Stock Account,Tyres
Ashfield District Council,37UB,Lodge Tyre Co Ltd,V0999218,30/06/2022,60,Place & Communities 2,Transport Related Expenses,T35003/C070,Stock Account,Tyres
Ashfield District Council,37UB,Lodge Tyre Co Ltd,V0999218,30/06/2022,17.5,Place & Communities 2,Transport Related Expenses,T35003/C070,Stock Account,Tyres
Ashfield District Council,37UB,Lodge Tyre Co Ltd,V0999218,30/06/2022,245,Place & Communities 2,Transport Related Expenses,T35003/C070,Stock Account,Tyres
Ashfield District Council,37UB,Lodge Tyre Co Ltd,V0999218,30/06/2022,245,Place & Communities 2,Transport Related Expenses,T35003/C070,Stock Account,Tyres
Ashfield District Council,37UB,Lodge Tyre Co Ltd,V0999218,30/06/2022,310,Place & Communities 2,Transport Related Expenses,T35003/C070,Stock Account,Tyres
Ashfield District Council,37UB,Lodge Tyre Co Ltd,V0999218,30/06/2022,65,Place & Communities 2,Transport Related Expenses,T35003/C070,Stock Account,Tyres
Ashfield District Council,37UB,Lodge Tyre Co Ltd,V0999218,30/06/2022,60,Place & Communities 2,Transport Related Expenses,T35003/C070,Stock Account,Tyres
Ashfield District Council,37UB,Maurice Hill Transport Ltd,V0996328,01/06/2022,91,Place & Communities 2,Transport Related Expenses,T35002/C011,Stock Account,Parts
Ashfield District Council,37UB,Maurice Hill Transport Ltd,V0996328,01/06/2022,44,Place & Communities 2,Transport Related Expenses,T35002/C011,Stock Account,Parts
Ashfield District Council,37UB,Maurice Hill Transport Ltd,V0996719,01/06/2022,143,Place & Communities 2,Transport Related Expenses,T35002/C011,Stock Account,Parts
Ashfield District Council,37UB,Maurice Hill Transport Ltd,V0996719,01/06/2022,36,Place & Communities 2,Transport Related Expenses,T35002/C011,Stock Account,Parts
Ashfield District Council,37UB,Maurice Hill Transport Ltd,V0996837,09/06/2022,36,Place & Communities 2,Transport Related Expenses,T35002/C011,Stock Account,Parts
Ashfield District Council,37UB,Maurice Hill Transport Ltd,V0996837,09/06/2022,30,Place & Communities 2,Transport Related Expenses,T35002/C011,Stock Account,Parts
Ashfield District Council,37UB,Maurice Hill Transport Ltd,V0996837,09/06/2022,113,Place & Communities 2,Transport Related Expenses,T35002/C011,Stock Account,Parts
Ashfield District Council,37UB,MOTUS Commercials,V0996910,09/06/2022,0.3,Place & Communities 2,Transport Related Expenses,T35002/C011,Stock Account,Parts
Ashfield District Council,37UB,MOTUS Commercials,V0996910,09/06/2022,566.56,Place & Communities 2,Transport Related Expenses,T35002/C011,Stock Account,Parts
Ashfield District Council,37UB,MOTUS Commercials,V0996910,09/06/2022,157.5,Place & Communities 2,Transport Related Expenses,T35002/C011,Stock Account,Parts
Ashfield District Council,37UB,MOTUS Commercials,V0997690,23/06/2022,306.3,Place & Communities 2,Transport Related Expenses,T35002/C011,Stock Account,Parts
Ashfield District Council,37UB,MOTUS Commercials,V0997690,23/06/2022,72.45,Place & Communities 2,Transport Related Expenses,T35002/C011,Stock Account,Parts
Ashfield District Council,37UB,MOTUS Commercials,V0997690,23/06/2022,57.41,Place & Communities 2,Transport Related Expenses,T35002/C011,Stock Account,Parts
Ashfield District Council,37UB,MOTUS Commercials,V0997690,23/06/2022,23.8,Place & Communities 2,Transport Related Expenses,T35002/C011,Stock Account,Parts
Ashfield District Council,37UB,National Windscreens,V0996890,09/06/2022,50,Place & Communities 2,Transport Related Expenses,T35002/C011,Stock Account,Parts
Ashfield District Council,37UB,National Windscreens,V0996891,09/06/2022,50,Place & Communities 2,Transport Related Expenses,T35002/C011,Stock Account,Parts
Ashfield District Council,37UB,National Windscreens,V0996892,09/06/2022,50,Place & Communities 2,Transport Related Expenses,T35002/C011,Stock Account,Parts
Ashfield District Council,37UB,P S Marsden (Lawnmower Services) Ltd,V0996700,01/06/2022,152.63,Place & Communities 2,Transport Related Expenses,T35002/C011,Stock Account,Parts
Ashfield District Council,37UB,P S Marsden (Lawnmower Services) Ltd,V0996700,01/06/2022,121.3,Place & Communities 2,Transport Related Expenses,T35002/C011,Stock Account,Parts
Ashfield District Council,37UB,P S Marsden (Lawnmower Services) Ltd,V0996701,01/06/2022,118.02,Place & Communities 2,Transport Related Expenses,T35002/C011,Stock Account,Parts
Ashfield District Council,37UB,P S Marsden (Lawnmower Services) Ltd,V0996703,01/06/2022,118.02,Place & Communities 2,Transport Related Expenses,T35002/C011,Stock Account,Parts
Ashfield District Council,37UB,P S Marsden (Lawnmower Services) Ltd,V0996704,01/06/2022,106.65,Place & Communities 2,Transport Related Expenses,T35002/C011,Stock Account,Parts
Ashfield District Council,37UB,P S Marsden (Lawnmower Services) Ltd,V0996704,01/06/2022,44.16,Place & Communities 2,Transport Related Expenses,T35002/C011,Stock Account,Parts
Ashfield District Council,37UB,P S Marsden (Lawnmower Services) Ltd,V0996704,01/06/2022,44.16,Place & Communities 2,Transport Related Expenses,T35002/C011,Stock Account,Parts
Ashfield District Council,37UB,P S Marsden (Lawnmower Services) Ltd,V0996707,01/06/2022,675.44,Place & Communities 2,Transport Related Expenses,T35002/C011,Stock Account,Parts
Ashfield District Council,37UB,P S Marsden (Lawnmower Services) Ltd,V0996724,01/06/2022,211.62,Place & Communities 2,Transport Related Expenses,T35002/C011,Stock Account,Parts
Ashfield District Council,37UB,P S Marsden (Lawnmower Services) Ltd,V0996777,09/06/2022,73.37,Place & Communities 2,Transport Related Expenses,T35002/C011,Stock Account,Parts
Ashfield District Council,37UB,P S Marsden (Lawnmower Services) Ltd,V0997076,09/06/2022,137.37,Place & Communities 2,Transport Related Expenses,T35002/C011,Stock Account,Parts
Ashfield District Council,37UB,P S Marsden (Lawnmower Services) Ltd,V0997077,09/06/2022,132.13,Place & Communities 2,Transport Related Expenses,T35002/C011,Stock Account,Parts
Ashfield District Council,37UB,P S Marsden (Lawnmower Services) Ltd,V0997097,16/06/2022,27.09,Place & Communities 2,Transport Related Expenses,T35002/C011,Stock Account,Parts
Ashfield District Council,37UB,P S Marsden (Lawnmower Services) Ltd,V0997114,16/06/2022,2.35,Place & Communities 2,Transport Related Expenses,T35002/C011,Stock Account,Parts
Ashfield District Council,37UB,P S Marsden (Lawnmower Services) Ltd,V0997114,16/06/2022,1.2,Place & Communities 2,Transport Related Expenses,T35002/C011,Stock Account,Parts
Ashfield District Council,37UB,P S Marsden (Lawnmower Services) Ltd,V0997114,16/06/2022,9,Place & Communities 2,Transport Related Expenses,T35002/C011,Stock Account,Parts
Ashfield District Council,37UB,P S Marsden (Lawnmower Services) Ltd,V0997114,16/06/2022,254.97,Place & Communities 2,Transport Related Expenses,T35002/C011,Stock Account,Parts
Ashfield District Council,37UB,P S Marsden (Lawnmower Services) Ltd,V0997114,16/06/2022,27.49,Place & Communities 2,Transport Related Expenses,T35002/C011,Stock Account,Parts
Ashfield District Council,37UB,P S Marsden (Lawnmower Services) Ltd,V0997114,16/06/2022,2.62,Place & Communities 2,Transport Related Expenses,T35002/C011,Stock Account,Parts
Ashfield District Council,37UB,P S Marsden (Lawnmower Services) Ltd,V0997114,16/06/2022,1.03,Place & Communities 2,Transport Related Expenses,T35002/C011,Stock Account,Parts
Ashfield District Council,37UB,P S Marsden (Lawnmower Services) Ltd,V0997120,16/06/2022,2.62,Place & Communities 2,Transport Related Expenses,T35002/C011,Stock Account,Parts
Ashfield District Council,37UB,P S Marsden (Lawnmower Services) Ltd,V0997120,16/06/2022,2.62,Place & Communities 2,Transport Related Expenses,T35002/C011,Stock Account,Parts
Ashfield District Council,37UB,P S Marsden (Lawnmower Services) Ltd,V0997726,23/06/2022,132.13,Place & Communities 2,Transport Related Expenses,T35002/C011,Stock Account,Parts
Ashfield District Council,37UB,P S Marsden (Lawnmower Services) Ltd,V0997726,23/06/2022,12,Place & Communities 2,Transport Related Expenses,T35002/C011,Stock Account,Parts
Ashfield District Council,37UB,P S Marsden (Lawnmower Services) Ltd,V0997738,23/06/2022,45.01,Place & Communities 2,Transport Related Expenses,T35002/C011,Stock Account,Parts
Ashfield District Council,37UB,P S Marsden (Lawnmower Services) Ltd,V0997738,23/06/2022,12,Place & Communities 2,Transport Related Expenses,T35002/C011,Stock Account,Parts
Ashfield District Council,37UB,P S Marsden (Lawnmower Services) Ltd,V0997738,23/06/2022,257.4,Place & Communities 2,Transport Related Expenses,T35002/C011,Stock Account,Parts
Ashfield District Council,37UB,P S Marsden (Lawnmower Services) Ltd,V0997738,23/06/2022,34.29,Place & Communities 2,Transport Related Expenses,T35002/C011,Stock Account,Parts
Ashfield District Council,37UB,P S Marsden (Lawnmower Services) Ltd,V0997738,23/06/2022,80.1,Place & Communities 2,Transport Related Expenses,T35002/C011,Stock Account,Parts
Ashfield District Council,37UB,P S Marsden (Lawnmower Services) Ltd,V0997757,23/06/2022,45.01,Place & Communities 2,Transport Related Expenses,T35002/C011,Stock Account,Parts
Ashfield District Council,37UB,PB Auto Electrics Ltd,V0996300,01/06/2022,115.61,Place & Communities 2,Transport Related Expenses,T35002/C011,Stock Account,Parts
Ashfield District Council,37UB,PB Auto Electrics Ltd,V0996301,01/06/2022,60,Place & Communities 2,Transport Related Expenses,T35002/C011,Stock Account,Parts
Ashfield District Council,37UB,PB Auto Electrics Ltd,V0996302,01/06/2022,60,Place & Communities 2,Transport Related Expenses,T35002/C011,Stock Account,Parts
Ashfield District Council,37UB,PB Auto Electrics Ltd,V0996303,01/06/2022,60,Place & Communities 2,Transport Related Expenses,T35002/C011,Stock Account,Parts
Ashfield District Council,37UB,PB Auto Electrics Ltd,V0996304,01/06/2022,60,Place & Communities 2,Transport Related Expenses,T35002/C011,Stock Account,Parts
Ashfield District Council,37UB,PB Auto Electrics Ltd,V0996305,01/06/2022,91,Place & Communities 2,Transport Related Expenses,T35002/C011,Stock Account,Parts
Ashfield District Council,37UB,PB Auto Electrics Ltd,V0996299,16/06/2022,121,Place & Communities 2,Transport Related Expenses,T35002/C011,Stock Account,Parts
Ashfield District Council,37UB,PB Auto Electrics Ltd,V0997255,16/06/2022,25.41,Place & Communities 2,Transport Related Expenses,T35002/C011,Stock Account,Parts
Ashfield District Council,37UB,PB Auto Electrics Ltd,V0997255,16/06/2022,50.46,Place & Communities 2,Transport Related Expenses,T35002/C011,Stock Account,Parts
Ashfield District Council,37UB,PB Auto Electrics Ltd,V0997855,23/06/2022,294.4,Place & Communities 2,Transport Related Expenses,T35002/C011,Stock Account,Parts
Ashfield District Council,37UB,PB Auto Electrics Ltd,V0999111,23/06/2022,425,Place & Communities 2,Transport Related Expenses,T35002/C011,Stock Account,Parts
Ashfield District Council,37UB,PB Autofactors,V0996261,01/06/2022,7.98,Place & Communities 2,Transport Related Expenses,T35002/C011,Stock Account,Parts
Ashfield District Council,37UB,PB Autofactors,V0996261,01/06/2022,11.97,Place & Communities 2,Transport Related Expenses,T35002/C011,Stock Account,Parts
Ashfield District Council,37UB,PB Autofactors,V0997642,16/06/2022,24,Place & Communities 2,Transport Related Expenses,T35002/C011,Stock Account,Parts
Ashfield District Council,37UB,S E B International Ltd,V0999258,30/06/2022,8.41,Place & Communities 2,Transport Related Expenses,T35002/C011,Stock Account,Parts
Ashfield District Council,37UB,Scarab Sweepers Ltd,V0994439,23/06/2022,614.68,Place & Communities 2,Transport Related Expenses,T35002/C011,Stock Account,Parts
Ashfield District Council,37UB,Scarab Sweepers Ltd,V0994439,23/06/2022,113.87,Place & Communities 2,Transport Related Expenses,T35002/C011,Stock Account,Parts
Ashfield District Council,37UB,Scarab Sweepers Ltd,V0997746,23/06/2022,-113.87,Place & Communities 2,Transport Related Expenses,T35002/C011,Stock Account,Parts
Ashfield District Council,37UB,Spaldings UK Ltd,V0996822,09/06/2022,105.21,Place & Communities 2,Transport Related Expenses,T35002/C011,Stock Account,Parts
Ashfield District Council,37UB,Spaldings UK Ltd,V0996906,09/06/2022,114,Place & Communities 2,Transport Related Expenses,T35002/C011,Stock Account,Parts
Ashfield District Council,37UB,Spaldings UK Ltd,V0997717,23/06/2022,120,Place & Communities 2,Transport Related Expenses,T35002/C011,Stock Account,Parts
Ashfield District Council,37UB,Spaldings UK Ltd,V0999131,30/06/2022,40.8,Place & Communities 2,Transport Related Expenses,T35002/C011,Stock Account,Parts
Ashfield District Council,37UB,Spaldings UK Ltd,V0999184,30/06/2022,29,Place & Communities 2,Transport Related Expenses,T35002/C011,Stock Account,Parts
Ashfield District Council,37UB,Spaldings UK Ltd,V0999184,30/06/2022,51.75,Place & Communities 2,Transport Related Expenses,T35002/C011,Stock Account,Parts
Ashfield District Council,37UB,Spaldings UK Ltd,V0999184,30/06/2022,14.8,Place & Communities 2,Transport Related Expenses,T35002/C011,Stock Account,Parts
Ashfield District Council,37UB,Spaldings UK Ltd,V0999184,30/06/2022,50.75,Place & Communities 2,Transport Related Expenses,T35002/C011,Stock Account,Parts
Ashfield District Council,37UB,Spaldings UK Ltd,V0999184,30/06/2022,105.21,Place & Communities 2,Transport Related Expenses,T35002/C011,Stock Account,Parts
Ashfield District Council,37UB,Spaldings UK Ltd,V0999184,30/06/2022,41.94,Place & Communities 2,Transport Related Expenses,T35002/C011,Stock Account,Parts
Ashfield District Council,37UB,Spaldings UK Ltd,V0999184,30/06/2022,13.9,Place & Communities 2,Transport Related Expenses,T35002/C011,Stock Account,Parts
Ashfield District Council,37UB,Station Motors (Sutton) Ltd,V0997669,16/06/2022,55,Place & Communities 2,Transport Related Expenses,T35002/C011,Stock Account,Parts
Ashfield District Council,37UB,Station Motors (Sutton) Ltd,V0997750,23/06/2022,3,Place & Communities 2,Transport Related Expenses,T35002/C011,Stock Account,Parts
Ashfield District Council,37UB,Station Motors (Sutton) Ltd,V0997750,23/06/2022,275,Place & Communities 2,Transport Related Expenses,T35002/C011,Stock Account,Parts
Ashfield District Council,37UB,Station Motors (Sutton) Ltd,V0997750,23/06/2022,46.53,Place & Communities 2,Transport Related Expenses,T35002/C011,Stock Account,Parts
Ashfield District Council,37UB,Station Motors (Sutton) Ltd,V0997750,23/06/2022,10.2,Place & Communities 2,Transport Related Expenses,T35002/C011,Stock Account,Parts
Ashfield District Council,37UB,Station Motors (Sutton) Ltd,V0997750,23/06/2022,222,Place & Communities 2,Transport Related Expenses,T35002/C011,Stock Account,Parts
Ashfield District Council,37UB,Station Motors (Sutton) Ltd,V0997750,23/06/2022,212.98,Place & Communities 2,Transport Related Expenses,T35002/C011,Stock Account,Parts
Ashfield District Council,37UB,Station Motors (Sutton) Ltd,V0997750,23/06/2022,55,Place & Communities 2,Transport Related Expenses,T35002/C011,Stock Account,Parts
Ashfield District Council,37UB,T C Harrison JCB,V0996835,09/06/2022,15.45,Place & Communities 2,Transport Related Expenses,T35002/C011,Stock Account,Parts
Ashfield District Council,37UB,T C Harrison JCB,V0996835,09/06/2022,46.11,Place & Communities 2,Transport Related Expenses,T35002/C011,Stock Account,Parts
Ashfield District Council,37UB,T C Harrison JCB,V0996835,09/06/2022,12.26,Place & Communities 2,Transport Related Expenses,T35002/C011,Stock Account,Parts
Ashfield District Council,37UB,T C Harrison JCB,V0996835,09/06/2022,50.1,Place & Communities 2,Transport Related Expenses,T35002/C011,Stock Account,Parts
Ashfield District Council,37UB,T C Harrison JCB,V0996835,09/06/2022,23.28,Place & Communities 2,Transport Related Expenses,T35002/C011,Stock Account,Parts
Ashfield District Council,37UB,T C Harrison JCB,V0996836,09/06/2022,1.14,Place & Communities 2,Transport Related Expenses,T35002/C011,Stock Account,Parts
Ashfield District Council,37UB,T C Harrison JCB,V0996836,09/06/2022,28.82,Place & Communities 2,Transport Related Expenses,T35002/C011,Stock Account,Parts
Ashfield District Council,37UB,T C Harrison JCB,V0996840,09/06/2022,12.26,Place & Communities 2,Transport Related Expenses,T35002/C011,Stock Account,Parts
Ashfield District Council,37UB,T C Harrison JCB,V0999202,30/06/2022,11.6,Place & Communities 2,Transport Related Expenses,T35002/C011,Stock Account,Parts
Ashfield District Council,37UB,Terberg Matec UK,V0996723,01/06/2022,65,Place & Communities 2,Transport Related Expenses,T35002/C011,Stock Account,Parts
Ashfield District Council,37UB,Terberg Matec UK,V0996907,09/06/2022,42.48,Place & Communities 2,Transport Related Expenses,T35002/C011,Stock Account,Parts
Ashfield District Council,37UB,Terberg Matec UK,V0996907,09/06/2022,196.24,Place & Communities 2,Transport Related Expenses,T35002/C011,Stock Account,Parts
Ashfield District Council,37UB,Terberg Matec UK,V0997115,16/06/2022,154.44,Place & Communities 2,Transport Related Expenses,T35002/C011,Stock Account,Parts
Ashfield District Council,37UB,Terberg Matec UK,V0997115,16/06/2022,13.58,Place & Communities 2,Transport Related Expenses,T35002/C011,Stock Account,Parts
Ashfield District Council,37UB,Terberg Matec UK,V0997121,16/06/2022,154.43,Place & Communities 2,Transport Related Expenses,T35002/C011,Stock Account,Parts
Ashfield District Council,37UB,Terberg Matec UK,V0997627,16/06/2022,374.93,Place & Communities 2,Transport Related Expenses,T35002/C011,Stock Account,Parts
Ashfield District Council,37UB,Terberg Matec UK,V0997628,16/06/2022,104.81,Place & Communities 2,Transport Related Expenses,T35002/C011,Stock Account,Parts
Ashfield District Council,37UB,Terberg Matec UK,V0999161,30/06/2022,60,Place & Communities 2,Transport Related Expenses,T35002/C011,Stock Account,Parts
Ashfield District Council,37UB,Terberg Matec UK,V0999162,30/06/2022,60,Place & Communities 2,Transport Related Expenses,T35002/C011,Stock Account,Parts
Ashfield District Council,37UB,Terberg Matec UK,V0999163,30/06/2022,60,Place & Communities 2,Transport Related Expenses,T35002/C011,Stock Account,Parts
Ashfield District Council,37UB,Terberg Matec UK,V0999814,30/06/2022,44.36,Place & Communities 2,Transport Related Expenses,T35002/C011,Stock Account,Parts
Ashfield District Council,37UB,Terberg Matec UK,V0999814,30/06/2022,34.3,Place & Communities 2,Transport Related Expenses,T35002/C011,Stock Account,Parts
Ashfield District Council,37UB,Wurth UK Ltd,V0997718,23/06/2022,70.51,Place & Communities 2,Transport Related Expenses,T35004/C005,Stock Account,Lubricants
Ashfield District Council,37UB,Wurth UK Ltd,V0997799,23/06/2022,-7.15,Place & Communities 2,Transport Related Expenses,T35004/C005,Stock Account,Lubricants
Ashfield District Council,37UB,Express Hose & Fittings Ltd,V0996287,01/06/2022,90,R & B Transformation 2,Transport Related Expenses,T35002/C011,Stock Account,Parts
Ashfield District Council,37UB,MOTUS Commercials,V0997135,16/06/2022,4.15,R & B Transformation 2,Transport Related Expenses,T35002/C011,Stock Account,Parts
Ashfield District Council,37UB,MOTUS Commercials,V0997135,16/06/2022,2.5,R & B Transformation 2,Transport Related Expenses,T35002/C011,Stock Account,Parts
Ashfield District Council,37UB,MOTUS Commercials,V0997135,16/06/2022,77.5,R & B Transformation 2,Transport Related Expenses,T35002/C011,Stock Account,Parts
Ashfield District Council,37UB,P S Marsden (Lawnmower Services) Ltd,V0996196,01/06/2022,-185.81,R & B Transformation 2,Transport Related Expenses,T35002/C011,Stock Account,Parts
Ashfield District Council,37UB,Landmark Chambers,V0999186,30/06/2022,3000,Legal & Governance 2,Supplies & Services,T07067/D200004,Sundry Debtors Total Account,Legal Expenses
Ashfield District Council,37UB,Ropewalk Chambers,V0999302,30/06/2022,1500,Legal & Governance 2,Supplies & Services,T07067/D200004,Sundry Debtors Total Account,Legal Expenses
Ashfield District Council,37UB,,JV281391,01/06/2022,289598,R & B Transformation 2,Supplies & Services,T07020/D600002,Sundry Debtors Total Account,Reimbursements
Ashfield District Council,37UB,,JV281391,01/06/2022,5629403.8,R & B Transformation 2,Supplies & Services,T07015/D600002,Sundry Debtors Total Account,Reimbursements
Ashfield District Council,37UB,,JV281391,01/06/2022,870592,R & B Transformation 2,Supplies & Services,T07018/D600002,Sundry Debtors Total Account,Reimbursements
Ashfield District Council,37UB,Stroma Certification Limited,V0997872,23/06/2022,299,Housing & Assets 2,Supplies & Services,G58000/D201010,Assets & Investments (HRA),Professional and Consultancy Services
Ashfield District Council,37UB,British Telecom PLC,V0997245,23/06/2022,184.55,Housing & Assets 2,Supplies & Services,G51013/D301002,Housing OP and SN,Telephones
Ashfield District Council,37UB,Hoot Fire & Security Ltd,V0996188,01/06/2022,490,Housing & Assets 2,Premises Expenses,G51013/B003011,Housing OP and SN,Fire Alarms
Ashfield District Council,37UB,Hoot Fire & Security Ltd,V0997831,23/06/2022,172,Housing & Assets 2,Premises Expenses,G51026/B003011,Housing OP and SN,Fire Alarms
Ashfield District Council,37UB,Hoot Fire & Security Ltd,V0997832,23/06/2022,172,Housing & Assets 2,Premises Expenses,G51027/B003011,Housing OP and SN,Fire Alarms
Ashfield District Council,37UB,Hoot Fire & Security Ltd,V0997833,23/06/2022,172,Housing & Assets 2,Premises Expenses,G51021/B003011,Housing OP and SN,Fire Alarms
Ashfield District Council,37UB,Hoot Fire & Security Ltd,V0997834,23/06/2022,172,Housing & Assets 2,Premises Expenses,G51028/B003011,Housing OP and SN,Fire Alarms
Ashfield District Council,37UB,Hoot Fire & Security Ltd,V0997835,23/06/2022,172,Housing & Assets 2,Premises Expenses,G51022/B003011,Housing OP and SN,Fire Alarms
Ashfield District Council,37UB,Hoot Fire & Security Ltd,V0997836,23/06/2022,172,Housing & Assets 2,Premises Expenses,G51030/B003011,Housing OP and SN,Fire Alarms
Ashfield District Council,37UB,Hoot Fire & Security Ltd,V0997837,23/06/2022,172,Housing & Assets 2,Premises Expenses,G51020/B003011,Housing OP and SN,Fire Alarms
Ashfield District Council,37UB,Hoot Fire & Security Ltd,V0997838,23/06/2022,172,Housing & Assets 2,Premises Expenses,G51009/B003011,Housing OP and SN,Fire Alarms
Ashfield District Council,37UB,Hoot Fire & Security Ltd,V0997839,23/06/2022,172,Housing & Assets 2,Premises Expenses,G51013/B003011,Housing OP and SN,Fire Alarms
Ashfield District Council,37UB,Hoot Fire & Security Ltd,V0997840,23/06/2022,172,Housing & Assets 2,Premises Expenses,G51007/B003011,Housing OP and SN,Fire Alarms
Ashfield District Council,37UB,Hoot Fire & Security Ltd,V0997841,23/06/2022,172,Housing & Assets 2,Premises Expenses,G51008/B003011,Housing OP and SN,Fire Alarms
Ashfield District Council,37UB,Hoot Fire & Security Ltd,V0997842,23/06/2022,172,Housing & Assets 2,Premises Expenses,G51015/B003011,Housing OP and SN,Fire Alarms
Ashfield District Council,37UB,Hoot Fire & Security Ltd,V0997843,23/06/2022,172,Housing & Assets 2,Premises Expenses,G51023/B003011,Housing OP and SN,Fire Alarms
Ashfield District Council,37UB,Morris Vermaport Ltd,V0999153,23/06/2022,580,Housing & Assets 2,Premises Expenses,G51022/B003006,Housing OP and SN,Lift
Ashfield District Council,37UB,Morris Vermaport Ltd,V0999129,30/06/2022,56.25,Housing & Assets 2,Premises Expenses,g51013/b003006,Housing OP and SN,Lift
Ashfield District Council,37UB,Stannah Lift Services Ltd,V0997246,16/06/2022,521.48,Housing & Assets 2,Premises Expenses,G51026/B003006,Housing OP and SN,Lift
Ashfield District Council,37UB,Castle Water Ltd,V0997205,16/06/2022,123.48,R & B Transformation 2,Premises Expenses,G51009/B401,Housing OP and SN,Water rates
Ashfield District Council,37UB,Castle Water Ltd,V0997205,16/06/2022,2.38,R & B Transformation 2,Premises Expenses,G51015/B401,Housing OP and SN,Water rates
Ashfield District Council,37UB,Castle Water Ltd,V0997205,16/06/2022,80.33,R & B Transformation 2,Premises Expenses,G51015/B401,Housing OP and SN,Water rates
Ashfield District Council,37UB,Castle Water Ltd,V0997205,16/06/2022,28.83,R & B Transformation 2,Premises Expenses,G51020/B401,Housing OP and SN,Water rates
Ashfield District Council,37UB,Castle Water Ltd,V0997205,16/06/2022,37.18,R & B Transformation 2,Premises Expenses,G51026/B401,Housing OP and SN,Water rates
Ashfield District Council,37UB,Castle Water Ltd,V0997205,16/06/2022,2.38,R & B Transformation 2,Premises Expenses,G51015/B401,Housing OP and SN,Water rates
Ashfield District Council,37UB,Castle Water Ltd,V0997205,16/06/2022,24.65,R & B Transformation 2,Premises Expenses,G51015/B401,Housing OP and SN,Water rates
Ashfield District Council,37UB,Castle Water Ltd,V0997205,16/06/2022,10.05,R & B Transformation 2,Premises Expenses,G51015/B401,Housing OP and SN,Water rates
Ashfield District Council,37UB,Castle Water Ltd,V0997205,16/06/2022,30.22,R & B Transformation 2,Premises Expenses,G51028/B401,Housing OP and SN,Water rates
Ashfield District Council,37UB,Castle Water Ltd,V0997205,16/06/2022,7.94,R & B Transformation 2,Premises Expenses,G51028/B401,Housing OP and SN,Water rates
Ashfield District Council,37UB,Castle Water Ltd,V0997205,16/06/2022,2.38,R & B Transformation 2,Premises Expenses,G51015/B401,Housing OP and SN,Water rates
Ashfield District Council,37UB,Castle Water Ltd,V0997205,16/06/2022,5.17,R & B Transformation 2,Premises Expenses,G51015/B401,Housing OP and SN,Water rates
Ashfield District Council,37UB,Castle Water Ltd,V0997205,16/06/2022,12.12,R & B Transformation 2,Premises Expenses,G51021/B401,Housing OP and SN,Water rates
Ashfield District Council,37UB,Castle Water Ltd,V0997205,16/06/2022,2.38,R & B Transformation 2,Premises Expenses,G51015/B401,Housing OP and SN,Water rates
Ashfield District Council,37UB,Castle Water Ltd,V0997205,16/06/2022,42.75,R & B Transformation 2,Premises Expenses,G51023/B401,Housing OP and SN,Water rates
Ashfield District Council,37UB,Castle Water Ltd,V0997205,16/06/2022,7.64,R & B Transformation 2,Premises Expenses,G51027/B401,Housing OP and SN,Water rates
Ashfield District Council,37UB,Castle Water Ltd,V0997205,16/06/2022,13.51,R & B Transformation 2,Premises Expenses,G51022/B401,Housing OP and SN,Water rates
Ashfield District Council,37UB,Castle Water Ltd,V0997205,16/06/2022,2.38,R & B Transformation 2,Premises Expenses,G51015/B401,Housing OP and SN,Water rates
Ashfield District Council,37UB,Castle Water Ltd,V0997205,16/06/2022,2.38,R & B Transformation 2,Premises Expenses,G51015/B401,Housing OP and SN,Water rates
Ashfield District Council,37UB,Castle Water Ltd,V0997205,16/06/2022,13.51,R & B Transformation 2,Premises Expenses,G51022/B401,Housing OP and SN,Water rates
Ashfield District Council,37UB,Castle Water Ltd,V0997205,16/06/2022,33.01,R & B Transformation 2,Premises Expenses,G51022/B401,Housing OP and SN,Water rates
Ashfield District Council,37UB,Castle Water Ltd,V0997205,16/06/2022,3.57,R & B Transformation 2,Premises Expenses,G51008/B401,Housing OP and SN,Water rates
Ashfield District Council,37UB,Castle Water Ltd,V0997205,16/06/2022,2.48,R & B Transformation 2,Premises Expenses,G51015/B401,Housing OP and SN,Water rates
Ashfield District Council,37UB,Daisy Telecoms Ltd,V0996854,16/06/2022,14.98,R & B Transformation 2,Supplies & Services,G51023/D301006,Housing OP and SN,Alarm Lines
Ashfield District Council,37UB,Daisy Telecoms Ltd,V0996854,16/06/2022,26.27,R & B Transformation 2,Supplies & Services,G51015/D301002,Housing OP and SN,Telephones
Ashfield District Council,37UB,Daisy Telecoms Ltd,V0996854,16/06/2022,14.78,R & B Transformation 2,Supplies & Services,G51022/D301002,Housing OP and SN,Telephones
Ashfield District Council,37UB,Daisy Telecoms Ltd,V0996854,16/06/2022,15.83,R & B Transformation 2,Premises Expenses,G51028/B003011,Housing OP and SN,Fire Alarms
Ashfield District Council,37UB,Daisy Telecoms Ltd,V0996854,16/06/2022,82,R & B Transformation 2,Supplies & Services,G51015/D301006,Housing OP and SN,Alarm Lines
Ashfield District Council,37UB,Daisy Telecoms Ltd,V0996854,16/06/2022,14.78,R & B Transformation 2,Premises Expenses,G51023/B003011,Housing OP and SN,Fire Alarms
Ashfield District Council,37UB,Daisy Telecoms Ltd,V0996854,16/06/2022,162.62,R & B Transformation 2,Supplies & Services,G51001/D301002,Housing OP and SN,Telephones
Ashfield District Council,37UB,Daisy Telecoms Ltd,V0996854,16/06/2022,249.01,R & B Transformation 2,Premises Expenses,G51001/B003010,Housing OP and SN,C C T V Cameras
Ashfield District Council,37UB,Daisy Telecoms Ltd,V0996854,16/06/2022,26.3,R & B Transformation 2,Supplies & Services,G51028/D301002,Housing OP and SN,Telephones
Ashfield District Council,37UB,Daisy Telecoms Ltd,V0996854,16/06/2022,41.04,R & B Transformation 2,Supplies & Services,G51027/D301002,Housing OP and SN,Telephones
Ashfield District Council,37UB,Daisy Telecoms Ltd,V0996854,16/06/2022,29.8,R & B Transformation 2,Supplies & Services,G51028/D301006,Housing OP and SN,Alarm Lines
Ashfield District Council,37UB,Daisy Telecoms Ltd,V0996854,16/06/2022,46.83,R & B Transformation 2,Supplies & Services,G51030/D301006,Housing OP and SN,Alarm Lines
Ashfield District Council,37UB,Daisy Telecoms Ltd,V0996854,16/06/2022,14.78,R & B Transformation 2,Premises Expenses,G51009/B003011,Housing OP and SN,Fire Alarms
Ashfield District Council,37UB,Daisy Telecoms Ltd,V0996854,16/06/2022,50.23,R & B Transformation 2,Supplies & Services,G51021/D301006,Housing OP and SN,Alarm Lines
Ashfield District Council,37UB,Daisy Telecoms Ltd,V0996854,16/06/2022,14.78,R & B Transformation 2,Premises Expenses,G51008/B003011,Housing OP and SN,Fire Alarms
Ashfield District Council,37UB,Daisy Telecoms Ltd,V0996854,16/06/2022,26.27,R & B Transformation 2,Supplies & Services,G51030/D301002,Housing OP and SN,Telephones
Ashfield District Council,37UB,Daisy Telecoms Ltd,V0996854,16/06/2022,72.8,R & B Transformation 2,Supplies & Services,G51022/D301006,Housing OP and SN,Alarm Lines
Ashfield District Council,37UB,Daisy Telecoms Ltd,V0996854,16/06/2022,70.11,R & B Transformation 2,Supplies & Services,G51026/D301006,Housing OP and SN,Alarm Lines
Ashfield District Council,37UB,Daisy Telecoms Ltd,V0996854,16/06/2022,36.25,R & B Transformation 2,Supplies & Services,G51027/D301006,Housing OP and SN,Alarm Lines
Ashfield District Council,37UB,Daisy Telecoms Ltd,V0997647,16/06/2022,14.8,R & B Transformation 2,Supplies & Services,G51015/D301002,Housing OP and SN,Telephones
Ashfield District Council,37UB,Daisy Telecoms Ltd,V0997647,16/06/2022,7.4,R & B Transformation 2,Supplies & Services,G51030/D301002,Housing OP and SN,Telephones
Ashfield District Council,37UB,Daisy Telecoms Ltd,V0997647,16/06/2022,6.19,R & B Transformation 2,Supplies & Services,G51027/D301002,Housing OP and SN,Telephones
Ashfield District Council,37UB,Daisy Telecoms Ltd,V0997647,16/06/2022,7.4,R & B Transformation 2,Supplies & Services,G51028/D301002,Housing OP and SN,Telephones
Ashfield District Council,37UB,EDF Energy 1 Ltd,V0997204,16/06/2022,1902.89,R & B Transformation 2,Premises Expenses,G51026/B102,Housing OP and SN,Electricity
Ashfield District Council,37UB,EDF Energy 1 Ltd,V0997648,23/06/2022,39.09,R & B Transformation 2,Premises Expenses,G51013/B102,Housing OP and SN,Electricity
Ashfield District Council,37UB,EDF Energy 1 Ltd,V0997648,23/06/2022,33.2,R & B Transformation 2,Premises Expenses,G51036/B102,Housing OP and SN,Electricity
Ashfield District Council,37UB,EDF Energy 1 Ltd,V0997648,23/06/2022,-27.79,R & B Transformation 2,Premises Expenses,G51041/B102,Housing OP and SN,Electricity
Ashfield District Council,37UB,EDF Energy 1 Ltd,V0997648,23/06/2022,30.28,R & B Transformation 2,Premises Expenses,G51055/B102,Housing OP and SN,Electricity
Ashfield District Council,37UB,EDF Energy 1 Ltd,V0997648,23/06/2022,19.49,R & B Transformation 2,Premises Expenses,G51052/B102,Housing OP and SN,Electricity
Ashfield District Council,37UB,EDF Energy 1 Ltd,V0997648,23/06/2022,32.95,R & B Transformation 2,Premises Expenses,G51052/B102,Housing OP and SN,Electricity
Ashfield District Council,37UB,EDF Energy 1 Ltd,V0997648,23/06/2022,37.13,R & B Transformation 2,Premises Expenses,G51065/B102,Housing OP and SN,Electricity
Ashfield District Council,37UB,EDF Energy 1 Ltd,V0997648,23/06/2022,56.77,R & B Transformation 2,Premises Expenses,G51012/B102,Housing OP and SN,Electricity
Ashfield District Council,37UB,EDF Energy 1 Ltd,V0997648,23/06/2022,25.83,R & B Transformation 2,Premises Expenses,G51012/B102,Housing OP and SN,Electricity
Ashfield District Council,37UB,EDF Energy 1 Ltd,V0997648,23/06/2022,50.74,R & B Transformation 2,Premises Expenses,G51021/B102,Housing OP and SN,Electricity
Ashfield District Council,37UB,EDF Energy 1 Ltd,V0997648,23/06/2022,102.61,R & B Transformation 2,Premises Expenses,G51032/B102,Housing OP and SN,Electricity
Ashfield District Council,37UB,EDF Energy 1 Ltd,V0997648,23/06/2022,217.64,R & B Transformation 2,Premises Expenses,G51033/B102,Housing OP and SN,Electricity
Ashfield District Council,37UB,EDF Energy 1 Ltd,V0997648,23/06/2022,32.95,R & B Transformation 2,Premises Expenses,G51042/B102,Housing OP and SN,Electricity
Ashfield District Council,37UB,EDF Energy 1 Ltd,V0997648,23/06/2022,35.41,R & B Transformation 2,Premises Expenses,G51042/B102,Housing OP and SN,Electricity
Ashfield District Council,37UB,EDF Energy 1 Ltd,V0997648,23/06/2022,40.07,R & B Transformation 2,Premises Expenses,G51060/B102,Housing OP and SN,Electricity
Ashfield District Council,37UB,EDF Energy 1 Ltd,V0997648,23/06/2022,687.96,R & B Transformation 2,Premises Expenses,G51015/B102,Housing OP and SN,Electricity
Ashfield District Council,37UB,EDF Energy 1 Ltd,V0997648,23/06/2022,669.12,R & B Transformation 2,Premises Expenses,G51015/B102,Housing OP and SN,Electricity
Ashfield District Council,37UB,EDF Energy 1 Ltd,V0997648,23/06/2022,184.11,R & B Transformation 2,Premises Expenses,G51015/B102,Housing OP and SN,Electricity
Ashfield District Council,37UB,EDF Energy 1 Ltd,V0997648,23/06/2022,31.97,R & B Transformation 2,Premises Expenses,G51036/B102,Housing OP and SN,Electricity
Ashfield District Council,37UB,EDF Energy 1 Ltd,V0997648,23/06/2022,74.97,R & B Transformation 2,Premises Expenses,G51040/B102,Housing OP and SN,Electricity
Ashfield District Council,37UB,EDF Energy 1 Ltd,V0997648,23/06/2022,22.88,R & B Transformation 2,Premises Expenses,G51041/B102,Housing OP and SN,Electricity
Ashfield District Council,37UB,EDF Energy 1 Ltd,V0997648,23/06/2022,34.18,R & B Transformation 2,Premises Expenses,G51042/B102,Housing OP and SN,Electricity
Ashfield District Council,37UB,EDF Energy 1 Ltd,V0997648,23/06/2022,205.61,R & B Transformation 2,Premises Expenses,G51009/B102,Housing OP and SN,Electricity
Ashfield District Council,37UB,EDF Energy 1 Ltd,V0997648,23/06/2022,-78.26,R & B Transformation 2,Premises Expenses,G51033/B102,Housing OP and SN,Electricity
Ashfield District Council,37UB,EDF Energy 1 Ltd,V0997648,23/06/2022,25.34,R & B Transformation 2,Premises Expenses,G51033/B102,Housing OP and SN,Electricity
Ashfield District Council,37UB,EDF Energy 1 Ltd,V0997648,23/06/2022,42.4,R & B Transformation 2,Premises Expenses,G51046/B102,Housing OP and SN,Electricity
Ashfield District Council,37UB,EDF Energy 1 Ltd,V0997648,23/06/2022,29.02,R & B Transformation 2,Premises Expenses,G51050/B102,Housing OP and SN,Electricity
Ashfield District Council,37UB,EDF Energy 1 Ltd,V0997648,23/06/2022,647.37,R & B Transformation 2,Premises Expenses,G51015/B102,Housing OP and SN,Electricity
Ashfield District Council,37UB,EDF Energy 1 Ltd,V0997648,23/06/2022,564.97,R & B Transformation 2,Premises Expenses,G51022/B102,Housing OP and SN,Electricity
Ashfield District Council,37UB,EDF Energy 1 Ltd,V0997648,23/06/2022,37.6,R & B Transformation 2,Premises Expenses,G51029/B102,Housing OP and SN,Electricity
Ashfield District Council,37UB,EDF Energy 1 Ltd,V0997648,23/06/2022,390.59,R & B Transformation 2,Premises Expenses,G51007/B102,Housing OP and SN,Electricity
Ashfield District Council,37UB,EDF Energy 1 Ltd,V0997648,23/06/2022,36.25,R & B Transformation 2,Premises Expenses,G51043/B102,Housing OP and SN,Electricity
Ashfield District Council,37UB,EDF Energy 1 Ltd,V0997648,23/06/2022,33.82,R & B Transformation 2,Premises Expenses,G51044/B102,Housing OP and SN,Electricity
Ashfield District Council,37UB,EDF Energy 1 Ltd,V0997648,23/06/2022,61.02,R & B Transformation 2,Premises Expenses,G51038/B102,Housing OP and SN,Electricity
Ashfield District Council,37UB,EDF Energy 1 Ltd,V0997648,23/06/2022,25.83,R & B Transformation 2,Premises Expenses,G51043/B102,Housing OP and SN,Electricity
Ashfield District Council,37UB,EDF Energy 1 Ltd,V0997648,23/06/2022,48.67,R & B Transformation 2,Premises Expenses,G51009/B102,Housing OP and SN,Electricity
Ashfield District Council,37UB,EDF Energy 1 Ltd,V0997648,23/06/2022,1362.04,R & B Transformation 2,Premises Expenses,G51021/B102,Housing OP and SN,Electricity
Ashfield District Council,37UB,EDF Energy 1 Ltd,V0997648,23/06/2022,123.5,R & B Transformation 2,Premises Expenses,G51022/B102,Housing OP and SN,Electricity
Ashfield District Council,37UB,EDF Energy 1 Ltd,V0997648,23/06/2022,31.97,R & B Transformation 2,Premises Expenses,G51039/B102,Housing OP and SN,Electricity
Ashfield District Council,37UB,EDF Energy 1 Ltd,V0997648,23/06/2022,97.47,R & B Transformation 2,Premises Expenses,G51034/B102,Housing OP and SN,Electricity
Ashfield District Council,37UB,EDF Energy 1 Ltd,V0997648,23/06/2022,32.46,R & B Transformation 2,Premises Expenses,G51022/B102,Housing OP and SN,Electricity
Ashfield District Council,37UB,EDF Energy 1 Ltd,V0997648,23/06/2022,52.11,R & B Transformation 2,Premises Expenses,G51042/B102,Housing OP and SN,Electricity
Ashfield District Council,37UB,EDF Energy 1 Ltd,V0997648,23/06/2022,32.6,R & B Transformation 2,Premises Expenses,G51043/B102,Housing OP and SN,Electricity
Ashfield District Council,37UB,EDF Energy 1 Ltd,V0997648,23/06/2022,103.64,R & B Transformation 2,Premises Expenses,G51047/B102,Housing OP and SN,Electricity
Ashfield District Council,37UB,EDF Energy 1 Ltd,V0997648,23/06/2022,40.38,R & B Transformation 2,Premises Expenses,G51059/B102,Housing OP and SN,Electricity
Ashfield District Council,37UB,EDF Energy 1 Ltd,V0997648,23/06/2022,33.69,R & B Transformation 2,Premises Expenses,G51048/B102,Housing OP and SN,Electricity
Ashfield District Council,37UB,EDF Energy 1 Ltd,V0997648,23/06/2022,30.25,R & B Transformation 2,Premises Expenses,G51054/B102,Housing OP and SN,Electricity
Ashfield District Council,37UB,EDF Energy 1 Ltd,V0997648,23/06/2022,65.38,R & B Transformation 2,Premises Expenses,G51057/B102,Housing OP and SN,Electricity
Ashfield District Council,37UB,EDF Energy 1 Ltd,V0997648,23/06/2022,58.74,R & B Transformation 2,Premises Expenses,G51017/B102,Housing OP and SN,Electricity
Ashfield District Council,37UB,EDF Energy 1 Ltd,V0997648,23/06/2022,40.3,R & B Transformation 2,Premises Expenses,G51043/B102,Housing OP and SN,Electricity
Ashfield District Council,37UB,EDF Energy 1 Ltd,V0997648,23/06/2022,33.06,R & B Transformation 2,Premises Expenses,G51046/B102,Housing OP and SN,Electricity
Ashfield District Council,37UB,EDF Energy 1 Ltd,V0997648,23/06/2022,27,R & B Transformation 2,Premises Expenses,G51050/B102,Housing OP and SN,Electricity
Ashfield District Council,37UB,EDF Energy 1 Ltd,V0997648,23/06/2022,15.32,R & B Transformation 2,Premises Expenses,G51054/B102,Housing OP and SN,Electricity
Ashfield District Council,37UB,EDF Energy 1 Ltd,V0997648,23/06/2022,21.44,R & B Transformation 2,Premises Expenses,G51063/B102,Housing OP and SN,Electricity
Ashfield District Council,37UB,EDF Energy 1 Ltd,V0997648,23/06/2022,371.58,R & B Transformation 2,Premises Expenses,G51013/B102,Housing OP and SN,Electricity
Ashfield District Council,37UB,EDF Energy 1 Ltd,V0997648,23/06/2022,123.72,R & B Transformation 2,Premises Expenses,G51033/B102,Housing OP and SN,Electricity
Ashfield District Council,37UB,EDF Energy 1 Ltd,V0997648,23/06/2022,35.41,R & B Transformation 2,Premises Expenses,G51049/B102,Housing OP and SN,Electricity
Ashfield District Council,37UB,EDF Energy 1 Ltd,V0997648,23/06/2022,16.06,R & B Transformation 2,Premises Expenses,G51054/B102,Housing OP and SN,Electricity
Ashfield District Council,37UB,EDF Energy 1 Ltd,V0997648,23/06/2022,623.93,R & B Transformation 2,Premises Expenses,G51015/B102,Housing OP and SN,Electricity
Ashfield District Council,37UB,EDF Energy 1 Ltd,V0997648,23/06/2022,34.27,R & B Transformation 2,Premises Expenses,G51022/B102,Housing OP and SN,Electricity
Ashfield District Council,37UB,EDF Energy 1 Ltd,V0997648,23/06/2022,38.87,R & B Transformation 2,Premises Expenses,G51046/B102,Housing OP and SN,Electricity
Ashfield District Council,37UB,EDF Energy 1 Ltd,V0997648,23/06/2022,313.77,R & B Transformation 2,Premises Expenses,G51020/B102,Housing OP and SN,Electricity
Ashfield District Council,37UB,EDF Energy 1 Ltd,V0997648,23/06/2022,39.62,R & B Transformation 2,Premises Expenses,G51046/B102,Housing OP and SN,Electricity
Ashfield District Council,37UB,EDF Energy 1 Ltd,V0997648,23/06/2022,52.85,R & B Transformation 2,Premises Expenses,G51048/B102,Housing OP and SN,Electricity
Ashfield District Council,37UB,EDF Energy 1 Ltd,V0997648,23/06/2022,1093.44,R & B Transformation 2,Premises Expenses,G51015/B102,Housing OP and SN,Electricity
Ashfield District Council,37UB,EDF Energy 1 Ltd,V0997648,23/06/2022,93.42,R & B Transformation 2,Premises Expenses,G51017/B102,Housing OP and SN,Electricity
Ashfield District Council,37UB,EDF Energy 1 Ltd,V0997648,23/06/2022,469.48,R & B Transformation 2,Premises Expenses,G51028/B102,Housing OP and SN,Electricity
Ashfield District Council,37UB,EDF Energy 1 Ltd,V0997648,23/06/2022,32.49,R & B Transformation 2,Premises Expenses,G51029/B102,Housing OP and SN,Electricity
Ashfield District Council,37UB,EDF Energy 1 Ltd,V0997648,23/06/2022,55.06,R & B Transformation 2,Premises Expenses,G51035/B102,Housing OP and SN,Electricity
Ashfield District Council,37UB,EDF Energy 1 Ltd,V0997648,23/06/2022,22.88,R & B Transformation 2,Premises Expenses,G51041/B102,Housing OP and SN,Electricity
Ashfield District Council,37UB,EDF Energy 1 Ltd,V0997648,23/06/2022,231.52,R & B Transformation 2,Premises Expenses,G51008/B102,Housing OP and SN,Electricity
Ashfield District Council,37UB,EDF Energy 1 Ltd,V0997648,23/06/2022,43.1,R & B Transformation 2,Premises Expenses,G51061/B102,Housing OP and SN,Electricity
Ashfield District Council,37UB,EDF Energy 1 Ltd,V0997648,23/06/2022,25.9,R & B Transformation 2,Premises Expenses,G51021/B102,Housing OP and SN,Electricity
Ashfield District Council,37UB,EDF Energy 1 Ltd,V0997648,23/06/2022,58.59,R & B Transformation 2,Premises Expenses,G51022/B102,Housing OP and SN,Electricity
Ashfield District Council,37UB,EDF Energy 1 Ltd,V0997648,23/06/2022,195.13,R & B Transformation 2,Premises Expenses,G51032/B102,Housing OP and SN,Electricity
Ashfield District Council,37UB,EDF Energy 1 Ltd,V0997648,23/06/2022,76.36,R & B Transformation 2,Premises Expenses,G51058/B102,Housing OP and SN,Electricity
Ashfield District Council,37UB,EDF Energy 1 Ltd,V0997648,23/06/2022,264.22,R & B Transformation 2,Premises Expenses,G51013/B102,Housing OP and SN,Electricity
Ashfield District Council,37UB,EDF Energy 1 Ltd,V0997648,23/06/2022,668.71,R & B Transformation 2,Premises Expenses,G51015/B102,Housing OP and SN,Electricity
Ashfield District Council,37UB,EDF Energy 1 Ltd,V0997648,23/06/2022,530.71,R & B Transformation 2,Premises Expenses,G51019/B102,Housing OP and SN,Electricity
Ashfield District Council,37UB,EDF Energy 1 Ltd,V0997648,23/06/2022,30.03,R & B Transformation 2,Premises Expenses,G51029/B102,Housing OP and SN,Electricity
Ashfield District Council,37UB,EDF Energy 1 Ltd,V0997648,23/06/2022,48.18,R & B Transformation 2,Premises Expenses,G51037/B102,Housing OP and SN,Electricity
Ashfield District Council,37UB,EDF Energy 1 Ltd,V0997648,23/06/2022,39.58,R & B Transformation 2,Premises Expenses,G51058/B102,Housing OP and SN,Electricity
Ashfield District Council,37UB,EDF Energy 1 Ltd,V0997648,23/06/2022,72.05,R & B Transformation 2,Premises Expenses,G51009/B102,Housing OP and SN,Electricity
Ashfield District Council,37UB,EDF Energy 1 Ltd,V0997648,23/06/2022,36.64,R & B Transformation 2,Premises Expenses,G51060/B102,Housing OP and SN,Electricity
Ashfield District Council,37UB,EDF Energy 1 Ltd,V0997648,23/06/2022,35.9,R & B Transformation 2,Premises Expenses,G51062/B102,Housing OP and SN,Electricity
Ashfield District Council,37UB,EDF Energy 1 Ltd,V0997648,23/06/2022,156.84,R & B Transformation 2,Premises Expenses,G51023/B102,Housing OP and SN,Electricity
Ashfield District Council,37UB,EDF Energy 1 Ltd,V0997648,23/06/2022,88.05,R & B Transformation 2,Premises Expenses,G51024/B102,Housing OP and SN,Electricity
Ashfield District Council,37UB,EDF Energy 1 Ltd,V0997648,23/06/2022,27.79,R & B Transformation 2,Premises Expenses,G51049/B102,Housing OP and SN,Electricity
Ashfield District Council,37UB,EDF Energy 1 Ltd,V0997648,23/06/2022,19.74,R & B Transformation 2,Premises Expenses,G51051/B102,Housing OP and SN,Electricity
Ashfield District Council,37UB,EDF Energy 1 Ltd,V0997648,23/06/2022,30.28,R & B Transformation 2,Premises Expenses,G51056/B102,Housing OP and SN,Electricity
Ashfield District Council,37UB,EDF Energy 1 Ltd,V0997648,23/06/2022,32.21,R & B Transformation 2,Premises Expenses,G51061/B102,Housing OP and SN,Electricity
Ashfield District Council,37UB,EDF Energy 1 Ltd,V0997648,23/06/2022,958.48,R & B Transformation 2,Premises Expenses,G51015/B102,Housing OP and SN,Electricity
Ashfield District Council,37UB,EDF Energy 1 Ltd,V0997648,23/06/2022,102.19,R & B Transformation 2,Premises Expenses,G51012/B102,Housing OP and SN,Electricity
Ashfield District Council,37UB,EDF Energy 1 Ltd,V0997648,23/06/2022,665.04,R & B Transformation 2,Premises Expenses,G51015/B102,Housing OP and SN,Electricity
Ashfield District Council,37UB,EDF Energy 1 Ltd,V0997648,23/06/2022,30.25,R & B Transformation 2,Premises Expenses,G51039/B102,Housing OP and SN,Electricity
Ashfield District Council,37UB,EDF Energy 1 Ltd,V0997648,23/06/2022,34.32,R & B Transformation 2,Premises Expenses,G51044/B102,Housing OP and SN,Electricity
Ashfield District Council,37UB,EDF Energy 1 Ltd,V0997648,23/06/2022,36.85,R & B Transformation 2,Premises Expenses,G51045/B102,Housing OP and SN,Electricity
Ashfield District Council,37UB,Total Gas & Power,V0996841,16/06/2022,1760.45,R & B Transformation 2,Premises Expenses,G51019/B101,Housing OP and SN,Gas
Ashfield District Council,37UB,Total Gas & Power,V0996841,16/06/2022,844.02,R & B Transformation 2,Premises Expenses,G51019/B101,Housing OP and SN,Gas
Ashfield District Council,37UB,Total Gas & Power,V0996841,16/06/2022,1033.78,R & B Transformation 2,Premises Expenses,G51028/B101,Housing OP and SN,Gas
Ashfield District Council,37UB,Total Gas & Power,V0996841,16/06/2022,1424.36,R & B Transformation 2,Premises Expenses,G51030/B101,Housing OP and SN,Gas
Ashfield District Council,37UB,Total Gas & Power,V0996841,16/06/2022,1163.48,R & B Transformation 2,Premises Expenses,G51013/B101,Housing OP and SN,Gas
Ashfield District Council,37UB,Total Gas & Power,V0996841,16/06/2022,1284.22,R & B Transformation 2,Premises Expenses,G51027/B101,Housing OP and SN,Gas
Ashfield District Council,37UB,Total Gas & Power,V0996841,16/06/2022,85.26,R & B Transformation 2,Premises Expenses,G51007/B101,Housing OP and SN,Gas
Ashfield District Council,37UB,Total Gas & Power,V0996841,16/06/2022,130.93,R & B Transformation 2,Premises Expenses,G51009/B101,Housing OP and SN,Gas
Ashfield District Council,37UB,Total Gas & Power,V0996841,16/06/2022,878.36,R & B Transformation 2,Premises Expenses,G51019/B101,Housing OP and SN,Gas
Ashfield District Council,37UB,Total Gas & Power,V0996841,16/06/2022,76.8,R & B Transformation 2,Premises Expenses,G51026/B101,Housing OP and SN,Gas
Ashfield District Council,37UB,Total Gas & Power,V0996841,16/06/2022,556.11,R & B Transformation 2,Premises Expenses,G51007/B101,Housing OP and SN,Gas
Ashfield District Council,37UB,Total Gas & Power,V0996841,16/06/2022,888.68,R & B Transformation 2,Premises Expenses,G51023/B101,Housing OP and SN,Gas
Ashfield District Council,37UB,Total Gas & Power,V0996841,16/06/2022,137.77,R & B Transformation 2,Premises Expenses,G51008/B101,Housing OP and SN,Gas
Ashfield District Council,37UB,Total Gas & Power,V0996841,16/06/2022,407.57,R & B Transformation 2,Premises Expenses,G51015/B101,Housing OP and SN,Gas
Ashfield District Council,37UB,Total Gas & Power,V0996841,16/06/2022,1772.55,R & B Transformation 2,Premises Expenses,G51022/B101,Housing OP and SN,Gas
Ashfield District Council,37UB,Total Gas & Power,V0999230,30/06/2022,1409.32,R & B Transformation 2,Premises Expenses,G51022/B101,Housing OP and SN,Gas
Ashfield District Council,37UB,Total Gas & Power,V0999230,30/06/2022,832.37,R & B Transformation 2,Premises Expenses,G51028/B101,Housing OP and SN,Gas
Ashfield District Council,37UB,Total Gas & Power,V0999230,30/06/2022,79.14,R & B Transformation 2,Premises Expenses,G51007/B101,Housing OP and SN,Gas
Ashfield District Council,37UB,Total Gas & Power,V0999230,30/06/2022,417.84,R & B Transformation 2,Premises Expenses,G51007/B101,Housing OP and SN,Gas
Ashfield District Council,37UB,Total Gas & Power,V0999230,30/06/2022,673.67,R & B Transformation 2,Premises Expenses,G51019/B101,Housing OP and SN,Gas
Ashfield District Council,37UB,Total Gas & Power,V0999230,30/06/2022,1075.28,R & B Transformation 2,Premises Expenses,G51027/B101,Housing OP and SN,Gas
Ashfield District Council,37UB,Total Gas & Power,V0999230,30/06/2022,1473.61,R & B Transformation 2,Premises Expenses,G51019/B101,Housing OP and SN,Gas
Ashfield District Council,37UB,Total Gas & Power,V0999230,30/06/2022,740.72,R & B Transformation 2,Premises Expenses,G51019/B101,Housing OP and SN,Gas
Ashfield District Council,37UB,Total Gas & Power,V0999230,30/06/2022,742.58,R & B Transformation 2,Premises Expenses,G51030/B101,Housing OP and SN,Gas
Ashfield District Council,37UB,Total Gas & Power,V0999230,30/06/2022,619.93,R & B Transformation 2,Premises Expenses,G51023/B101,Housing OP and SN,Gas
Ashfield District Council,37UB,Total Gas & Power,V0999230,30/06/2022,115.85,R & B Transformation 2,Premises Expenses,G51008/B101,Housing OP and SN,Gas
Ashfield District Council,37UB,Total Gas & Power,V0999230,30/06/2022,94.63,R & B Transformation 2,Premises Expenses,G51009/B101,Housing OP and SN,Gas
Ashfield District Council,37UB,Total Gas & Power,V0999230,30/06/2022,88.37,R & B Transformation 2,Premises Expenses,G51026/B101,Housing OP and SN,Gas
Ashfield District Council,37UB,Total Gas & Power,V0999230,30/06/2022,123.78,R & B Transformation 2,Premises Expenses,G51015/B101,Housing OP and SN,Gas
Ashfield District Council,37UB,Total Gas & Power,V0999230,30/06/2022,904.6,R & B Transformation 2,Premises Expenses,G51013/B101,Housing OP and SN,Gas
Ashfield District Council,37UB,Association Of Retained Council Housing Ltd (ARCH),V0996905,09/06/2022,2899,Housing & Assets 2,Supplies & Services,G23000/D201007,Housing Revenue Account,Membership/Subscriptions
Ashfield District Council,37UB,AWICS,V0997744,23/06/2022,1500,Housing & Assets 2,Supplies & Services,G23000/D200004,Housing Revenue Account,Legal Expenses
Ashfield District Council,37UB,British Gas Trading Limited,V0996899,16/06/2022,112.53,Housing & Assets 2,Premises Expenses,G23011052/B102,Housing Revenue Account,Electricity
Ashfield District Council,37UB,British Gas Trading Limited,V0996899,16/06/2022,7,Housing & Assets 2,Premises Expenses,G23011052/B101,Housing Revenue Account,Gas
Ashfield District Council,37UB,British Gas Trading Limited,V0996899,16/06/2022,140.62,Housing & Assets 2,Premises Expenses,G23011052/B101,Housing Revenue Account,Gas
Ashfield District Council,37UB,DFP Services Limited,V0999101,23/06/2022,45,Housing & Assets 2,Premises Expenses,G23100004/B002001,Housing Revenue Account,Mechanical Ventilation Asset Maintenance
Ashfield District Council,37UB,DFP Services Limited,V0999103,23/06/2022,45,Housing & Assets 2,Premises Expenses,G23100007/B002001,Housing Revenue Account,Mechanical Ventilation Asset Maintenance
Ashfield District Council,37UB,DFP Services Limited,V0999108,23/06/2022,45,Housing & Assets 2,Premises Expenses,G23100002/B002001,Housing Revenue Account,Mechanical Ventilation Asset Maintenance
Ashfield District Council,37UB,DFP Services Limited,V0999116,23/06/2022,180,Housing & Assets 2,Premises Expenses,G23100004/B002001,Housing Revenue Account,Mechanical Ventilation Asset Maintenance
Ashfield District Council,37UB,DFP Services Limited,V0999125,23/06/2022,90,Housing & Assets 2,Premises Expenses,G23100007/B002001,Housing Revenue Account,Mechanical Ventilation Asset Maintenance
